Workbook

Sheet STATEMENT
A1: Statement | B1: Naief Akeel Alzofairy Est. Forever Living Products Sole Agent in the Middle East | H1: مؤسسة نايف عقيل الظفيري الوكيل الحصري لشركة فورايفر ليفينج الشرق الاوسط
B2: Address: Mussa Bin Nasir St | I2: العنوان: شارع موسى بن نصير
B3: Phone: 0112151970 : Fax 0112151971 | I3: هاتف: 0112151970 - فاكس: 0112151971
B4: VAT Registration No: :300095228700003 | I4: الرقم الضريبي :300095228700003
D6: Statement of Account | G6: كشف حساب عميل
E7: Date: | F7: =TODAY() -> 2018-11-19 | G7: التاريخ
D9: Customer Name: | F9: Dallah Healthcare Co. / Dallah Hospital | H9: اســــــــم الــــــعــــمــيـــــــــل:
D10: FBO ID | F10: =IF(F9="","",VLOOKUP(F9,Customers!C2:D625,2,0)) -> 775962 | H10: وكــــــــــالة رقــــــــــــــــم:
D12: Invoices الفواتير
D13: # | E13: Invoice # رقم الفاتورة | F13: Invoice Amount مبلغ الفاتورة | G13: Invoice Date تاريخ الفاتورة | H13: Notes ملاحظات
D14: =IF(OR(Table1[[#This Row],[Invoice '# رقم الفاتورة]]="",Table1[[#This Row],[Invoice '# رقم الفاتورة]]="Nothing Follows"),"",ROW()-13) -> 1 | E14: =IF(E13="No Invoices","",IFERROR(VLOOKUP(ROWS($E$14:E14),Invoices!$A$2:$G$300,4,0),"No Invoices/s")) -> 28 | F14: =IFERROR(VLOOKUP(Table1[[#This Row],[Invoice '# رقم الفاتورة]],Table4[[Invoice '# رقم الفاتورة]:[Notes ملاحظات]],2,0),"") -> 3540.23 | G14: =IFERROR(VLOOKUP(Table1[[#This Row],[Invoice '# رقم الفاتورة]],Table4[[Invoice '# رقم الفاتورة]:[Notes ملاحظات]],3,0),"") -> 2017-07-04
D15: =IF(OR(Table1[[#This Row],[Invoice '# رقم الفاتورة]]="",Table1[[#This Row],[Invoice '# رقم الفاتورة]]="Nothing Follows"),"",ROW()-13) -> 2 | E15: =IF(OR(E14="The End",E14="",E14="No Invoices/s"),"",IF(E14="No Invoices","",IFERROR(VLOOKUP(ROWS($E$14:E15),Invoices!$A$2:$G$300,4,0),"The End"))) -> 27 | F15: =IFERROR(VLOOKUP(Table1[[#This Row],[Invoice '# رقم الفاتورة]],Table4[[Invoice '# رقم الفاتورة]:[Notes ملاحظات]],2,0),"") -> 1523.63 | G15: =IFERROR(VLOOKUP(Table1[[#This Row],[Invoice '# رقم الفاتورة]],Table4[[Invoice '# رقم الفاتورة]:[Notes ملاحظات]],3,0),"") -> 2017-07-04
D16: =IF(OR(Table1[[#This Row],[Invoice '# رقم الفاتورة]]="",Table1[[#This Row],[Invoice '# رقم الفاتورة]]="Nothing Follows"),"",ROW()-13) -> 3 | E16: =IF(OR(E15="The End",E15="",E15="No Invoices/s"),"",IF(E15="No Invoices","",IFERROR(VLOOKUP(ROWS($E$14:E16),Invoices!$A$2:$G$300,4,0),"The End"))) -> 18 | F16: =IFERROR(VLOOKUP(Table1[[#This Row],[Invoice '# رقم الفاتورة]],Table4[[Invoice '# رقم الفاتورة]:[Notes ملاحظات]],2,0),"") -> 637 | G16: =IFERROR(VLOOKUP(Table1[[#This Row],[Invoice '# رقم الفاتورة]],Table4[[Invoice '# رقم الفاتورة]:[Notes ملاحظات]],3,0),"") -> 2017-09-17
D17: =IF(OR(Table1[[#This Row],[Invoice '# رقم الفاتورة]]="",Table1[[#This Row],[Invoice '# رقم الفاتورة]]="Nothing Follows"),"",ROW()-13) -> 4 | E17: =IF(OR(E16="The End",E16="",E16="No Invoices/s"),"",IF(E16="No Invoices","",IFERROR(VLOOKUP(ROWS($E$14:E17),Invoices!$A$2:$G$300,4,0),"The End"))) -> 41 | F17: =IFERROR(VLOOKUP(Table1[[#This Row],[Invoice '# رقم الفاتورة]],Table4[[Invoice '# رقم الفاتورة]:[Notes ملاحظات]],2,0),"") -> 2008 | G17: =IFERROR(VLOOKUP(Table1[[#This Row],[Invoice '# رقم الفاتورة]],Table4[[Invoice '# رقم الفاتورة]:[Notes ملاحظات]],3,0),"") -> 2017-10-28
D18: =IF(OR(Table1[[#This Row],[Invoice '# رقم الفاتورة]]="",Table1[[#This Row],[Invoice '# رقم الفاتورة]]="Nothing Follows"),"",ROW()-13) -> 5 | E18: =IF(OR(E17="The End",E17="",E17="No Invoices/s"),"",IF(E17="No Invoices","",IFERROR(VLOOKUP(ROWS($E$14:E18),Invoices!$A$2:$G$300,4,0),"The End"))) -> 65 | F18: =IFERROR(VLOOKUP(Table1[[#This Row],[Invoice '# رقم الفاتورة]],Table4[[Invoice '# رقم الفاتورة]:[Notes ملاحظات]],2,0),"") -> 2344.96 | G18: =IFERROR(VLOOKUP(Table1[[#This Row],[Invoice '# رقم الفاتورة]],Table4[[Invoice '# رقم الفاتورة]:[Notes ملاحظات]],3,0),"") -> 2017-10-30
D19: =IF(OR(Table1[[#This Row],[Invoice '# رقم الفاتورة]]="",Table1[[#This Row],[Invoice '# رقم الفاتورة]]="Nothing Follows"),"",ROW()-13) -> 6 | E19: =IF(OR(E18="The End",E18="",E18="No Invoices/s"),"",IF(E18="No Invoices","",IFERROR(VLOOKUP(ROWS($E$14:E19),Invoices!$A$2:$G$300,4,0),"The End"))) -> 23268 | F19: =IFERROR(VLOOKUP(Table1[[#This Row],[Invoice '# رقم الفاتورة]],Table4[[Invoice '# رقم الفاتورة]:[Notes ملاحظات]],2,0),"") -> 998.26 | G19: =IFERROR(VLOOKUP(Table1[[#This Row],[Invoice '# رقم الفاتورة]],Table4[[Invoice '# رقم الفاتورة]:[Notes ملاحظات]],3,0),"") -> 2017-11-12
D20: =IF(OR(Table1[[#This Row],[Invoice '# رقم الفاتورة]]="",Table1[[#This Row],[Invoice '# رقم الفاتورة]]="Nothing Follows"),"",ROW()-13) -> 7 | E20: =IF(OR(E19="The End",E19="",E19="No Invoices/s"),"",IF(E19="No Invoices","",IFERROR(VLOOKUP(ROWS($E$14:E20),Invoices!$A$2:$G$300,4,0),"The End"))) -> 12 | F20: =IFERROR(VLOOKUP(Table1[[#This Row],[Invoice '# رقم الفاتورة]],Table4[[Invoice '# رقم الفاتورة]:[Notes ملاحظات]],2,0),"") -> 3782.76 | G20: =IFERROR(VLOOKUP(Table1[[#This Row],[Invoice '# رقم الفاتورة]],Table4[[Invoice '# رقم الفاتورة]:[Notes ملاحظات]],3,0),"") -> 2018-01-23
C21: 7 | D21: =IF(OR(Table1[[#This Row],[Invoice '# رقم الفاتورة]]="",Table1[[#This Row],[Invoice '# رقم الفاتورة]]="Nothing Follows"),"",ROW()-13) -> 8 | E21: =IF(OR(E20="The End",E20="",E20="No Invoices/s"),"",IF(E20="No Invoices","",IFERROR(VLOOKUP(ROWS($E$14:E21),Invoices!$A$2:$G$300,4,0),"The End"))) -> 35 | F21: =IFERROR(VLOOKUP(Table1[[#This Row],[Invoice '# رقم الفاتورة]],Table4[[Invoice '# رقم الفاتورة]:[Notes ملاحظات]],2,0),"") -> 1250.34 | G21: =IFERROR(VLOOKUP(Table1[[#This Row],[Invoice '# رقم الفاتورة]],Table4[[Invoice '# رقم الفاتورة]:[Notes ملاحظات]],3,0),"") -> 2018-02-13
D22: =IF(OR(Table1[[#This Row],[Invoice '# رقم الفاتورة]]="",Table1[[#This Row],[Invoice '# رقم الفاتورة]]="Nothing Follows"),"",ROW()-13) -> 9 | E22: =IF(OR(E21="The End",E21="",E21="No Invoices/s"),"",IF(E21="No Invoices","",IFERROR(VLOOKUP(ROWS($E$14:E22),Invoices!$A$2:$G$300,4,0),"The End"))) -> 101 | F22: =IFERROR(VLOOKUP(Table1[[#This Row],[Invoice '# رقم الفاتورة]],Table4[[Invoice '# رقم الفاتورة]:[Notes ملاحظات]],2,0),"") -> 2006.55 | G22: =IFERROR(VLOOKUP(Table1[[#This Row],[Invoice '# رقم الفاتورة]],Table4[[Invoice '# رقم الفاتورة]:[Notes ملاحظات]],3,0),"") -> 2018-02-20
D23: =IF(OR(Table1[[#This Row],[Invoice '# رقم الفاتورة]]="",Table1[[#This Row],[Invoice '# رقم الفاتورة]]="Nothing Follows"),"",ROW()-13) -> 10 | E23: =IF(OR(E22="The End",E22="",E22="No Invoices/s"),"",IF(E22="No Invoices","",IFERROR(VLOOKUP(ROWS($E$14:E23),Invoices!$A$2:$G$300,4,0),"The End"))) -> 102 | F23: =IFERROR(VLOOKUP(Table1[[#This Row],[Invoice '# رقم الفاتورة]],Table4[[Invoice '# رقم الفاتورة]:[Notes ملاحظات]],2,0),"") -> 2354.63 | G23: =IFERROR(VLOOKUP(Table1[[#This Row],[Invoice '# رقم الفاتورة]],Table4[[Invoice '# رقم الفاتورة]:[Notes ملاحظات]],3,0),"") -> 2018-03-27
D24: =IF(OR(Table1[[#This Row],[Invoice '# رقم الفاتورة]]="",Table1[[#This Row],[Invoice '# رقم الفاتورة]]="Nothing Follows"),"",ROW()-13) -> 11 | E24: =IF(OR(E23="The End",E23="",E23="No Invoices/s"),"",IF(E23="No Invoices","",IFERROR(VLOOKUP(ROWS($E$14:E24),Invoices!$A$2:$G$300,4,0),"The End"))) -> 4991 | F24: =IFERROR(VLOOKUP(Table1[[#This Row],[Invoice '# رقم الفاتورة]],Table4[[Invoice '# رقم الفاتورة]:[Notes ملاحظات]],2,0),"") -> 2956.08 | G24: =IFERROR(VLOOKUP(Table1[[#This Row],[Invoice '# رقم الفاتورة]],Table4[[Invoice '# رقم الفاتورة]:[Notes ملاحظات]],3,0),"") -> 2018-04-04
D25: =IF(OR(Table1[[#This Row],[Invoice '# رقم الفاتورة]]="",Table1[[#This Row],[Invoice '# رقم الفاتورة]]="Nothing Follows"),"",ROW()-13) -> 12 | E25: =IF(OR(E24="The End",E24="",E24="No Invoices/s"),"",IF(E24="No Invoices","",IFERROR(VLOOKUP(ROWS($E$14:E25),Invoices!$A$2:$G$300,4,0),"The End"))) -> 4600 | F25: =IFERROR(VLOOKUP(Table1[[#This Row],[Invoice '# رقم الفاتورة]],Table4[[Invoice '# رقم الفاتورة]:[Notes ملاحظات]],2,0),"") -> 1576.58 | G25: =IFERROR(VLOOKUP(Table1[[#This Row],[Invoice '# رقم الفاتورة]],Table4[[Invoice '# رقم الفاتورة]:[Notes ملاحظات]],3,0),"") -> 2018-05-24
D26: =IF(OR(Table1[[#This Row],[Invoice '# رقم الفاتورة]]="",Table1[[#This Row],[Invoice '# رقم الفاتورة]]="Nothing Follows"),"",ROW()-13) -> 13 | E26: =IF(OR(E25="The End",E25="",E25="No Invoices/s"),"",IF(E25="No Invoices","",IFERROR(VLOOKUP(ROWS($E$14:E26),Invoices!$A$2:$G$300,4,0),"The End"))) -> 4810 | F26: =IFERROR(VLOOKUP(Table1[[#This Row],[Invoice '# رقم الفاتورة]],Table4[[Invoice '# رقم الفاتورة]:[Notes ملاحظات]],2,0),"") -> 2813.61 | G26: =IFERROR(VLOOKUP(Table1[[#This Row],[Invoice '# رقم الفاتورة]],Table4[[Invoice '# رقم الفاتورة]:[Notes ملاحظات]],3,0),"") -> 2018-06-27
D27: =IF(OR(Table1[[#This Row],[Invoice '# رقم الفاتورة]]="",Table1[[#This Row],[Invoice '# رقم الفاتورة]]="Nothing Follows"),"",ROW()-13) -> 14 | E27: =IF(OR(E26="The End",E26="",E26="No Invoices/s"),"",IF(E26="No Invoices","",IFERROR(VLOOKUP(ROWS($E$14:E27),Invoices!$A$2:$G$300,4,0),"The End"))) -> 4999 | F27: =IFERROR(VLOOKUP(Table1[[#This Row],[Invoice '# رقم الفاتورة]],Table4[[Invoice '# رقم الفاتورة]:[Notes ملاحظات]],2,0),"") -> 7169.66 | G27: =IFERROR(VLOOKUP(Table1[[#This Row],[Invoice '# رقم الفاتورة]],Table4[[Invoice '# رقم الفاتورة]:[Notes ملاحظات]],3,0),"") -> 2018-08-02
D28: =IF(OR(Table1[[#This Row],[Invoice '# رقم الفاتورة]]="",Table1[[#This Row],[Invoice '# رقم الفاتورة]]="Nothing Follows"),"",ROW()-13) -> 15 | E28: =IF(OR(E27="The End",E27="",E27="No Invoices/s"),"",IF(E27="No Invoices","",IFERROR(VLOOKUP(ROWS($E$14:E28),Invoices!$A$2:$G$300,4,0),"The End"))) -> 5001 | F28: =IFERROR(VLOOKUP(Table1[[#This Row],[Invoice '# رقم الفاتورة]],Table4[[Invoice '# رقم الفاتورة]:[Notes ملاحظات]],2,0),"") -> 2204.48 | G28: =IFERROR(VLOOKUP(Table1[[#This Row],[Invoice '# رقم الفاتورة]],Table4[[Invoice '# رقم الفاتورة]:[Notes ملاحظات]],3,0),"") -> 2018-08-09
D29: =IF(OR(Table1[[#This Row],[Invoice '# رقم الفاتورة]]="",Table1[[#This Row],[Invoice '# رقم الفاتورة]]="Nothing Follows"),"",ROW()-13) -> 16 | E29: =IF(OR(E28="The End",E28="",E28="No Invoices/s"),"",IF(E28="No Invoices","",IFERROR(VLOOKUP(ROWS($E$14:E29),Invoices!$A$2:$G$300,4,0),"The End"))) -> 5629 | F29: =IFERROR(VLOOKUP(Table1[[#This Row],[Invoice '# رقم الفاتورة]],Table4[[Invoice '# رقم الفاتورة]:[Notes ملاحظات]],2,0),"") -> 1870.05 | G29: =IFERROR(VLOOKUP(Table1[[#This Row],[Invoice '# رقم الفاتورة]],Table4[[Invoice '# رقم الفاتورة]:[Notes ملاحظات]],3,0),"") -> 2018-10-07
D30: =IF(OR(Table1[[#This Row],[Invoice '# رقم الفاتورة]]="",Table1[[#This Row],[Invoice '# رقم الفاتورة]]="Nothing Follows"),"",ROW()-13) -> 17 | E30: =IF(OR(E29="The End",E29="",E29="No Invoices/s"),"",IF(E29="No Invoices","",IFERROR(VLOOKUP(ROWS($E$14:E30),Invoices!$A$2:$G$300,4,0),"The End"))) -> The End | F30: =IFERROR(VLOOKUP(Table1[[#This Row],[Invoice '# رقم الفاتورة]],Table4[[Invoice '# رقم الفاتورة]:[Notes ملاحظات]],2,0),"") ->  | G30: =IFERROR(VLOOKUP(Table1[[#This Row],[Invoice '# رقم الفاتورة]],Table4[[Invoice '# رقم الفاتورة]:[Notes ملاحظات]],3,0),"") -> 
D31: =IF(OR(Table1[[#This Row],[Invoice '# رقم الفاتورة]]="",Table1[[#This Row],[Invoice '# رقم الفاتورة]]="Nothing Follows"),"",ROW()-13) ->  | E31: =IF(OR(E30="The End",E30="",E30="No Invoices/s"),"",IF(E30="No Invoices","",IFERROR(VLOOKUP(ROWS($E$14:E31),Invoices!$A$2:$G$300,4,0),"The End"))) ->  | F31: =IFERROR(VLOOKUP(Table1[[#This Row],[Invoice '# رقم الفاتورة]],Table4[[Invoice '# رقم الفاتورة]:[Notes ملاحظات]],2,0),"") ->  | G31: =IFERROR(VLOOKUP(Table1[[#This Row],[Invoice '# رقم الفاتورة]],Table4[[Invoice '# رقم الفاتورة]:[Notes ملاحظات]],3,0),"") -> 
D32: =IF(OR(Table1[[#This Row],[Invoice '# رقم الفاتورة]]="",Table1[[#This Row],[Invoice '# رقم الفاتورة]]="Nothing Follows"),"",ROW()-13) ->  | E32: =IF(OR(E31="The End",E31="",E31="No Invoices/s"),"",IF(E31="No Invoices","",IFERROR(VLOOKUP(ROWS($E$14:E32),Invoices!$A$2:$G$300,4,0),"The End"))) ->  | F32: =IFERROR(VLOOKUP(Table1[[#This Row],[Invoice '# رقم الفاتورة]],Table4[[Invoice '# رقم الفاتورة]:[Notes ملاحظات]],2,0),"") ->  | G32: =IFERROR(VLOOKUP(Table1[[#This Row],[Invoice '# رقم الفاتورة]],Table4[[Invoice '# رقم الفاتورة]:[Notes ملاحظات]],3,0),"") -> 
D33: =IF(OR(Table1[[#This Row],[Invoice '# رقم الفاتورة]]="",Table1[[#This Row],[Invoice '# رقم الفاتورة]]="Nothing Follows"),"",ROW()-13) ->  | E33: =IF(OR(E32="The End",E32="",E32="No Invoices/s"),"",IF(E32="No Invoices","",IFERROR(VLOOKUP(ROWS($E$14:E33),Invoices!$A$2:$G$300,4,0),"The End"))) ->  | F33: =IFERROR(VLOOKUP(Table1[[#This Row],[Invoice '# رقم الفاتورة]],Table4[[Invoice '# رقم الفاتورة]:[Notes ملاحظات]],2,0),"") ->  | G33: =IFERROR(VLOOKUP(Table1[[#This Row],[Invoice '# رقم الفاتورة]],Table4[[Invoice '# رقم الفاتورة]:[Notes ملاحظات]],3,0),"") -> 
D34: =IF(OR(Table1[[#This Row],[Invoice '# رقم الفاتورة]]="",Table1[[#This Row],[Invoice '# رقم الفاتورة]]="Nothing Follows"),"",ROW()-13) ->  | E34: =IF(OR(E33="The End",E33="",E33="No Invoices/s"),"",IF(E33="No Invoices","",IFERROR(VLOOKUP(ROWS($E$14:E34),Invoices!$A$2:$G$300,4,0),"The End"))) ->  | F34: =IFERROR(VLOOKUP(Table1[[#This Row],[Invoice '# رقم الفاتورة]],Table4[[Invoice '# رقم الفاتورة]:[Notes ملاحظات]],2,0),"") ->  | G34: =IFERROR(VLOOKUP(Table1[[#This Row],[Invoice '# رقم الفاتورة]],Table4[[Invoice '# رقم الفاتورة]:[Notes ملاحظات]],3,0),"") -> 
D35: =IF(OR(Table1[[#This Row],[Invoice '# رقم الفاتورة]]="",Table1[[#This Row],[Invoice '# رقم الفاتورة]]="Nothing Follows"),"",ROW()-13) ->  | E35: =IF(OR(E34="The End",E34="",E34="No Invoices/s"),"",IF(E34="No Invoices","",IFERROR(VLOOKUP(ROWS($E$14:E35),Invoices!$A$2:$G$300,4,0),"The End"))) ->  | F35: =IFERROR(VLOOKUP(Table1[[#This Row],[Invoice '# رقم الفاتورة]],Table4[[Invoice '# رقم الفاتورة]:[Notes ملاحظات]],2,0),"") ->  | G35: =IFERROR(VLOOKUP(Table1[[#This Row],[Invoice '# رقم الفاتورة]],Table4[[Invoice '# رقم الفاتورة]:[Notes ملاحظات]],3,0),"") -> 
D36: =IF(OR(Table1[[#This Row],[Invoice '# رقم الفاتورة]]="",Table1[[#This Row],[Invoice '# رقم الفاتورة]]="Nothing Follows"),"",ROW()-13) ->  | E36: =IF(OR(E35="The End",E35="",E35="No Invoices/s"),"",IF(E35="No Invoices","",IFERROR(VLOOKUP(ROWS($E$14:E36),Invoices!$A$2:$G$300,4,0),"The End"))) ->  | F36: =IFERROR(VLOOKUP(Table1[[#This Row],[Invoice '# رقم الفاتورة]],Table4[[Invoice '# رقم الفاتورة]:[Notes ملاحظات]],2,0),"") ->  | G36: =IFERROR(VLOOKUP(Table1[[#This Row],[Invoice '# رقم الفاتورة]],Table4[[Invoice '# رقم الفاتورة]:[Notes ملاحظات]],3,0),"") -> 
D37: =IF(OR(Table1[[#This Row],[Invoice '# رقم الفاتورة]]="",Table1[[#This Row],[Invoice '# رقم الفاتورة]]="Nothing Follows"),"",ROW()-13) ->  | E37: =IF(OR(E36="The End",E36="",E36="No Invoices/s"),"",IF(E36="No Invoices","",IFERROR(VLOOKUP(ROWS($E$14:E63),Invoices!$A$2:$G$300,4,0),"The End"))) ->  | F37: =IFERROR(VLOOKUP(Table1[[#This Row],[Invoice '# رقم الفاتورة]],Table4[[Invoice '# رقم الفاتورة]:[Notes ملاحظات]],2,0),"") ->  | G37: =IFERROR(VLOOKUP(Table1[[#This Row],[Invoice '# رقم الفاتورة]],Table4[[Invoice '# رقم الفاتورة]:[Notes ملاحظات]],3,0),"") -> 
D38: =IF(OR(Table1[[#This Row],[Invoice '# رقم الفاتورة]]="",Table1[[#This Row],[Invoice '# رقم الفاتورة]]="Nothing Follows"),"",ROW()-13) ->  | E38: =IF(OR(E37="The End",E37="",E37="No Invoices/s"),"",IF(E37="No Invoices","",IFERROR(VLOOKUP(ROWS($E$14:E64),Invoices!$A$2:$G$300,4,0),"The End"))) ->  | F38: =IFERROR(VLOOKUP(Table1[[#This Row],[Invoice '# رقم الفاتورة]],Table4[[Invoice '# رقم الفاتورة]:[Notes ملاحظات]],2,0),"") ->  | G38: =IFERROR(VLOOKUP(Table1[[#This Row],[Invoice '# رقم الفاتورة]],Table4[[Invoice '# رقم الفاتورة]:[Notes ملاحظات]],3,0),"") -> 
D39: =IF(OR(Table1[[#This Row],[Invoice '# رقم الفاتورة]]="",Table1[[#This Row],[Invoice '# رقم الفاتورة]]="Nothing Follows"),"",ROW()-13) ->  | E39: =IF(OR(E38="The End",E38="",E38="No Invoices/s"),"",IF(E38="No Invoices","",IFERROR(VLOOKUP(ROWS($E$14:E66),Invoices!$A$2:$G$300,4,0),"The End"))) ->  | F39: =IFERROR(VLOOKUP(Table1[[#This Row],[Invoice '# رقم الفاتورة]],Table4[[Invoice '# رقم الفاتورة]:[Notes ملاحظات]],2,0),"") ->  | G39: =IFERROR(VLOOKUP(Table1[[#This Row],[Invoice '# رقم الفاتورة]],Table4[[Invoice '# رقم الفاتورة]:[Notes ملاحظات]],3,0),"") -> 
D40: =IF(OR(Table1[[#This Row],[Invoice '# رقم الفاتورة]]="",Table1[[#This Row],[Invoice '# رقم الفاتورة]]="Nothing Follows"),"",ROW()-13) ->  | E40: =IF(OR(E39="The End",E39="",E39="No Invoices/s"),"",IF(E39="No Invoices","",IFERROR(VLOOKUP(ROWS($E$14:E67),Invoices!$A$2:$G$300,4,0),"The End"))) ->  | F40: =IFERROR(VLOOKUP(Table1[[#This Row],[Invoice '# رقم الفاتورة]],Table4[[Invoice '# رقم الفاتورة]:[Notes ملاحظات]],2,0),"") ->  | G40: =IFERROR(VLOOKUP(Table1[[#This Row],[Invoice '# رقم الفاتورة]],Table4[[Invoice '# رقم الفاتورة]:[Notes ملاحظات]],3,0),"") -> 
D41: =IF(OR(Table1[[#This Row],[Invoice '# رقم الفاتورة]]="",Table1[[#This Row],[Invoice '# رقم الفاتورة]]="Nothing Follows"),"",ROW()-13) ->  | E41: =IF(OR(E40="The End",E40="",E40="No Invoices/s"),"",IF(E40="No Invoices","",IFERROR(VLOOKUP(ROWS($E$14:E68),Invoices!$A$2:$G$300,4,0),"The End"))) ->  | F41: =IFERROR(VLOOKUP(Table1[[#This Row],[Invoice '# رقم الفاتورة]],Table4[[Invoice '# رقم الفاتورة]:[Notes ملاحظات]],2,0),"") ->  | G41: =IFERROR(VLOOKUP(Table1[[#This Row],[Invoice '# رقم الفاتورة]],Table4[[Invoice '# رقم الفاتورة]:[Notes ملاحظات]],3,0),"") -> 
D42: =IF(OR(Table1[[#This Row],[Invoice '# رقم الفاتورة]]="",Table1[[#This Row],[Invoice '# رقم الفاتورة]]="Nothing Follows"),"",ROW()-13) ->  | E42: =IF(OR(E41="The End",E41="",E41="No Invoices/s"),"",IF(E41="No Invoices","",IFERROR(VLOOKUP(ROWS($E$14:E69),Invoices!$A$2:$G$300,4,0),"The End"))) ->  | F42: =IFERROR(VLOOKUP(Table1[[#This Row],[Invoice '# رقم الفاتورة]],Table4[[Invoice '# رقم الفاتورة]:[Notes ملاحظات]],2,0),"") ->  | G42: =IFERROR(VLOOKUP(Table1[[#This Row],[Invoice '# رقم الفاتورة]],Table4[[Invoice '# رقم الفاتورة]:[Notes ملاحظات]],3,0),"") -> 
D43: =IF(OR(Table1[[#This Row],[Invoice '# رقم الفاتورة]]="",Table1[[#This Row],[Invoice '# رقم الفاتورة]]="Nothing Follows"),"",ROW()-13) ->  | E43: =IF(OR(E42="The End",E42="",E42="No Invoices/s"),"",IF(E42="No Invoices","",IFERROR(VLOOKUP(ROWS($E$14:E70),Invoices!$A$2:$G$300,4,0),"The End"))) ->  | F43: =IFERROR(VLOOKUP(Table1[[#This Row],[Invoice '# رقم الفاتورة]],Table4[[Invoice '# رقم الفاتورة]:[Notes ملاحظات]],2,0),"") ->  | G43: =IFERROR(VLOOKUP(Table1[[#This Row],[Invoice '# رقم الفاتورة]],Table4[[Invoice '# رقم الفاتورة]:[Notes ملاحظات]],3,0),"") -> 
D44: =IF(OR(Table1[[#This Row],[Invoice '# رقم الفاتورة]]="",Table1[[#This Row],[Invoice '# رقم الفاتورة]]="Nothing Follows"),"",ROW()-13) ->  | E44: =IF(OR(E43="The End",E43="",E43="No Invoices/s"),"",IF(E43="No Invoices","",IFERROR(VLOOKUP(ROWS($E$14:E71),Invoices!$A$2:$G$300,4,0),"The End"))) ->  | F44: =IFERROR(VLOOKUP(Table1[[#This Row],[Invoice '# رقم الفاتورة]],Table4[[Invoice '# رقم الفاتورة]:[Notes ملاحظات]],2,0),"") ->  | G44: =IFERROR(VLOOKUP(Table1[[#This Row],[Invoice '# رقم الفاتورة]],Table4[[Invoice '# رقم الفاتورة]:[Notes ملاحظات]],3,0),"") -> 
D45: =IF(OR(Table1[[#This Row],[Invoice '# رقم الفاتورة]]="",Table1[[#This Row],[Invoice '# رقم الفاتورة]]="Nothing Follows"),"",ROW()-13) ->  | E45: =IF(OR(E44="The End",E44="",E44="No Invoices/s"),"",IF(E44="No Invoices","",IFERROR(VLOOKUP(ROWS($E$14:E72),Invoices!$A$2:$G$300,4,0),"The End"))) ->  | F45: =IFERROR(VLOOKUP(Table1[[#This Row],[Invoice '# رقم الفاتورة]],Table4[[Invoice '# رقم الفاتورة]:[Notes ملاحظات]],2,0),"") ->  | G45: =IFERROR(VLOOKUP(Table1[[#This Row],[Invoice '# رقم الفاتورة]],Table4[[Invoice '# رقم الفاتورة]:[Notes ملاحظات]],3,0),"") -> 
D46: =IF(OR(Table1[[#This Row],[Invoice '# رقم الفاتورة]]="",Table1[[#This Row],[Invoice '# رقم الفاتورة]]="Nothing Follows"),"",ROW()-13) ->  | E46: =IF(OR(E45="The End",E45="",E45="No Invoices/s"),"",IF(E45="No Invoices","",IFERROR(VLOOKUP(ROWS($E$14:E73),Invoices!$A$2:$G$300,4,0),"The End"))) ->  | F46: =IFERROR(VLOOKUP(Table1[[#This Row],[Invoice '# رقم الفاتورة]],Table4[[Invoice '# رقم الفاتورة]:[Notes ملاحظات]],2,0),"") ->  | G46: =IFERROR(VLOOKUP(Table1[[#This Row],[Invoice '# رقم الفاتورة]],Table4[[Invoice '# رقم الفاتورة]:[Notes ملاحظات]],3,0),"") -> 
D47: =IF(OR(Table1[[#This Row],[Invoice '# رقم الفاتورة]]="",Table1[[#This Row],[Invoice '# رقم الفاتورة]]="Nothing Follows"),"",ROW()-13) ->  | E47: =IF(OR(E46="The End",E46="",E46="No Invoices/s"),"",IF(E46="No Invoices","",IFERROR(VLOOKUP(ROWS($E$14:E74),Invoices!$A$2:$G$300,4,0),"The End"))) ->  | F47: =IFERROR(VLOOKUP(Table1[[#This Row],[Invoice '# رقم الفاتورة]],Table4[[Invoice '# رقم الفاتورة]:[Notes ملاحظات]],2,0),"") ->  | G47: =IFERROR(VLOOKUP(Table1[[#This Row],[Invoice '# رقم الفاتورة]],Table4[[Invoice '# رقم الفاتورة]:[Notes ملاحظات]],3,0),"") -> 
D48: =IF(OR(Table1[[#This Row],[Invoice '# رقم الفاتورة]]="",Table1[[#This Row],[Invoice '# رقم الفاتورة]]="Nothing Follows"),"",ROW()-13) ->  | E48: =IF(OR(E47="The End",E47="",E47="No Invoices/s"),"",IF(E47="No Invoices","",IFERROR(VLOOKUP(ROWS($E$14:E75),Invoices!$A$2:$G$300,4,0),"The End"))) ->  | F48: =IFERROR(VLOOKUP(Table1[[#This Row],[Invoice '# رقم الفاتورة]],Table4[[Invoice '# رقم الفاتورة]:[Notes ملاحظات]],2,0),"") ->  | G48: =IFERROR(VLOOKUP(Table1[[#This Row],[Invoice '# رقم الفاتورة]],Table4[[Invoice '# رقم الفاتورة]:[Notes ملاحظات]],3,0),"") -> 
D49: =IF(OR(Table1[[#This Row],[Invoice '# رقم الفاتورة]]="",Table1[[#This Row],[Invoice '# رقم الفاتورة]]="Nothing Follows"),"",ROW()-13) ->  | E49: =IF(OR(E48="The End",E48="",E48="No Invoices/s"),"",IF(E48="No Invoices","",IFERROR(VLOOKUP(ROWS($E$14:E76),Invoices!$A$2:$G$300,4,0),"The End"))) ->  | F49: =IFERROR(VLOOKUP(Table1[[#This Row],[Invoice '# رقم الفاتورة]],Table4[[Invoice '# رقم الفاتورة]:[Notes ملاحظات]],2,0),"") ->  | G49: =IFERROR(VLOOKUP(Table1[[#This Row],[Invoice '# رقم الفاتورة]],Table4[[Invoice '# رقم الفاتورة]:[Notes ملاحظات]],3,0),"") -> 
D50: =IF(OR(Table1[[#This Row],[Invoice '# رقم الفاتورة]]="",Table1[[#This Row],[Invoice '# رقم الفاتورة]]="Nothing Follows"),"",ROW()-13) ->  | E50: =IF(OR(E49="The End",E49="",E49="No Invoices/s"),"",IF(E49="No Invoices","",IFERROR(VLOOKUP(ROWS($E$14:E77),Invoices!$A$2:$G$300,4,0),"The End"))) ->  | F50: =IFERROR(VLOOKUP(Table1[[#This Row],[Invoice '# رقم الفاتورة]],Table4[[Invoice '# رقم الفاتورة]:[Notes ملاحظات]],2,0),"") ->  | G50: =IFERROR(VLOOKUP(Table1[[#This Row],[Invoice '# رقم الفاتورة]],Table4[[Invoice '# رقم الفاتورة]:[Notes ملاحظات]],3,0),"") -> 
D51: =IF(OR(Table1[[#This Row],[Invoice '# رقم الفاتورة]]="",Table1[[#This Row],[Invoice '# رقم الفاتورة]]="Nothing Follows"),"",ROW()-13) ->  | E51: =IF(OR(E50="The End",E50="",E50="No Invoices/s"),"",IF(E50="No Invoices","",IFERROR(VLOOKUP(ROWS($E$14:E78),Invoices!$A$2:$G$300,4,0),"The End"))) ->  | F51: =IFERROR(VLOOKUP(Table1[[#This Row],[Invoice '# رقم الفاتورة]],Table4[[Invoice '# رقم الفاتورة]:[Notes ملاحظات]],2,0),"") ->  | G51: =IFERROR(VLOOKUP(Table1[[#This Row],[Invoice '# رقم الفاتورة]],Table4[[Invoice '# رقم الفاتورة]:[Notes ملاحظات]],3,0),"") -> 
D52: =IF(OR(Table1[[#This Row],[Invoice '# رقم الفاتورة]]="",Table1[[#This Row],[Invoice '# رقم الفاتورة]]="Nothing Follows"),"",ROW()-13) ->  | E52: =IF(OR(E51="The End",E51="",E51="No Invoices/s"),"",IF(E51="No Invoices","",IFERROR(VLOOKUP(ROWS($E$14:E79),Invoices!$A$2:$G$300,4,0),"The End"))) ->  | F52: =IFERROR(VLOOKUP(Table1[[#This Row],[Invoice '# رقم الفاتورة]],Table4[[Invoice '# رقم الفاتورة]:[Notes ملاحظات]],2,0),"") ->  | G52: =IFERROR(VLOOKUP(Table1[[#This Row],[Invoice '# رقم الفاتورة]],Table4[[Invoice '# رقم الفاتورة]:[Notes ملاحظات]],3,0),"") -> 
D53: =IF(OR(Table1[[#This Row],[Invoice '# رقم الفاتورة]]="",Table1[[#This Row],[Invoice '# رقم الفاتورة]]="Nothing Follows"),"",ROW()-13) ->  | E53: =IF(OR(E52="The End",E52="",E52="No Invoices/s"),"",IF(E52="No Invoices","",IFERROR(VLOOKUP(ROWS($E$14:E80),Invoices!$A$2:$G$300,4,0),"The End"))) ->  | F53: =IFERROR(VLOOKUP(Table1[[#This Row],[Invoice '# رقم الفاتورة]],Table4[[Invoice '# رقم الفاتورة]:[Notes ملاحظات]],2,0),"") ->  | G53: =IFERROR(VLOOKUP(Table1[[#This Row],[Invoice '# رقم الفاتورة]],Table4[[Invoice '# رقم الفاتورة]:[Notes ملاحظات]],3,0),"") -> 
D54: =IF(OR(Table1[[#This Row],[Invoice '# رقم الفاتورة]]="",Table1[[#This Row],[Invoice '# رقم الفاتورة]]="Nothing Follows"),"",ROW()-13) ->  | E54: =IF(OR(E53="The End",E53="",E53="No Invoices/s"),"",IF(E53="No Invoices","",IFERROR(VLOOKUP(ROWS($E$14:E81),Invoices!$A$2:$G$300,4,0),"The End"))) ->  | F54: =IFERROR(VLOOKUP(Table1[[#This Row],[Invoice '# رقم الفاتورة]],Table4[[Invoice '# رقم الفاتورة]:[Notes ملاحظات]],2,0),"") ->  | G54: =IFERROR(VLOOKUP(Table1[[#This Row],[Invoice '# رقم الفاتورة]],Table4[[Invoice '# رقم الفاتورة]:[Notes ملاحظات]],3,0),"") -> 
D55: =IF(OR(Table1[[#This Row],[Invoice '# رقم الفاتورة]]="",Table1[[#This Row],[Invoice '# رقم الفاتورة]]="Nothing Follows"),"",ROW()-13) ->  | E55: =IF(OR(E54="The End",E54="",E54="No Invoices/s"),"",IF(E54="No Invoices","",IFERROR(VLOOKUP(ROWS($E$14:E82),Invoices!$A$2:$G$300,4,0),"The End"))) ->  | F55: =IFERROR(VLOOKUP(Table1[[#This Row],[Invoice '# رقم الفاتورة]],Table4[[Invoice '# رقم الفاتورة]:[Notes ملاحظات]],2,0),"") ->  | G55: =IFERROR(VLOOKUP(Table1[[#This Row],[Invoice '# رقم الفاتورة]],Table4[[Invoice '# رقم الفاتورة]:[Notes ملاحظات]],3,0),"") -> 
D56: =IF(OR(Table1[[#This Row],[Invoice '# رقم الفاتورة]]="",Table1[[#This Row],[Invoice '# رقم الفاتورة]]="Nothing Follows"),"",ROW()-13) ->  | E56: =IF(OR(E55="The End",E55="",E55="No Invoices/s"),"",IF(E55="No Invoices","",IFERROR(VLOOKUP(ROWS($E$14:E83),Invoices!$A$2:$G$300,4,0),"The End"))) ->  | F56: =IFERROR(VLOOKUP(Table1[[#This Row],[Invoice '# رقم الفاتورة]],Table4[[Invoice '# رقم الفاتورة]:[Notes ملاحظات]],2,0),"") ->  | G56: =IFERROR(VLOOKUP(Table1[[#This Row],[Invoice '# رقم الفاتورة]],Table4[[Invoice '# رقم الفاتورة]:[Notes ملاحظات]],3,0),"") -> 
D57: =IF(OR(Table1[[#This Row],[Invoice '# رقم الفاتورة]]="",Table1[[#This Row],[Invoice '# رقم الفاتورة]]="Nothing Follows"),"",ROW()-13) ->  | E57: =IF(OR(E56="The End",E56="",E56="No Invoices/s"),"",IF(E56="No Invoices","",IFERROR(VLOOKUP(ROWS($E$14:E84),Invoices!$A$2:$G$300,4,0),"The End"))) ->  | F57: =IFERROR(VLOOKUP(Table1[[#This Row],[Invoice '# رقم الفاتورة]],Table4[[Invoice '# رقم الفاتورة]:[Notes ملاحظات]],2,0),"") ->  | G57: =IFERROR(VLOOKUP(Table1[[#This Row],[Invoice '# رقم الفاتورة]],Table4[[Invoice '# رقم الفاتورة]:[Notes ملاحظات]],3,0),"") -> 
D58: =IF(OR(Table1[[#This Row],[Invoice '# رقم الفاتورة]]="",Table1[[#This Row],[Invoice '# رقم الفاتورة]]="Nothing Follows"),"",ROW()-13) ->  | E58: =IF(OR(E57="The End",E57="",E57="No Invoices/s"),"",IF(E57="No Invoices","",IFERROR(VLOOKUP(ROWS($E$14:E85),Invoices!$A$2:$G$300,4,0),"The End"))) ->  | F58: =IFERROR(VLOOKUP(Table1[[#This Row],[Invoice '# رقم الفاتورة]],Table4[[Invoice '# رقم الفاتورة]:[Notes ملاحظات]],2,0),"") ->  | G58: =IFERROR(VLOOKUP(Table1[[#This Row],[Invoice '# رقم الفاتورة]],Table4[[Invoice '# رقم الفاتورة]:[Notes ملاحظات]],3,0),"") -> 
D59: =IF(OR(Table1[[#This Row],[Invoice '# رقم الفاتورة]]="",Table1[[#This Row],[Invoice '# رقم الفاتورة]]="Nothing Follows"),"",ROW()-13) ->  | E59: =IF(OR(E58="The End",E58="",E58="No Invoices/s"),"",IF(E58="No Invoices","",IFERROR(VLOOKUP(ROWS($E$14:E86),Invoices!$A$2:$G$300,4,0),"The End"))) ->  | F59: =IFERROR(VLOOKUP(Table1[[#This Row],[Invoice '# رقم الفاتورة]],Table4[[Invoice '# رقم الفاتورة]:[Notes ملاحظات]],2,0),"") ->  | G59: =IFERROR(VLOOKUP(Table1[[#This Row],[Invoice '# رقم الفاتورة]],Table4[[Invoice '# رقم الفاتورة]:[Notes ملاحظات]],3,0),"") -> 
D60: =IF(OR(Table1[[#This Row],[Invoice '# رقم الفاتورة]]="",Table1[[#This Row],[Invoice '# رقم الفاتورة]]="Nothing Follows"),"",ROW()-13) ->  | E60: =IF(OR(E59="The End",E59="",E59="No Invoices/s"),"",IF(E59="No Invoices","",IFERROR(VLOOKUP(ROWS($E$14:E87),Invoices!$A$2:$G$300,4,0),"The End"))) ->  | F60: =IFERROR(VLOOKUP(Table1[[#This Row],[Invoice '# رقم الفاتورة]],Table4[[Invoice '# رقم الفاتورة]:[Notes ملاحظات]],2,0),"") ->  | G60: =IFERROR(VLOOKUP(Table1[[#This Row],[Invoice '# رقم الفاتورة]],Table4[[Invoice '# رقم الفاتورة]:[Notes ملاحظات]],3,0),"") -> 
D61: =IF(OR(Table1[[#This Row],[Invoice '# رقم الفاتورة]]="",Table1[[#This Row],[Invoice '# رقم الفاتورة]]="Nothing Follows"),"",ROW()-13) ->  | E61: =IF(OR(E60="The End",E60="",E60="No Invoices/s"),"",IF(E60="No Invoices","",IFERROR(VLOOKUP(ROWS($E$14:E88),Invoices!$A$2:$G$300,4,0),"The End"))) ->  | F61: =IFERROR(VLOOKUP(Table1[[#This Row],[Invoice '# رقم الفاتورة]],Table4[[Invoice '# رقم الفاتورة]:[Notes ملاحظات]],2,0),"") ->  | G61: =IFERROR(VLOOKUP(Table1[[#This Row],[Invoice '# رقم الفاتورة]],Table4[[Invoice '# رقم الفاتورة]:[Notes ملاحظات]],3,0),"") -> 
D62: =IF(OR(Table1[[#This Row],[Invoice '# رقم الفاتورة]]="",Table1[[#This Row],[Invoice '# رقم الفاتورة]]="Nothing Follows"),"",ROW()-13) ->  | E62: =IF(OR(E61="The End",E61="",E61="No Invoices/s"),"",IF(E61="No Invoices","",IFERROR(VLOOKUP(ROWS($E$14:E89),Invoices!$A$2:$G$300,4,0),"The End"))) ->  | F62: =IFERROR(VLOOKUP(Table1[[#This Row],[Invoice '# رقم الفاتورة]],Table4[[Invoice '# رقم الفاتورة]:[Notes ملاحظات]],2,0),"") ->  | G62: =IFERROR(VLOOKUP(Table1[[#This Row],[Invoice '# رقم الفاتورة]],Table4[[Invoice '# رقم الفاتورة]:[Notes ملاحظات]],3,0),"") -> 
D63: =IF(OR(Table1[[#This Row],[Invoice '# رقم الفاتورة]]="",Table1[[#This Row],[Invoice '# رقم الفاتورة]]="Nothing Follows"),"",ROW()-13) ->  | E63: =IF(OR(E62="The End",E62="",E62="No Invoices/s"),"",IF(E62="No Invoices","",IFERROR(VLOOKUP(ROWS($E$14:E90),Invoices!$A$2:$G$300,4,0),"The End"))) ->  | F63: =IFERROR(VLOOKUP(Table1[[#This Row],[Invoice '# رقم الفاتورة]],Table4[[Invoice '# رقم الفاتورة]:[Notes ملاحظات]],2,0),"") ->  | G63: =IFERROR(VLOOKUP(Table1[[#This Row],[Invoice '# رقم الفاتورة]],Table4[[Invoice '# رقم الفاتورة]:[Notes ملاحظات]],3,0),"") -> 
E64: =COUNT(Table1['#])-1& " invoice/s" -> 16 invoice/s | F64: =SUBTOTAL(109,Table1[Invoice Amount مبلغ الفاتورة]) -> 39036.82
D66: Payments الدفعات
D67: #1 | E67: Payment Date تاريخ الدفعة | F67: Amount مبلغ | G67: Notes ملاحظات
D68: =IF(OR(E67="No Payment/s",E67="The End"),"",IF(E67="","",ROW()-67)) -> 1 | E68: =IF(Table2[[#This Row],['#1]]="","",IFERROR(VLOOKUP(Table2[[#This Row],['#1]],Payments!$A$2:$F$51,4,0),"No Payment/s")) -> 2017-10-26 | F68: =IFERROR(VLOOKUP(Table2[[#This Row],['#1]],Payments!$A$2:$F$51,5,0),"") -> 3540.23 | G68: =IFERROR(VLOOKUP(Table2[[#This Row],['#1]],Payments!$A$2:$F$51,6,0),"") -> INV 28
D69: 2 | E69: =IF(OR(Table2[[#This Row],['#1]]="",E68="The End",E68="Nothing Follows"),"",IFERROR(VLOOKUP(Table2[[#This Row],['#1]],Payments!$A$2:$F$51,4,0),"The End")) -> 2017-10-26 | F69: =IFERROR(VLOOKUP(Table2[[#This Row],['#1]],Payments!$A$2:$F$51,5,0),"") -> 1523.63 | G69: =IFERROR(VLOOKUP(Table2[[#This Row],['#1]],Payments!$A$2:$F$51,6,0),"") -> INV 27
D70: 3 | E70: =IF(OR(Table2[[#This Row],['#1]]="",E69="The End",E69="Nothing Follows"),"",IFERROR(VLOOKUP(Table2[[#This Row],['#1]],Payments!$A$2:$F$51,4,0),"The End")) -> 2018-01-17 | F70: =IFERROR(VLOOKUP(Table2[[#This Row],['#1]],Payments!$A$2:$F$51,5,0),"") -> 2344.96 | G70: =IFERROR(VLOOKUP(Table2[[#This Row],['#1]],Payments!$A$2:$F$51,6,0),"") -> INV 65
D71: 4 | E71: =IF(OR(Table2[[#This Row],['#1]]="",E70="The End",E70="Nothing Follows"),"",IFERROR(VLOOKUP(Table2[[#This Row],['#1]],Payments!$A$2:$F$51,4,0),"The End")) -> 2018-01-17 | F71: =IFERROR(VLOOKUP(Table2[[#This Row],['#1]],Payments!$A$2:$F$51,5,0),"") -> 2008 | G71: =IFERROR(VLOOKUP(Table2[[#This Row],['#1]],Payments!$A$2:$F$51,6,0),"") -> INV 41
D72: 5 | E72: =IF(OR(Table2[[#This Row],['#1]]="",E71="The End",E71="Nothing Follows"),"",IFERROR(VLOOKUP(Table2[[#This Row],['#1]],Payments!$A$2:$F$51,4,0),"The End")) -> 2018-01-17 | F72: =IFERROR(VLOOKUP(Table2[[#This Row],['#1]],Payments!$A$2:$F$51,5,0),"") -> 998.26 | G72: =IFERROR(VLOOKUP(Table2[[#This Row],['#1]],Payments!$A$2:$F$51,6,0),"") -> INV 23268
D73: 6 | E73: =IF(OR(Table2[[#This Row],['#1]]="",E72="The End",E72="Nothing Follows"),"",IFERROR(VLOOKUP(Table2[[#This Row],['#1]],Payments!$A$2:$F$51,4,0),"The End")) -> 2018-01-17 | F73: =IFERROR(VLOOKUP(Table2[[#This Row],['#1]],Payments!$A$2:$F$51,5,0),"") -> 637 | G73: =IFERROR(VLOOKUP(Table2[[#This Row],['#1]],Payments!$A$2:$F$51,6,0),"") -> INV 18
D74: 7 | E74: =IF(OR(Table2[[#This Row],['#1]]="",E73="The End",E73="Nothing Follows"),"",IFERROR(VLOOKUP(Table2[[#This Row],['#1]],Payments!$A$2:$F$51,4,0),"The End")) -> 2018-03-10 | F74: =IFERROR(VLOOKUP(Table2[[#This Row],['#1]],Payments!$A$2:$F$51,5,0),"") -> 3782.76 | G74: =IFERROR(VLOOKUP(Table2[[#This Row],['#1]],Payments!$A$2:$F$51,6,0),"") -> INV 12
D75: 8 | E75: =IF(OR(Table2[[#This Row],['#1]]="",E74="The End",E74="Nothing Follows"),"",IFERROR(VLOOKUP(Table2[[#This Row],['#1]],Payments!$A$2:$F$51,4,0),"The End")) -> 2018-04-28 | F75: =IFERROR(VLOOKUP(Table2[[#This Row],['#1]],Payments!$A$2:$F$51,5,0),"") -> 2354.63 | G75: =IFERROR(VLOOKUP(Table2[[#This Row],['#1]],Payments!$A$2:$F$51,6,0),"") -> INV 102
D76: 9 | E76: =IF(OR(Table2[[#This Row],['#1]]="",E75="The End",E75="Nothing Follows"),"",IFERROR(VLOOKUP(Table2[[#This Row],['#1]],Payments!$A$2:$F$51,4,0),"The End")) -> 2018-04-28 | F76: =IFERROR(VLOOKUP(Table2[[#This Row],['#1]],Payments!$A$2:$F$51,5,0),"") -> 2006.55 | G76: =IFERROR(VLOOKUP(Table2[[#This Row],['#1]],Payments!$A$2:$F$51,6,0),"") -> INV 101
D77: 10 | E77: =IF(OR(Table2[[#This Row],['#1]]="",E76="The End",E76="Nothing Follows"),"",IFERROR(VLOOKUP(Table2[[#This Row],['#1]],Payments!$A$2:$F$51,4,0),"The End")) -> 2018-04-28 | F77: =IFERROR(VLOOKUP(Table2[[#This Row],['#1]],Payments!$A$2:$F$51,5,0),"") -> 1250.34 | G77: =IFERROR(VLOOKUP(Table2[[#This Row],['#1]],Payments!$A$2:$F$51,6,0),"") -> INV 35
D78: 11 | E78: =IF(OR(Table2[[#This Row],['#1]]="",E77="The End",E77="Nothing Follows"),"",IFERROR(VLOOKUP(Table2[[#This Row],['#1]],Payments!$A$2:$F$51,4,0),"The End")) -> 2018-05-31 | F78: =IFERROR(VLOOKUP(Table2[[#This Row],['#1]],Payments!$A$2:$F$51,5,0),"") -> 2956.08 | G78: =IFERROR(VLOOKUP(Table2[[#This Row],['#1]],Payments!$A$2:$F$51,6,0),"") -> INV 4991
D79: 12 | E79: =IF(OR(Table2[[#This Row],['#1]]="",E78="The End",E78="Nothing Follows"),"",IFERROR(VLOOKUP(Table2[[#This Row],['#1]],Payments!$A$2:$F$51,4,0),"The End")) -> 2018-06-26 | F79: =IFERROR(VLOOKUP(Table2[[#This Row],['#1]],Payments!$A$2:$F$51,5,0),"") -> 1576.58 | G79: =IFERROR(VLOOKUP(Table2[[#This Row],['#1]],Payments!$A$2:$F$51,6,0),"") -> INV 4600
D80: 13 | E80: =IF(OR(Table2[[#This Row],['#1]]="",E79="The End",E79="Nothing Follows"),"",IFERROR(VLOOKUP(Table2[[#This Row],['#1]],Payments!$A$2:$F$51,4,0),"The End")) -> 2018-08-09 | F80: =IFERROR(VLOOKUP(Table2[[#This Row],['#1]],Payments!$A$2:$F$51,5,0),"") -> 2813.61 | G80: =IFERROR(VLOOKUP(Table2[[#This Row],['#1]],Payments!$A$2:$F$51,6,0),"") -> INV 4810
D81: 14 | E81: =IF(OR(Table2[[#This Row],['#1]]="",E80="The End",E80="Nothing Follows"),"",IFERROR(VLOOKUP(Table2[[#This Row],['#1]],Payments!$A$2:$F$51,4,0),"The End")) -> 2018-10-10 | F81: =IFERROR(VLOOKUP(Table2[[#This Row],['#1]],Payments!$A$2:$F$51,5,0),"") -> 7169.66 | G81: =IFERROR(VLOOKUP(Table2[[#This Row],['#1]],Payments!$A$2:$F$51,6,0),"") -> INV 4999
D82: 15 | E82: =IF(OR(Table2[[#This Row],['#1]]="",E81="The End",E81="Nothing Follows"),"",IFERROR(VLOOKUP(Table2[[#This Row],['#1]],Payments!$A$2:$F$51,4,0),"The End")) -> 2018-10-10 | F82: =IFERROR(VLOOKUP(Table2[[#This Row],['#1]],Payments!$A$2:$F$51,5,0),"") -> 2204.48 | G82: =IFERROR(VLOOKUP(Table2[[#This Row],['#1]],Payments!$A$2:$F$51,6,0),"") -> INV 5001
D83: 16 | E83: =IF(OR(Table2[[#This Row],['#1]]="",E82="The End",E82="Nothing Follows"),"",IFERROR(VLOOKUP(Table2[[#This Row],['#1]],Payments!$A$2:$F$51,4,0),"The End")) -> The End | F83: =IFERROR(VLOOKUP(Table2[[#This Row],['#1]],Payments!$A$2:$F$51,5,0),"") ->  | G83: =IFERROR(VLOOKUP(Table2[[#This Row],['#1]],Payments!$A$2:$F$51,6,0),"") -> 
E84: =IF(OR(Table2[[#This Row],['#1]]="",E83="The End",E83="Nothing Follows"),"",IFERROR(VLOOKUP(Table2[[#This Row],['#1]],Payments!$A$2:$F$51,4,0),"The End")) ->  | F84: =IFERROR(VLOOKUP(Table2[[#This Row],['#1]],Payments!$A$2:$F$51,5,0),"") ->  | G84: =IFERROR(VLOOKUP(Table2[[#This Row],['#1]],Payments!$A$2:$F$51,6,0),"") -> 
E85: =IF(OR(Table2[[#This Row],['#1]]="",E84="The End",E84="Nothing Follows"),"",IFERROR(VLOOKUP(Table2[[#This Row],['#1]],Payments!$A$2:$F$51,4,0),"The End")) ->  | F85: =IFERROR(VLOOKUP(Table2[[#This Row],['#1]],Payments!$A$2:$F$51,5,0),"") ->  | G85: =IFERROR(VLOOKUP(Table2[[#This Row],['#1]],Payments!$A$2:$F$51,6,0),"") -> 
E86: =IF(OR(Table2[[#This Row],['#1]]="",E85="The End",E85="Nothing Follows"),"",IFERROR(VLOOKUP(Table2[[#This Row],['#1]],Payments!$A$2:$F$51,4,0),"The End")) ->  | F86: =IFERROR(VLOOKUP(Table2[[#This Row],['#1]],Payments!$A$2:$F$51,5,0),"") ->  | G86: =IFERROR(VLOOKUP(Table2[[#This Row],['#1]],Payments!$A$2:$F$51,6,0),"") -> 
E87: =IF(Table2[[#This Row],['#1]]="","",IFERROR(VLOOKUP(Table2[[#This Row],['#1]],Payments!$A$2:$F$51,4,0),"Nothing Follows")) ->  | F87: =IFERROR(VLOOKUP(Table2[[#This Row],['#1]],Payments!$A$2:$F$51,5,0),"") ->  | G87: =IFERROR(VLOOKUP(Table2[[#This Row],['#1]],Payments!$A$2:$F$51,6,0),"") -> 
E88: =IF(Table2[[#This Row],['#1]]="","",IFERROR(VLOOKUP(Table2[[#This Row],['#1]],Payments!$A$2:$F$51,4,0),"Nothing Follows")) ->  | F88: =IFERROR(VLOOKUP(Table2[[#This Row],['#1]],Payments!$A$2:$F$51,5,0),"") ->  | G88: =IFERROR(VLOOKUP(Table2[[#This Row],['#1]],Payments!$A$2:$F$51,6,0),"") -> 
E89: =IF(Table2[[#This Row],['#1]]="","",IFERROR(VLOOKUP(Table2[[#This Row],['#1]],Payments!$A$2:$F$51,4,0),"Nothing Follows")) ->  | F89: =IFERROR(VLOOKUP(Table2[[#This Row],['#1]],Payments!$A$2:$F$51,5,0),"") ->  | G89: =IFERROR(VLOOKUP(Table2[[#This Row],['#1]],Payments!$A$2:$F$51,6,0),"") -> 
E90: =COUNT(Table2['#1])-1& " payment/s" -> 15 payment/s | F90: =SUBTOTAL(109,Table2[] Table2[ Amount مبلغ ] ) -> 37166.77
D92: Total Invoices | F92: =Table1[[#Totals],[Invoice Amount مبلغ الفاتورة]] -> 39036.82
D93: Payments | F93: =Table2[[#Totals],[ Amount مبلغ ]] -> 37166.77
D94: Balance | F94: =F92-F93 -> 1870.05

Sheet NewInvoice
A1: NEW INVOICE | B1: Naief Akeel Alzofairy Est. Forever Living Products Sole Agent in the Middle East | H1: مؤسسة نايف عقيل الظفيري الوكيل الحصري لشركة فورايفر ليفينج الشرق الاوسط
B2: Address: | C2: Riyadh, Sulaymaniyeh, Mussa Bin Nusair St | H2: العنوان: الرياض - السليمانية - شارع موسى بن نصير
B3: Phone: | C3: 0112151970 | D3: Fax: 0112151971 | H3: فاكس: 0112151971 | J3: هاتف: 0112151970
B4: VAT Registration No: :300095228700003 | I4: الرقم الضريبي :300095228700003
B6: Invoice No. | D6: 23 | E6: فاتورة رقم: | G6: Invoice Date: | H6: =TODAY() -> 2018-11-19 | K6: تـــــــــــــــــــــــــــــــاريـــــــــــــــــــخ الفاتورة:
B7: Customer Name: | D7: Dallah Healthcare Co. / Dallah Hospital | E7: اسم العـميـــــل: | G7: FBO ID: | H7: =IF(D7="","",VLOOKUP(D7,Customers!$C$2:$Q$601,2,0)) -> 775962 | K7: رقـــــــــــــــــم الــــــــــــوكـــــــــــــــالـــــــــــــة:
B8: Customer Address: | D8: =IF(D7="","",VLOOKUP(D7,Customers!$C$2:$Q$601,10,0)) -> King Fahd Road, Alnakheel Street , Riyadh, KSA | E8: عنوان العميل | G8: VAT Registration | H8: =IF(D7="","",VLOOKUP(D7,Customers!$C$2:$N$601,7,0)) -> 300049358500003 | K8: الرقــم الضريبي للعميــــل:
F10: 0.48
B11: Code | C11: Qty | D11: DESCRIPTION | E11: U. Price | F11: Discount | G11: Net U. Price | H11: TOTAL | I11: VAT | J11: TOTAL with VAT | K11: U. Sale Price+VAT | L11: U.CC | M11: Tot. CC
B12: 15 | C12: 14 | D12: =IF(Table7[[#This Row],[Code]]="","",VLOOKUP(Table7[[#This Row],[Code]],Codes!$B$2:$E$2231,2,0)) -> Forever Alove Vera Gel | E12: =IF(Table7[[#This Row],[Code]]="","",VLOOKUP(Table7[[#This Row],[Code]],Codes!$B$2:$E$2231,3,0)) -> 98 | F12: =IF(OR(Table7[[#This Row],[Code]]="",Table7[[#This Row],[Qty]]=""),"",Table7[U. Price]*$F$10) -> 47.04 | G12: =IF(OR(Table7[[#This Row],[Code]]="",Table7[[#This Row],[Qty]]=""),"",Table7[U. Price]-Table7[Discount ]) -> 50.96 | H12: =IF(OR(Table7[[#This Row],[Code]]="",Table7[[#This Row],[Qty]]=""),"",Table7[Qty]*Table7[Net U. Price]) -> 713.44 | I12: =IF(OR(Table7[[#This Row],[Code]]="",Table7[[#This Row],[Qty]]=""),"",Table7[TOTAL]*0.05) -> 35.672 | J12: =IF(OR(Table7[[#This Row],[Code]]="",Table7[[#This Row],[Qty]]=""),"",Table7[TOTAL]+Table7[VAT]) -> 749.112 | K12: =IF(OR(Table7[[#This Row],[Code]]="",Table7[[#This Row],[Qty]]=""),"",E12*1.05) -> 102.9 | L12: =IF(Table7[[#This Row],[Code]]="","",VLOOKUP(Table7[[#This Row],[Code]],Codes!$B$2:$E$2231,4,0)) -> 0.113 | M12: =IF(OR(Table7[[#This Row],[Code]]="",Table7[[#This Row],[Qty]]=""),"",Table7[[#This Row],[Qty]]*Table7[[#This Row],[U.CC]]) -> 1.582
D13: =IF(Table7[[#This Row],[Code]]="","",VLOOKUP(Table7[[#This Row],[Code]],Codes!$B$2:$E$2231,2,0)) ->  | E13: =IF(Table7[[#This Row],[Code]]="","",VLOOKUP(Table7[[#This Row],[Code]],Codes!$B$2:$E$2231,3,0)) ->  | F13: =IF(OR(Table7[[#This Row],[Code]]="",Table7[[#This Row],[Qty]]=""),"",Table7[U. Price]*$F$10) ->  | G13: =IF(OR(Table7[[#This Row],[Code]]="",Table7[[#This Row],[Qty]]=""),"",Table7[U. Price]-Table7[Discount ]) ->  | H13: =IF(OR(Table7[[#This Row],[Code]]="",Table7[[#This Row],[Qty]]=""),"",Table7[Qty]*Table7[Net U. Price]) ->  | I13: =IF(OR(Table7[[#This Row],[Code]]="",Table7[[#This Row],[Qty]]=""),"",Table7[TOTAL]*0.05) ->  | J13: =IF(OR(Table7[[#This Row],[Code]]="",Table7[[#This Row],[Qty]]=""),"",Table7[TOTAL]+Table7[VAT]) ->  | K13: =IF(OR(Table7[[#This Row],[Code]]="",Table7[[#This Row],[Qty]]=""),"",E13*1.05) ->  | L13: =IF(Table7[[#This Row],[Code]]="","",VLOOKUP(Table7[[#This Row],[Code]],Codes!$B$2:$E$2231,4,0)) ->  | M13: =IF(OR(Table7[[#This Row],[Code]]="",Table7[[#This Row],[Qty]]=""),"",Table7[[#This Row],[Qty]]*Table7[[#This Row],[U.CC]]) -> 
D14: =IF(Table7[[#This Row],[Code]]="","",VLOOKUP(Table7[[#This Row],[Code]],Codes!$B$2:$E$2231,2,0)) ->  | E14: =IF(Table7[[#This Row],[Code]]="","",VLOOKUP(Table7[[#This Row],[Code]],Codes!$B$2:$E$2231,3,0)) ->  | F14: =IF(OR(Table7[[#This Row],[Code]]="",Table7[[#This Row],[Qty]]=""),"",Table7[U. Price]*$F$10) ->  | G14: =IF(OR(Table7[[#This Row],[Code]]="",Table7[[#This Row],[Qty]]=""),"",Table7[U. Price]-Table7[Discount ]) ->  | H14: =IF(OR(Table7[[#This Row],[Code]]="",Table7[[#This Row],[Qty]]=""),"",Table7[Qty]*Table7[Net U. Price]) ->  | I14: =IF(OR(Table7[[#This Row],[Code]]="",Table7[[#This Row],[Qty]]=""),"",Table7[TOTAL]*0.05) ->  | J14: =IF(OR(Table7[[#This Row],[Code]]="",Table7[[#This Row],[Qty]]=""),"",Table7[TOTAL]+Table7[VAT]) ->  | K14: =IF(OR(Table7[[#This Row],[Code]]="",Table7[[#This Row],[Qty]]=""),"",E14*1.05) ->  | L14: =IF(Table7[[#This Row],[Code]]="","",VLOOKUP(Table7[[#This Row],[Code]],Codes!$B$2:$E$2231,4,0)) ->  | M14: =IF(OR(Table7[[#This Row],[Code]]="",Table7[[#This Row],[Qty]]=""),"",Table7[[#This Row],[Qty]]*Table7[[#This Row],[U.CC]]) -> 
D15: =IF(Table7[[#This Row],[Code]]="","",VLOOKUP(Table7[[#This Row],[Code]],Codes!$B$2:$E$2231,2,0)) ->  | E15: =IF(Table7[[#This Row],[Code]]="","",VLOOKUP(Table7[[#This Row],[Code]],Codes!$B$2:$E$2231,3,0)) ->  | F15: =IF(OR(Table7[[#This Row],[Code]]="",Table7[[#This Row],[Qty]]=""),"",Table7[U. Price]*$F$10) ->  | G15: =IF(OR(Table7[[#This Row],[Code]]="",Table7[[#This Row],[Qty]]=""),"",Table7[U. Price]-Table7[Discount ]) ->  | H15: =IF(OR(Table7[[#This Row],[Code]]="",Table7[[#This Row],[Qty]]=""),"",Table7[Qty]*Table7[Net U. Price]) ->  | I15: =IF(OR(Table7[[#This Row],[Code]]="",Table7[[#This Row],[Qty]]=""),"",Table7[TOTAL]*0.05) ->  | J15: =IF(OR(Table7[[#This Row],[Code]]="",Table7[[#This Row],[Qty]]=""),"",Table7[TOTAL]+Table7[VAT]) ->  | K15: =IF(OR(Table7[[#This Row],[Code]]="",Table7[[#This Row],[Qty]]=""),"",E15*1.05) ->  | L15: =IF(Table7[[#This Row],[Code]]="","",VLOOKUP(Table7[[#This Row],[Code]],Codes!$B$2:$E$2231,4,0)) ->  | M15: =IF(OR(Table7[[#This Row],[Code]]="",Table7[[#This Row],[Qty]]=""),"",Table7[[#This Row],[Qty]]*Table7[[#This Row],[U.CC]]) -> 
D16: =IF(Table7[[#This Row],[Code]]="","",VLOOKUP(Table7[[#This Row],[Code]],Codes!$B$2:$E$2231,2,0)) ->  | E16: =IF(Table7[[#This Row],[Code]]="","",VLOOKUP(Table7[[#This Row],[Code]],Codes!$B$2:$E$2231,3,0)) ->  | F16: =IF(OR(Table7[[#This Row],[Code]]="",Table7[[#This Row],[Qty]]=""),"",Table7[U. Price]*$F$10) ->  | G16: =IF(OR(Table7[[#This Row],[Code]]="",Table7[[#This Row],[Qty]]=""),"",Table7[U. Price]-Table7[Discount ]) ->  | H16: =IF(OR(Table7[[#This Row],[Code]]="",Table7[[#This Row],[Qty]]=""),"",Table7[Qty]*Table7[Net U. Price]) ->  | I16: =IF(OR(Table7[[#This Row],[Code]]="",Table7[[#This Row],[Qty]]=""),"",Table7[TOTAL]*0.05) ->  | J16: =IF(OR(Table7[[#This Row],[Code]]="",Table7[[#This Row],[Qty]]=""),"",Table7[TOTAL]+Table7[VAT]) ->  | K16: =IF(OR(Table7[[#This Row],[Code]]="",Table7[[#This Row],[Qty]]=""),"",E16*1.05) ->  | L16: =IF(Table7[[#This Row],[Code]]="","",VLOOKUP(Table7[[#This Row],[Code]],Codes!$B$2:$E$2231,4,0)) ->  | M16: =IF(OR(Table7[[#This Row],[Code]]="",Table7[[#This Row],[Qty]]=""),"",Table7[[#This Row],[Qty]]*Table7[[#This Row],[U.CC]]) -> 
D17: =IF(Table7[[#This Row],[Code]]="","",VLOOKUP(Table7[[#This Row],[Code]],Codes!$B$2:$E$2231,2,0)) ->  | E17: =IF(Table7[[#This Row],[Code]]="","",VLOOKUP(Table7[[#This Row],[Code]],Codes!$B$2:$E$2231,3,0)) ->  | F17: =IF(OR(Table7[[#This Row],[Code]]="",Table7[[#This Row],[Qty]]=""),"",Table7[U. Price]*$F$10) ->  | G17: =IF(OR(Table7[[#This Row],[Code]]="",Table7[[#This Row],[Qty]]=""),"",Table7[U. Price]-Table7[Discount ]) ->  | H17: =IF(OR(Table7[[#This Row],[Code]]="",Table7[[#This Row],[Qty]]=""),"",Table7[Qty]*Table7[Net U. Price]) ->  | I17: =IF(OR(Table7[[#This Row],[Code]]="",Table7[[#This Row],[Qty]]=""),"",Table7[TOTAL]*0.05) ->  | J17: =IF(OR(Table7[[#This Row],[Code]]="",Table7[[#This Row],[Qty]]=""),"",Table7[TOTAL]+Table7[VAT]) ->  | K17: =IF(OR(Table7[[#This Row],[Code]]="",Table7[[#This Row],[Qty]]=""),"",E17*1.05) ->  | L17: =IF(Table7[[#This Row],[Code]]="","",VLOOKUP(Table7[[#This Row],[Code]],Codes!$B$2:$E$2231,4,0)) ->  | M17: =IF(OR(Table7[[#This Row],[Code]]="",Table7[[#This Row],[Qty]]=""),"",Table7[[#This Row],[Qty]]*Table7[[#This Row],[U.CC]]) -> 
D18: =IF(Table7[[#This Row],[Code]]="","",VLOOKUP(Table7[[#This Row],[Code]],Codes!$B$2:$E$2231,2,0)) ->  | E18: =IF(Table7[[#This Row],[Code]]="","",VLOOKUP(Table7[[#This Row],[Code]],Codes!$B$2:$E$2231,3,0)) ->  | F18: =IF(OR(Table7[[#This Row],[Code]]="",Table7[[#This Row],[Qty]]=""),"",Table7[U. Price]*$F$10) ->  | G18: =IF(OR(Table7[[#This Row],[Code]]="",Table7[[#This Row],[Qty]]=""),"",Table7[U. Price]-Table7[Discount ]) ->  | H18: =IF(OR(Table7[[#This Row],[Code]]="",Table7[[#This Row],[Qty]]=""),"",Table7[Qty]*Table7[Net U. Price]) ->  | I18: =IF(OR(Table7[[#This Row],[Code]]="",Table7[[#This Row],[Qty]]=""),"",Table7[TOTAL]*0.05) ->  | J18: =IF(OR(Table7[[#This Row],[Code]]="",Table7[[#This Row],[Qty]]=""),"",Table7[TOTAL]+Table7[VAT]) ->  | K18: =IF(OR(Table7[[#This Row],[Code]]="",Table7[[#This Row],[Qty]]=""),"",E18*1.05) ->  | L18: =IF(Table7[[#This Row],[Code]]="","",VLOOKUP(Table7[[#This Row],[Code]],Codes!$B$2:$E$2231,4,0)) ->  | M18: =IF(OR(Table7[[#This Row],[Code]]="",Table7[[#This Row],[Qty]]=""),"",Table7[[#This Row],[Qty]]*Table7[[#This Row],[U.CC]]) -> 
D19: =IF(Table7[[#This Row],[Code]]="","",VLOOKUP(Table7[[#This Row],[Code]],Codes!$B$2:$E$2231,2,0)) ->  | E19: =IF(Table7[[#This Row],[Code]]="","",VLOOKUP(Table7[[#This Row],[Code]],Codes!$B$2:$E$2231,3,0)) ->  | F19: =IF(OR(Table7[[#This Row],[Code]]="",Table7[[#This Row],[Qty]]=""),"",Table7[U. Price]*$F$10) ->  | G19: =IF(OR(Table7[[#This Row],[Code]]="",Table7[[#This Row],[Qty]]=""),"",Table7[U. Price]-Table7[Discount ]) ->  | H19: =IF(OR(Table7[[#This Row],[Code]]="",Table7[[#This Row],[Qty]]=""),"",Table7[Qty]*Table7[Net U. Price]) ->  | I19: =IF(OR(Table7[[#This Row],[Code]]="",Table7[[#This Row],[Qty]]=""),"",Table7[TOTAL]*0.05) ->  | J19: =IF(OR(Table7[[#This Row],[Code]]="",Table7[[#This Row],[Qty]]=""),"",Table7[TOTAL]+Table7[VAT]) ->  | K19: =IF(OR(Table7[[#This Row],[Code]]="",Table7[[#This Row],[Qty]]=""),"",E19*1.05) ->  | L19: =IF(Table7[[#This Row],[Code]]="","",VLOOKUP(Table7[[#This Row],[Code]],Codes!$B$2:$E$2231,4,0)) ->  | M19: =IF(OR(Table7[[#This Row],[Code]]="",Table7[[#This Row],[Qty]]=""),"",Table7[[#This Row],[Qty]]*Table7[[#This Row],[U.CC]]) -> 
D20: =IF(Table7[[#This Row],[Code]]="","",VLOOKUP(Table7[[#This Row],[Code]],Codes!$B$2:$E$2231,2,0)) ->  | E20: =IF(Table7[[#This Row],[Code]]="","",VLOOKUP(Table7[[#This Row],[Code]],Codes!$B$2:$E$2231,3,0)) ->  | F20: =IF(OR(Table7[[#This Row],[Code]]="",Table7[[#This Row],[Qty]]=""),"",Table7[U. Price]*$F$10) ->  | G20: =IF(OR(Table7[[#This Row],[Code]]="",Table7[[#This Row],[Qty]]=""),"",Table7[U. Price]-Table7[Discount ]) ->  | H20: =IF(OR(Table7[[#This Row],[Code]]="",Table7[[#This Row],[Qty]]=""),"",Table7[Qty]*Table7[Net U. Price]) ->  | I20: =IF(OR(Table7[[#This Row],[Code]]="",Table7[[#This Row],[Qty]]=""),"",Table7[TOTAL]*0.05) ->  | J20: =IF(OR(Table7[[#This Row],[Code]]="",Table7[[#This Row],[Qty]]=""),"",Table7[TOTAL]+Table7[VAT]) ->  | K20: =IF(OR(Table7[[#This Row],[Code]]="",Table7[[#This Row],[Qty]]=""),"",E20*1.05) ->  | L20: =IF(Table7[[#This Row],[Code]]="","",VLOOKUP(Table7[[#This Row],[Code]],Codes!$B$2:$E$2231,4,0)) ->  | M20: =IF(OR(Table7[[#This Row],[Code]]="",Table7[[#This Row],[Qty]]=""),"",Table7[[#This Row],[Qty]]*Table7[[#This Row],[U.CC]]) -> 
D21: =IF(Table7[[#This Row],[Code]]="","",VLOOKUP(Table7[[#This Row],[Code]],Codes!$B$2:$E$2231,2,0)) ->  | E21: =IF(Table7[[#This Row],[Code]]="","",VLOOKUP(Table7[[#This Row],[Code]],Codes!$B$2:$E$2231,3,0)) ->  | F21: =IF(OR(Table7[[#This Row],[Code]]="",Table7[[#This Row],[Qty]]=""),"",Table7[U. Price]*$F$10) ->  | G21: =IF(OR(Table7[[#This Row],[Code]]="",Table7[[#This Row],[Qty]]=""),"",Table7[U. Price]-Table7[Discount ]) ->  | H21: =IF(OR(Table7[[#This Row],[Code]]="",Table7[[#This Row],[Qty]]=""),"",Table7[Qty]*Table7[Net U. Price]) ->  | I21: =IF(OR(Table7[[#This Row],[Code]]="",Table7[[#This Row],[Qty]]=""),"",Table7[TOTAL]*0.05) ->  | J21: =IF(OR(Table7[[#This Row],[Code]]="",Table7[[#This Row],[Qty]]=""),"",Table7[TOTAL]+Table7[VAT]) ->  | K21: =IF(OR(Table7[[#This Row],[Code]]="",Table7[[#This Row],[Qty]]=""),"",E21*1.05) ->  | L21: =IF(Table7[[#This Row],[Code]]="","",VLOOKUP(Table7[[#This Row],[Code]],Codes!$B$2:$E$2231,4,0)) ->  | M21: =IF(OR(Table7[[#This Row],[Code]]="",Table7[[#This Row],[Qty]]=""),"",Table7[[#This Row],[Qty]]*Table7[[#This Row],[U.CC]]) -> 
D22: =IF(Table7[[#This Row],[Code]]="","",VLOOKUP(Table7[[#This Row],[Code]],Codes!$B$2:$E$2231,2,0)) ->  | E22: =IF(Table7[[#This Row],[Code]]="","",VLOOKUP(Table7[[#This Row],[Code]],Codes!$B$2:$E$2231,3,0)) ->  | F22: =IF(OR(Table7[[#This Row],[Code]]="",Table7[[#This Row],[Qty]]=""),"",Table7[U. Price]*$F$10) ->  | G22: =IF(OR(Table7[[#This Row],[Code]]="",Table7[[#This Row],[Qty]]=""),"",Table7[U. Price]-Table7[Discount ]) ->  | H22: =IF(OR(Table7[[#This Row],[Code]]="",Table7[[#This Row],[Qty]]=""),"",Table7[Qty]*Table7[Net U. Price]) ->  | I22: =IF(OR(Table7[[#This Row],[Code]]="",Table7[[#This Row],[Qty]]=""),"",Table7[TOTAL]*0.05) ->  | J22: =IF(OR(Table7[[#This Row],[Code]]="",Table7[[#This Row],[Qty]]=""),"",Table7[TOTAL]+Table7[VAT]) ->  | K22: =IF(OR(Table7[[#This Row],[Code]]="",Table7[[#This Row],[Qty]]=""),"",E22*1.05) ->  | L22: =IF(Table7[[#This Row],[Code]]="","",VLOOKUP(Table7[[#This Row],[Code]],Codes!$B$2:$E$2231,4,0)) ->  | M22: =IF(OR(Table7[[#This Row],[Code]]="",Table7[[#This Row],[Qty]]=""),"",Table7[[#This Row],[Qty]]*Table7[[#This Row],[U.CC]]) -> 
D23: =IF(Table7[[#This Row],[Code]]="","",VLOOKUP(Table7[[#This Row],[Code]],Codes!$B$2:$E$2231,2,0)) ->  | E23: =IF(Table7[[#This Row],[Code]]="","",VLOOKUP(Table7[[#This Row],[Code]],Codes!$B$2:$E$2231,3,0)) ->  | F23: =IF(OR(Table7[[#This Row],[Code]]="",Table7[[#This Row],[Qty]]=""),"",Table7[U. Price]*$F$10) ->  | G23: =IF(OR(Table7[[#This Row],[Code]]="",Table7[[#This Row],[Qty]]=""),"",Table7[U. Price]-Table7[Discount ]) ->  | H23: =IF(OR(Table7[[#This Row],[Code]]="",Table7[[#This Row],[Qty]]=""),"",Table7[Qty]*Table7[Net U. Price]) ->  | I23: =IF(OR(Table7[[#This Row],[Code]]="",Table7[[#This Row],[Qty]]=""),"",Table7[TOTAL]*0.05) ->  | J23: =IF(OR(Table7[[#This Row],[Code]]="",Table7[[#This Row],[Qty]]=""),"",Table7[TOTAL]+Table7[VAT]) ->  | K23: =IF(OR(Table7[[#This Row],[Code]]="",Table7[[#This Row],[Qty]]=""),"",E23*1.05) ->  | L23: =IF(Table7[[#This Row],[Code]]="","",VLOOKUP(Table7[[#This Row],[Code]],Codes!$B$2:$E$2231,4,0)) ->  | M23: =IF(OR(Table7[[#This Row],[Code]]="",Table7[[#This Row],[Qty]]=""),"",Table7[[#This Row],[Qty]]*Table7[[#This Row],[U.CC]]) -> 
D24: =IF(Table7[[#This Row],[Code]]="","",VLOOKUP(Table7[[#This Row],[Code]],Codes!$B$2:$E$2231,2,0)) ->  | E24: =IF(Table7[[#This Row],[Code]]="","",VLOOKUP(Table7[[#This Row],[Code]],Codes!$B$2:$E$2231,3,0)) ->  | F24: =IF(OR(Table7[[#This Row],[Code]]="",Table7[[#This Row],[Qty]]=""),"",Table7[U. Price]*$F$10) ->  | G24: =IF(OR(Table7[[#This Row],[Code]]="",Table7[[#This Row],[Qty]]=""),"",Table7[U. Price]-Table7[Discount ]) ->  | H24: =IF(OR(Table7[[#This Row],[Code]]="",Table7[[#This Row],[Qty]]=""),"",Table7[Qty]*Table7[Net U. Price]) ->  | I24: =IF(OR(Table7[[#This Row],[Code]]="",Table7[[#This Row],[Qty]]=""),"",Table7[TOTAL]*0.05) ->  | J24: =IF(OR(Table7[[#This Row],[Code]]="",Table7[[#This Row],[Qty]]=""),"",Table7[TOTAL]+Table7[VAT]) ->  | K24: =IF(OR(Table7[[#This Row],[Code]]="",Table7[[#This Row],[Qty]]=""),"",E24*1.05) ->  | L24: =IF(Table7[[#This Row],[Code]]="","",VLOOKUP(Table7[[#This Row],[Code]],Codes!$B$2:$E$2231,4,0)) ->  | M24: =IF(OR(Table7[[#This Row],[Code]]="",Table7[[#This Row],[Qty]]=""),"",Table7[[#This Row],[Qty]]*Table7[[#This Row],[U.CC]]) -> 
D25: =IF(Table7[[#This Row],[Code]]="","",VLOOKUP(Table7[[#This Row],[Code]],Codes!$B$2:$E$2231,2,0)) ->  | E25: =IF(Table7[[#This Row],[Code]]="","",VLOOKUP(Table7[[#This Row],[Code]],Codes!$B$2:$E$2231,3,0)) ->  | F25: =IF(OR(Table7[[#This Row],[Code]]="",Table7[[#This Row],[Qty]]=""),"",Table7[U. Price]*$F$10) ->  | G25: =IF(OR(Table7[[#This Row],[Code]]="",Table7[[#This Row],[Qty]]=""),"",Table7[U. Price]-Table7[Discount ]) ->  | H25: =IF(OR(Table7[[#This Row],[Code]]="",Table7[[#This Row],[Qty]]=""),"",Table7[Qty]*Table7[Net U. Price]) ->  | I25: =IF(OR(Table7[[#This Row],[Code]]="",Table7[[#This Row],[Qty]]=""),"",Table7[TOTAL]*0.05) ->  | J25: =IF(OR(Table7[[#This Row],[Code]]="",Table7[[#This Row],[Qty]]=""),"",Table7[TOTAL]+Table7[VAT]) ->  | K25: =IF(OR(Table7[[#This Row],[Code]]="",Table7[[#This Row],[Qty]]=""),"",E25*1.05) ->  | L25: =IF(Table7[[#This Row],[Code]]="","",VLOOKUP(Table7[[#This Row],[Code]],Codes!$B$2:$E$2231,4,0)) ->  | M25: =IF(OR(Table7[[#This Row],[Code]]="",Table7[[#This Row],[Qty]]=""),"",Table7[[#This Row],[Qty]]*Table7[[#This Row],[U.CC]]) -> 
D26: =IF(Table7[[#This Row],[Code]]="","",VLOOKUP(Table7[[#This Row],[Code]],Codes!$B$2:$E$2231,2,0)) ->  | E26: =IF(Table7[[#This Row],[Code]]="","",VLOOKUP(Table7[[#This Row],[Code]],Codes!$B$2:$E$2231,3,0)) ->  | F26: =IF(OR(Table7[[#This Row],[Code]]="",Table7[[#This Row],[Qty]]=""),"",Table7[U. Price]*$F$10) ->  | G26: =IF(OR(Table7[[#This Row],[Code]]="",Table7[[#This Row],[Qty]]=""),"",Table7[U. Price]-Table7[Discount ]) ->  | H26: =IF(OR(Table7[[#This Row],[Code]]="",Table7[[#This Row],[Qty]]=""),"",Table7[Qty]*Table7[Net U. Price]) ->  | I26: =IF(OR(Table7[[#This Row],[Code]]="",Table7[[#This Row],[Qty]]=""),"",Table7[TOTAL]*0.05) ->  | J26: =IF(OR(Table7[[#This Row],[Code]]="",Table7[[#This Row],[Qty]]=""),"",Table7[TOTAL]+Table7[VAT]) ->  | K26: =IF(OR(Table7[[#This Row],[Code]]="",Table7[[#This Row],[Qty]]=""),"",E26*1.05) ->  | L26: =IF(Table7[[#This Row],[Code]]="","",VLOOKUP(Table7[[#This Row],[Code]],Codes!$B$2:$E$2231,4,0)) ->  | M26: =IF(OR(Table7[[#This Row],[Code]]="",Table7[[#This Row],[Qty]]=""),"",Table7[[#This Row],[Qty]]*Table7[[#This Row],[U.CC]]) -> 
D27: =IF(Table7[[#This Row],[Code]]="","",VLOOKUP(Table7[[#This Row],[Code]],Codes!$B$2:$E$2231,2,0)) ->  | E27: =IF(Table7[[#This Row],[Code]]="","",VLOOKUP(Table7[[#This Row],[Code]],Codes!$B$2:$E$2231,3,0)) ->  | F27: =IF(OR(Table7[[#This Row],[Code]]="",Table7[[#This Row],[Qty]]=""),"",Table7[U. Price]*$F$10) ->  | G27: =IF(OR(Table7[[#This Row],[Code]]="",Table7[[#This Row],[Qty]]=""),"",Table7[U. Price]-Table7[Discount ]) ->  | H27: =IF(OR(Table7[[#This Row],[Code]]="",Table7[[#This Row],[Qty]]=""),"",Table7[Qty]*Table7[Net U. Price]) ->  | I27: =IF(OR(Table7[[#This Row],[Code]]="",Table7[[#This Row],[Qty]]=""),"",Table7[TOTAL]*0.05) ->  | J27: =IF(OR(Table7[[#This Row],[Code]]="",Table7[[#This Row],[Qty]]=""),"",Table7[TOTAL]+Table7[VAT]) ->  | K27: =IF(OR(Table7[[#This Row],[Code]]="",Table7[[#This Row],[Qty]]=""),"",E27*1.05) ->  | L27: =IF(Table7[[#This Row],[Code]]="","",VLOOKUP(Table7[[#This Row],[Code]],Codes!$B$2:$E$2231,4,0)) ->  | M27: =IF(OR(Table7[[#This Row],[Code]]="",Table7[[#This Row],[Qty]]=""),"",Table7[[#This Row],[Qty]]*Table7[[#This Row],[U.CC]]) -> 
D28: =IF(Table7[[#This Row],[Code]]="","",VLOOKUP(Table7[[#This Row],[Code]],Codes!$B$2:$E$2231,2,0)) ->  | E28: =IF(Table7[[#This Row],[Code]]="","",VLOOKUP(Table7[[#This Row],[Code]],Codes!$B$2:$E$2231,3,0)) ->  | F28: =IF(OR(Table7[[#This Row],[Code]]="",Table7[[#This Row],[Qty]]=""),"",Table7[U. Price]*$F$10) ->  | G28: =IF(OR(Table7[[#This Row],[Code]]="",Table7[[#This Row],[Qty]]=""),"",Table7[U. Price]-Table7[Discount ]) ->  | H28: =IF(OR(Table7[[#This Row],[Code]]="",Table7[[#This Row],[Qty]]=""),"",Table7[Qty]*Table7[Net U. Price]) ->  | I28: =IF(OR(Table7[[#This Row],[Code]]="",Table7[[#This Row],[Qty]]=""),"",Table7[TOTAL]*0.05) ->  | J28: =IF(OR(Table7[[#This Row],[Code]]="",Table7[[#This Row],[Qty]]=""),"",Table7[TOTAL]+Table7[VAT]) ->  | K28: =IF(OR(Table7[[#This Row],[Code]]="",Table7[[#This Row],[Qty]]=""),"",E28*1.05) ->  | L28: =IF(Table7[[#This Row],[Code]]="","",VLOOKUP(Table7[[#This Row],[Code]],Codes!$B$2:$E$2231,4,0)) ->  | M28: =IF(OR(Table7[[#This Row],[Code]]="",Table7[[#This Row],[Qty]]=""),"",Table7[[#This Row],[Qty]]*Table7[[#This Row],[U.CC]]) -> 
D29: =IF(Table7[[#This Row],[Code]]="","",VLOOKUP(Table7[[#This Row],[Code]],Codes!$B$2:$E$2231,2,0)) ->  | E29: =IF(Table7[[#This Row],[Code]]="","",VLOOKUP(Table7[[#This Row],[Code]],Codes!$B$2:$E$2231,3,0)) ->  | F29: =IF(OR(Table7[[#This Row],[Code]]="",Table7[[#This Row],[Qty]]=""),"",Table7[U. Price]*$F$10) ->  | G29: =IF(OR(Table7[[#This Row],[Code]]="",Table7[[#This Row],[Qty]]=""),"",Table7[U. Price]-Table7[Discount ]) ->  | H29: =IF(OR(Table7[[#This Row],[Code]]="",Table7[[#This Row],[Qty]]=""),"",Table7[Qty]*Table7[Net U. Price]) ->  | I29: =IF(OR(Table7[[#This Row],[Code]]="",Table7[[#This Row],[Qty]]=""),"",Table7[TOTAL]*0.05) ->  | J29: =IF(OR(Table7[[#This Row],[Code]]="",Table7[[#This Row],[Qty]]=""),"",Table7[TOTAL]+Table7[VAT]) ->  | K29: =IF(OR(Table7[[#This Row],[Code]]="",Table7[[#This Row],[Qty]]=""),"",E29*1.05) ->  | L29: =IF(Table7[[#This Row],[Code]]="","",VLOOKUP(Table7[[#This Row],[Code]],Codes!$B$2:$E$2231,4,0)) ->  | M29: =IF(OR(Table7[[#This Row],[Code]]="",Table7[[#This Row],[Qty]]=""),"",Table7[[#This Row],[Qty]]*Table7[[#This Row],[U.CC]]) -> 
D30: =IF(Table7[[#This Row],[Code]]="","",VLOOKUP(Table7[[#This Row],[Code]],Codes!$B$2:$E$2231,2,0)) ->  | E30: =IF(Table7[[#This Row],[Code]]="","",VLOOKUP(Table7[[#This Row],[Code]],Codes!$B$2:$E$2231,3,0)) ->  | F30: =IF(OR(Table7[[#This Row],[Code]]="",Table7[[#This Row],[Qty]]=""),"",Table7[U. Price]*$F$10) ->  | G30: =IF(OR(Table7[[#This Row],[Code]]="",Table7[[#This Row],[Qty]]=""),"",Table7[U. Price]-Table7[Discount ]) ->  | H30: =IF(OR(Table7[[#This Row],[Code]]="",Table7[[#This Row],[Qty]]=""),"",Table7[Qty]*Table7[Net U. Price]) ->  | I30: =IF(OR(Table7[[#This Row],[Code]]="",Table7[[#This Row],[Qty]]=""),"",Table7[TOTAL]*0.05) ->  | J30: =IF(OR(Table7[[#This Row],[Code]]="",Table7[[#This Row],[Qty]]=""),"",Table7[TOTAL]+Table7[VAT]) ->  | K30: =IF(OR(Table7[[#This Row],[Code]]="",Table7[[#This Row],[Qty]]=""),"",E30*1.05) ->  | L30: =IF(Table7[[#This Row],[Code]]="","",VLOOKUP(Table7[[#This Row],[Code]],Codes!$B$2:$E$2231,4,0)) ->  | M30: =IF(OR(Table7[[#This Row],[Code]]="",Table7[[#This Row],[Qty]]=""),"",Table7[[#This Row],[Qty]]*Table7[[#This Row],[U.CC]]) -> 
D31: =IF(Table7[[#This Row],[Code]]="","",VLOOKUP(Table7[[#This Row],[Code]],Codes!$B$2:$E$2231,2,0)) ->  | E31: =IF(Table7[[#This Row],[Code]]="","",VLOOKUP(Table7[[#This Row],[Code]],Codes!$B$2:$E$2231,3,0)) ->  | F31: =IF(OR(Table7[[#This Row],[Code]]="",Table7[[#This Row],[Qty]]=""),"",Table7[U. Price]*$F$10) ->  | G31: =IF(OR(Table7[[#This Row],[Code]]="",Table7[[#This Row],[Qty]]=""),"",Table7[U. Price]-Table7[Discount ]) ->  | H31: =IF(OR(Table7[[#This Row],[Code]]="",Table7[[#This Row],[Qty]]=""),"",Table7[Qty]*Table7[Net U. Price]) ->  | I31: =IF(OR(Table7[[#This Row],[Code]]="",Table7[[#This Row],[Qty]]=""),"",Table7[TOTAL]*0.05) ->  | J31: =IF(OR(Table7[[#This Row],[Code]]="",Table7[[#This Row],[Qty]]=""),"",Table7[TOTAL]+Table7[VAT]) ->  | K31: =IF(OR(Table7[[#This Row],[Code]]="",Table7[[#This Row],[Qty]]=""),"",E31*1.05) ->  | L31: =IF(Table7[[#This Row],[Code]]="","",VLOOKUP(Table7[[#This Row],[Code]],Codes!$B$2:$E$2231,4,0)) ->  | M31: =IF(OR(Table7[[#This Row],[Code]]="",Table7[[#This Row],[Qty]]=""),"",Table7[[#This Row],[Qty]]*Table7[[#This Row],[U.CC]]) -> 
B32: =SUBTOTAL(103,Table7[Code]) -> 1 | D32: Total | H32: =SUBTOTAL(109,Table7[TOTAL]) -> 713.44 | I32: =SUBTOTAL(109,Table7[VAT]) -> 35.672 | J32: =SUBTOTAL(109,Table7[TOTAL with VAT]) -> 749.112 | M32: =SUBTOTAL(109,Table7[Tot. CC])&" CC" -> 1.582 CC
B41: Price includes VAT (5%) | H41: السعر يشمل ضريبة القيمة المضافة (%5)

Sheet Codes
A1: Codes | B1: Code | C1: Item | D1: Ret Price | E1: CC
B2: 14 | C2: Aloe Bath Gelèe | D2: 71.25 | E2: 0.082
B3: 15 | C3: Forever Alove Vera Gel | D3: 98 | E3: 0.113
B4: 22 | C4: Forever Alove Lips | D4: 13.75 | E4: 0.016
B5: 28 | C5: Forever Bright Toothgel | D5: 29.75 | E5: 0.035
B6: 51 | C6: Aloe Proplis Crème | D6: 76.75 | E6: 0.089
B7: 61 | C7: Aloe Vera Gelly | D7: 58 | E7: 0.067
B8: 62 | C8: Aloe Lotion | D8: 58 | E8: 0.068
B9: 63 | C9: Aloe Moisturizing Lotion | D9: 58 | E9: 0.068
B10: 64 | C10: Aloe Heat Lotion | D10: 58 | E10: 0.068
B11: 67 | C11: Aloe Evershield Deodorant | D11: 28 | E11: 0.032
B12: 70 | C12: Gentleman's Pride | D12: 58 | E12: 0.067
B13: 199 | C13: Aloe Sunscreen | D13: 58 | E13: 0.067
B14: 207 | C14: Forever Bee Honey | D14: 65.25 | E14: 0.075
B15: 238 | C15: Forever Aloe Scrub | D15: 60.75 | E15: 0.07
B16: 279 | C16: Aloe Refreshirng Toner | D16: 124.25 | E16: 0.159
B17: 284 | C17: Avocado Face & Body Soap | D17: 26.25 | E17: 0.034
B18: 311 | C18: Sonya Aloe Deep Moisturizing cream | D18: 129.25 | E18: 0.15
B19: 319 | C19: Aloe Sunscreen Spray | D19: 81.75 | E19: 0.095
B20: 464 | C20: Forever Fiber | D20: 112 | E20: 0.13
B21: 470 | C21: Forever Lit Ultra | D21: 119 | E21: 0.138
B22: 515 | C22: Aloe Shave | D22: 68.5 | E22: 0.079
B23: 521 | C23: Aloe - Jojoba Shampoo | D23: 68 | E23: 0.069
B24: 522 | C24: Aloe - Jojoba Conditioning | D24: 68 | E24: 0.088
B25: 523 | C25: Aloe Hand Soap | D25: 68 | E25: 0.86
B26: 350 | C26: Forever Sonya Hydrate Conditioner | D26: 93.75

Sheet Invoices
A1: INVOICES | B1: # | C1: Customer العميل | D1: Invoice # رقم الفاتورة | E1: Invoice Amount مبلغ الفاتورة | F1: Invoice Date تاريخ الفاتورة | G1: Notes ملاحظات
A2: =IF(ISNUMBER(SEARCH(STATEMENT!$F$9,Table4[Customer العميل])),MAX($A$1:A1)+1,0) -> 1 | B2: =IF(OR(C2="",Table4[[#Headers],[Customer العميل]]=""),"",MAX($B$1:B1)+1) -> 1 | C2: Dallah Healthcare Co. / Dallah Hospital | D2: 28 | E2: 3540.23 | F2: 2017-07-04
A3: =IF(ISNUMBER(SEARCH(STATEMENT!$F$9,Table4[Customer العميل])),MAX($A$1:A2)+1,0) -> 2 | B3: =IF(OR(C3="",Table4[[#Headers],[Customer العميل]]=""),"",MAX($B1:B$2)+1) -> 2 | C3: Dallah Healthcare Co. / Dallah Hospital | D3: 27 | E3: 1523.63 | F3: 2017-07-04
A4: =IF(ISNUMBER(SEARCH(STATEMENT!$F$9,Table4[Customer العميل])),MAX($A$1:A3)+1,0) -> 0 | B4: =IF(OR(C4="",Table4[[#Headers],[Customer العميل]]=""),"",MAX($B$1:B3)+1) -> 3 | C4: Moath Abdul Raqib | D4: 16214 | E4: 673.7 | F4: 2017-07-24
A5: =IF(ISNUMBER(SEARCH(STATEMENT!$F$9,Table4[Customer العميل])),MAX($A$1:A4)+1,0) -> 0 | B5: =IF(OR(C5="",Table4[[#Headers],[Customer العميل]]=""),"",MAX($B$1:B4)+1) -> 4 | C5: Zawaq Alasal | D5: 4 | E5: 1385 | F5: 2017-08-05
A6: =IF(ISNUMBER(SEARCH(STATEMENT!$F$9,Table4[Customer العميل])),MAX($A$1:A5)+1,0) -> 0 | B6: =IF(OR(C6="",Table4[[#Headers],[Customer العميل]]=""),"",MAX($B$1:B5)+1) -> 5 | C6: AlKhair Pharmacy | D6: 10 | E6: 1485.75 | F6: 2017-09-03
A7: =IF(ISNUMBER(SEARCH(STATEMENT!$F$9,Table4[Customer العميل])),MAX($A$1:A6)+1,0) -> 3 | B7: =IF(OR(C7="",Table4[[#Headers],[Customer العميل]]=""),"",MAX($B$1:B6)+1) -> 6 | C7: Dallah Healthcare Co. / Dallah Hospital | D7: 18 | E7: 637 | F7: 2017-09-17 | Q7: Jun
A8: =IF(ISNUMBER(SEARCH(STATEMENT!$F$9,Table4[Customer العميل])),MAX($A$1:A7)+1,0) -> 0 | B8: =IF(OR(C8="",Table4[[#Headers],[Customer العميل]]=""),"",MAX($B$1:B7)+1) -> 7 | C8: Attar AlKuwait | D8: 11 | E8: 1518.53 | F8: 2017-09-23 | Q8: 69
A9: =IF(ISNUMBER(SEARCH(STATEMENT!$F$9,Table4[Customer العميل])),MAX($A$1:A8)+1,0) -> 4 | B9: =IF(OR(C9="",Table4[[#Headers],[Customer العميل]]=""),"",MAX($B$1:B8)+1) -> 8 | C9: Dallah Healthcare Co. / Dallah Hospital | D9: 41 | E9: 2008 | F9: 2017-10-28 | Q9: 86
A10: =IF(ISNUMBER(SEARCH(STATEMENT!$F$9,Table4[Customer العميل])),MAX($A$1:A9)+1,0) -> 5 | B10: =IF(OR(C10="",Table4[[#Headers],[Customer العميل]]=""),"",MAX($B$1:B9)+1) -> 9 | C10: Dallah Healthcare Co. / Dallah Hospital | D10: 65 | E10: 2344.96 | F10: 2017-10-30 | Q10: 41
A11: =IF(ISNUMBER(SEARCH(STATEMENT!$F$9,Table4[Customer العميل])),MAX($A$1:A10)+1,0) -> 6 | B11: =IF(OR(C11="",Table4[[#Headers],[Customer العميل]]=""),"",MAX($B$1:B10)+1) -> 10 | C11: Dallah Healthcare Co. / Dallah Hospital | D11: 23268 | E11: 998.26 | F11: 2017-11-12 | Q11: 37
A12: =IF(ISNUMBER(SEARCH(STATEMENT!$F$9,Table4[Customer العميل])),MAX($A$1:A11)+1,0) -> 0 | B12: =IF(OR(C12="",Table4[[#Headers],[Customer العميل]]=""),"",MAX($B$1:B11)+1) -> 11 | C12: AlKhair Pharmacy | D12: 100 | E12: 108.6 | F12: 2017-11-25 | Q12: 28
A13: =IF(ISNUMBER(SEARCH(STATEMENT!$F$9,Table4[Customer العميل])),MAX($A$1:A12)+1,0) -> 0 | B13: =IF(OR(C13="",Table4[[#Headers],[Customer العميل]]=""),"",MAX($B$1:B12)+1) -> 12 | C13: Attar Alhakeem | D13: 126 | E13: 1049.11 | F13: 2017-11-25
A14: =IF(ISNUMBER(SEARCH(STATEMENT!$F$9,Table4[Customer العميل])),MAX($A$1:A13)+1,0) -> 0 | B14: =IF(OR(C14="",Table4[[#Headers],[Customer العميل]]=""),"",MAX($B$1:B13)+1) -> 13 | C14: Zawaq Alasal | D14: 1101 | E14: 1385 | F14: 2017-12-01
A15: =IF(ISNUMBER(SEARCH(STATEMENT!$F$9,Table4[Customer العميل])),MAX($A$1:A14)+1,0) -> 0 | B15: =IF(OR(C15="",Table4[[#Headers],[Customer العميل]]=""),"",MAX($B$1:B14)+1) -> 14 | C15: AlKhair Pharmacy | D15: 26 | E15: 777.75 | F15: 2017-02-12
A16: =IF(ISNUMBER(SEARCH(STATEMENT!$F$9,Table4[Customer العميل])),MAX($A$1:A15)+1,0) -> 0 | B16: =IF(OR(C16="",Table4[[#Headers],[Customer العميل]]=""),"",MAX($B$1:B15)+1) -> 15 | C16: AlKhair Pharmacy | D16: 5101 | E16: 125.92 | F16: 2018-10-28
A17: =IF(ISNUMBER(SEARCH(STATEMENT!$F$9,Table4[Customer العميل])),MAX($A$1:A16)+1,0) -> 0 | B17: =IF(OR(C17="",Table4[[#Headers],[Customer العميل]]=""),"",MAX($B$1:B16)+1) -> 16 | C17: AlKhair Pharmacy | D17: 5002 | E17: 155.61 | F17: 2018-10-28
A18: =IF(ISNUMBER(SEARCH(STATEMENT!$F$9,Table4[Customer العميل])),MAX($A$1:A17)+1,0) -> 7 | B18: =IF(OR(C18="",Table4[[#Headers],[Customer العميل]]=""),"",MAX($B$1:B17)+1) -> 17 | C18: Dallah Healthcare Co. / Dallah Hospital | D18: 12 | E18: 3782.76 | F18: 2018-01-23
A19: =IF(ISNUMBER(SEARCH(STATEMENT!$F$9,Table4[Customer العميل])),MAX($A$1:A18)+1,0) -> 0 | B19: =IF(OR(C19="",Table4[[#Headers],[Customer العميل]]=""),"",MAX($B$1:B18)+1) -> 18 | C19: AlGaili Omar Bakheet | D19: 28582 | E19: 958.38 | F19: 2018-01-25
A20: =IF(ISNUMBER(SEARCH(STATEMENT!$F$9,Table4[Customer العميل])),MAX($A$1:A19)+1,0) -> 0 | B20: =IF(OR(C20="",Table4[[#Headers],[Customer العميل]]=""),"",MAX($B$1:B19)+1) -> 19 | C20: Yousri Mousa Othman | D20: 104 | E20: 282.04 | F20: 2018-02-04
A21: =IF(ISNUMBER(SEARCH(STATEMENT!$F$9,Table4[Customer العميل])),MAX($A$1:A20)+1,0) -> 0 | B21: =IF(OR(C21="",Table4[[#Headers],[Customer العميل]]=""),"",MAX($B$1:B20)+1) -> 20 | C21: Attar Alhakeem | D21: 28583 | E21: 1618.55 | F21: 2018-02-08
A22: =IF(ISNUMBER(SEARCH(STATEMENT!$F$9,Table4[Customer العميل])),MAX($A$1:A21)+1,0) -> 0 | B22: =IF(OR(C22="",Table4[[#Headers],[Customer العميل]]=""),"",MAX($B$1:B21)+1) -> 21 | C22: Attar AlKuwait | D22: 21 | E22: 1359.54 | F22: 2018-02-08
A23: =IF(ISNUMBER(SEARCH(STATEMENT!$F$9,Table4[Customer العميل])),MAX($A$1:A22)+1,0) -> 0 | B23: =IF(OR(C23="",Table4[[#Headers],[Customer العميل]]=""),"",MAX($B$1:B22)+1) -> 22 | C23: Hala Mohamed Alomdeh | D23: 134 | E23: 1831.54 | F23: 2018-02-08
A24: =IF(ISNUMBER(SEARCH(STATEMENT!$F$9,Table4[Customer العميل])),MAX($A$1:A23)+1,0) -> 8 | B24: =IF(OR(C24="",Table4[[#Headers],[Customer العميل]]=""),"",MAX($B$1:B23)+1) -> 23 | C24: Dallah Healthcare Co. / Dallah Hospital | D24: 35 | E24: 1250.34 | F24: 2018-02-13
A25: =IF(ISNUMBER(SEARCH(STATEMENT!$F$9,Table4[Customer العميل])),MAX($A$1:A24)+1,0) -> 0 | B25: =IF(OR(C25="",Table4[[#Headers],[Customer العميل]]=""),"",MAX($B$1:B24)+1) -> 24 | C25: Mohamed Abduldayem Ahmad | D25: 135 | E25: 1761.87 | F25: 2018-02-14
A26: =IF(ISNUMBER(SEARCH(STATEMENT!$F$9,Table4[Customer العميل])),MAX($A$1:A25)+1,0) -> 9 | B26: =IF(OR(C26="",Table4[[#Headers],[Customer العميل]]=""),"",MAX($B$1:B25)+1) -> 25 | C26: Dallah Healthcare Co. / Dallah Hospital | D26: 101 | E26: 2006.55 | F26: 2018-02-20
A27: =IF(ISNUMBER(SEARCH(STATEMENT!$F$9,Table4[Customer العميل])),MAX($A$1:A26)+1,0) -> 0 | B27: =IF(OR(C27="",Table4[[#Headers],[Customer العميل]]=""),"",MAX($B$1:B26)+1) -> 26 | C27: Ibrahim Bakhit | D27: 1020 | E27: 79.66 | F27: 2018-02-26
A28: =IF(ISNUMBER(SEARCH(STATEMENT!$F$9,Table4[Customer العميل])),MAX($A$1:A27)+1,0) -> 0 | B28: =IF(OR(C28="",Table4[[#Headers],[Customer العميل]]=""),"",MAX($B$1:B27)+1) -> 27 | C28: Mohamed Jazouli | D28: 22803 | E28: 1742.38 | F28: 2018-03-18
A29: =IF(ISNUMBER(SEARCH(STATEMENT!$F$9,Table4[Customer العميل])),MAX($A$1:A28)+1,0) -> 0 | B29: =IF(OR(C29="",Table4[[#Headers],[Customer العميل]]=""),"",MAX($B$1:B28)+1) -> 28 | C29: Mohamed Jazouli | D29: 3022803 | E29: 1529.08 | F29: 2018-03-18
A30: =IF(ISNUMBER(SEARCH(STATEMENT!$F$9,Table4[Customer العميل])),MAX($A$1:A29)+1,0) -> 0 | B30: =IF(OR(C30="",Table4[[#Headers],[Customer العميل]]=""),"",MAX($B$1:B29)+1) -> 29 | C30: Yousri Mousa Othman | D30: 1021 | E30: 578.79 | F30: 2018-03-19
A31: =IF(ISNUMBER(SEARCH(STATEMENT!$F$9,Table4[Customer العميل])),MAX($A$1:A30)+1,0) -> 10 | B31: =IF(OR(C31="",Table4[[#Headers],[Customer العميل]]=""),"",MAX($B$1:B30)+1) -> 30 | C31: Dallah Healthcare Co. / Dallah Hospital | D31: 102 | E31: 2354.63 | F31: 2018-03-27
A32: =IF(ISNUMBER(SEARCH(STATEMENT!$F$9,Table4[Customer العميل])),MAX($A$1:A31)+1,0) -> 11 | B32: =IF(OR(C32="",Table4[[#Headers],[Customer العميل]]=""),"",MAX($B$1:B31)+1) -> 31 | C32: Dallah Healthcare Co. / Dallah Hospital | D32: 4991 | E32: 2956.08 | F32: 2018-04-04
A33: =IF(ISNUMBER(SEARCH(STATEMENT!$F$9,Table4[Customer العميل])),MAX($A$1:A32)+1,0) -> 0 | B33: =IF(OR(C33="",Table4[[#Headers],[Customer العميل]]=""),"",MAX($B$1:B32)+1) -> 32 | C33: Mohamed Jazouli | D33: 5000 | E33: 688.13 | F33: 2018-04-26
A34: =IF(ISNUMBER(SEARCH(STATEMENT!$F$9,Table4[Customer العميل])),MAX($A$1:A33)+1,0) -> 12 | B34: =IF(OR(C34="",Table4[[#Headers],[Customer العميل]]=""),"",MAX($B$1:B33)+1) -> 33 | C34: Dallah Healthcare Co. / Dallah Hospital | D34: 4600 | E34: 1576.58 | F34: 2018-05-24
A35: =IF(ISNUMBER(SEARCH(STATEMENT!$F$9,Table4[Customer العميل])),MAX($A$1:A34)+1,0) -> 0 | B35: =IF(OR(C35="",Table4[[#Headers],[Customer العميل]]=""),"",MAX($B$1:B34)+1) -> 34 | C35: Attar Alhakeem | D35: 28600 | E35: 847.67 | F35: 2018-05-30
A36: =IF(ISNUMBER(SEARCH(STATEMENT!$F$9,Table4[Customer العميل])),MAX($A$1:A35)+1,0) -> 13 | B36: =IF(OR(C36="",Table4[[#Headers],[Customer العميل]]=""),"",MAX($B$1:B35)+1) -> 35 | C36: Dallah Healthcare Co. / Dallah Hospital | D36: 4810 | E36: 2813.61 | F36: 2018-06-27
A37: =IF(ISNUMBER(SEARCH(STATEMENT!$F$9,Table4[Customer العميل])),MAX($A$1:A36)+1,0) -> 0 | B37: =IF(OR(C37="",Table4[[#Headers],[Customer العميل]]=""),"",MAX($B$1:B36)+1) -> 36 | C37: Attar AlKuwait | D37: 133 | E37: 249.9 | F37: 2018-08-02
A38: =IF(ISNUMBER(SEARCH(STATEMENT!$F$9,Table4[Customer العميل])),MAX($A$1:A37)+1,0) -> 14 | B38: =IF(OR(C38="",Table4[[#Headers],[Customer العميل]]=""),"",MAX($B$1:B37)+1) -> 37 | C38: Dallah Healthcare Co. / Dallah Hospital | D38: 4999 | E38: 7169.66 | F38: 2018-08-02
A39: =IF(ISNUMBER(SEARCH(STATEMENT!$F$9,Table4[Customer العميل])),MAX($A$1:A38)+1,0) -> 15 | B39: =IF(OR(C39="",Table4[[#Headers],[Customer العميل]]=""),"",MAX($B$1:B38)+1) -> 38 | C39: Dallah Healthcare Co. / Dallah Hospital | D39: 5001 | E39: 2204.48 | F39: 2018-08-09
A40: =IF(ISNUMBER(SEARCH(STATEMENT!$F$9,Table4[Customer العميل])),MAX($A$1:A39)+1,0) -> 0 | B40: =IF(OR(C40="",Table4[[#Headers],[Customer العميل]]=""),"",MAX($B$1:B39)+1) -> 39 | C40: Attar AlKuwait | D40: 111 | E40: 1605.24 | F40: 2018-08-14
A41: =IF(ISNUMBER(SEARCH(STATEMENT!$F$9,Table4[Customer العميل])),MAX($A$1:A40)+1,0) -> 0 | B41: =IF(OR(C41="",Table4[[#Headers],[Customer العميل]]=""),"",MAX($B$1:B40)+1) -> 40 | C41: Attar Alhakeem | D41: 29061 | E41: 1822.28 | F41: 2018-08-15
A42: =IF(ISNUMBER(SEARCH(STATEMENT!$F$9,Table4[Customer العميل])),MAX($A$1:A41)+1,0) -> 16 | B42: =IF(OR(C42="",Table4[[#Headers],[Customer العميل]]=""),"",MAX($B$1:B41)+1) -> 41 | C42: Dallah Healthcare Co. / Dallah Hospital | D42: 5629 | E42: 1870.05 | F42: 2018-10-07
A43: =IF(ISNUMBER(SEARCH(STATEMENT!$F$9,Table4[Customer العميل])),MAX($A$1:A42)+1,0) -> 0 | B43: =IF(OR(C43="",Table4[[#Headers],[Customer العميل]]=""),"",MAX($B$1:B42)+1) -> 
A44: =IF(ISNUMBER(SEARCH(STATEMENT!$F$9,Table4[Customer العميل])),MAX($A$1:A43)+1,0) -> 0 | B44: =IF(OR(C44="",Table4[[#Headers],[Customer العميل]]=""),"",MAX($B$1:B43)+1) -> 
A45: =IF(ISNUMBER(SEARCH(STATEMENT!$F$9,Table4[Customer العميل])),MAX($A$1:A44)+1,0) -> 0 | B45: =IF(OR(C45="",Table4[[#Headers],[Customer العميل]]=""),"",MAX($B$1:B44)+1) -> 
A46: =IF(ISNUMBER(SEARCH(STATEMENT!$F$9,Table4[Customer العميل])),MAX($A$1:A45)+1,0) -> 0 | B46: =IF(OR(C46="",Table4[[#Headers],[Customer العميل]]=""),"",MAX($B$1:B45)+1) -> 
A47: =IF(ISNUMBER(SEARCH(STATEMENT!$F$9,Table4[Customer العميل])),MAX($A$1:A46)+1,0) -> 0 | B47: =IF(OR(C47="",Table4[[#Headers],[Customer العميل]]=""),"",MAX($B$1:B46)+1) -> 
A48: =IF(ISNUMBER(SEARCH(STATEMENT!$F$9,Table4[Customer العميل])),MAX($A$1:A47)+1,0) -> 0 | B48: =IF(OR(C48="",Table4[[#Headers],[Customer العميل]]=""),"",MAX($B$1:B47)+1) -> 
A49: =IF(ISNUMBER(SEARCH(STATEMENT!$F$9,Table4[Customer العميل])),MAX($A$1:A48)+1,0) -> 0 | B49: =IF(OR(C49="",Table4[[#Headers],[Customer العميل]]=""),"",MAX($B$1:B48)+1) -> 
A50: =IF(ISNUMBER(SEARCH(STATEMENT!$F$9,Table4[Customer العميل])),MAX($A$1:A49)+1,0) -> 0 | B50: =IF(OR(C50="",Table4[[#Headers],[Customer العميل]]=""),"",MAX($B$1:B49)+1) -> 
A51: =IF(ISNUMBER(SEARCH(STATEMENT!$F$9,Table4[Customer العميل])),MAX($A$1:A50)+1,0) -> 0 | B51: =IF(OR(C51="",Table4[[#Headers],[Customer العميل]]=""),"",MAX($B$1:B50)+1) -> 
A52: =IF(ISNUMBER(SEARCH(STATEMENT!$F$9,Table4[Customer العميل])),MAX($A$1:A51)+1,0) -> 0 | B52: =IF(OR(C52="",Table4[[#Headers],[Customer العميل]]=""),"",MAX($B$1:B51)+1) -> 
A53: =IF(ISNUMBER(SEARCH(STATEMENT!$F$9,Table4[Customer العميل])),MAX($A$1:A52)+1,0) -> 0 | B53: =IF(OR(C53="",Table4[[#Headers],[Customer العميل]]=""),"",MAX($B$1:B52)+1) -> 
A54: =IF(ISNUMBER(SEARCH(STATEMENT!$F$9,Table4[Customer العميل])),MAX($A$1:A53)+1,0) -> 0 | B54: =IF(OR(C54="",Table4[[#Headers],[Customer العميل]]=""),"",MAX($B$1:B53)+1) -> 
A55: =IF(ISNUMBER(SEARCH(STATEMENT!$F$9,Table4[Customer العميل])),MAX($A$1:A54)+1,0) -> 0 | B55: =IF(OR(C55="",Table4[[#Headers],[Customer العميل]]=""),"",MAX($B$1:B54)+1) -> 
A56: =IF(ISNUMBER(SEARCH(STATEMENT!$F$9,Table4[Customer العميل])),MAX($A$1:A55)+1,0) -> 0 | B56: =IF(OR(C56="",Table4[[#Headers],[Customer العميل]]=""),"",MAX($B$1:B55)+1) -> 
A57: =IF(ISNUMBER(SEARCH(STATEMENT!$F$9,Table4[Customer العميل])),MAX($A$1:A56)+1,0) -> 0 | B57: =IF(OR(C57="",Table4[[#Headers],[Customer العميل]]=""),"",MAX($B$1:B56)+1) -> 
A58: =IF(ISNUMBER(SEARCH(STATEMENT!$F$9,Table4[Customer العميل])),MAX($A$1:A57)+1,0) -> 0 | B58: =IF(OR(C58="",Table4[[#Headers],[Customer العميل]]=""),"",MAX($B$1:B57)+1) -> 
A59: =IF(ISNUMBER(SEARCH(STATEMENT!$F$9,Table4[Customer العميل])),MAX($A$1:A58)+1,0) -> 0 | B59: =IF(OR(C59="",Table4[[#Headers],[Customer العميل]]=""),"",MAX($B$1:B58)+1) -> 
A60: =IF(ISNUMBER(SEARCH(STATEMENT!$F$9,Table4[Customer العميل])),MAX($A$1:A59)+1,0) -> 0 | B60: =IF(OR(C60="",Table4[[#Headers],[Customer العميل]]=""),"",MAX($B$1:B59)+1) -> 
A61: =IF(ISNUMBER(SEARCH(STATEMENT!$F$9,Table4[Customer العميل])),MAX($A$1:A60)+1,0) -> 0 | B61: =IF(OR(C61="",Table4[[#Headers],[Customer العميل]]=""),"",MAX($B$1:B60)+1) -> 
A62: =IF(ISNUMBER(SEARCH(STATEMENT!$F$9,Table4[Customer العميل])),MAX($A$1:A61)+1,0) -> 0 | B62: =IF(OR(C62="",Table4[[#Headers],[Customer العميل]]=""),"",MAX($B$1:B61)+1) -> 
A63: =IF(ISNUMBER(SEARCH(STATEMENT!$F$9,Table4[Customer العميل])),MAX($A$1:A62)+1,0) -> 0 | B63: =IF(OR(C63="",Table4[[#Headers],[Customer العميل]]=""),"",MAX($B$1:B62)+1) -> 
A64: =IF(ISNUMBER(SEARCH(STATEMENT!$F$9,Table4[Customer العميل])),MAX($A$1:A63)+1,0) -> 0 | B64: =IF(OR(C64="",Table4[[#Headers],[Customer العميل]]=""),"",MAX($B$1:B63)+1) -> 
A65: =IF(ISNUMBER(SEARCH(STATEMENT!$F$9,Table4[Customer العميل])),MAX($A$1:A64)+1,0) -> 0 | B65: =IF(OR(C65="",Table4[[#Headers],[Customer العميل]]=""),"",MAX($B$1:B64)+1) -> 
A66: =IF(ISNUMBER(SEARCH(STATEMENT!$F$9,Table4[Customer العميل])),MAX($A$1:A65)+1,0) -> 0 | B66: =IF(OR(C66="",Table4[[#Headers],[Customer العميل]]=""),"",MAX($B$1:B65)+1) -> 
A67: =IF(ISNUMBER(SEARCH(STATEMENT!$F$9,Table4[Customer العميل])),MAX($A$1:A66)+1,0) -> 0 | B67: =IF(OR(C67="",Table4[[#Headers],[Customer العميل]]=""),"",MAX($B$1:B66)+1) -> 
A68: =IF(ISNUMBER(SEARCH(STATEMENT!$F$9,Table4[Customer العميل])),MAX($A$1:A67)+1,0) -> 0 | B68: =IF(OR(C68="",Table4[[#Headers],[Customer العميل]]=""),"",MAX($B$1:B67)+1) -> 
A69: =IF(ISNUMBER(SEARCH(STATEMENT!$F$9,Table4[Customer العميل])),MAX($A$1:A68)+1,0) -> 0 | B69: =IF(OR(C69="",Table4[[#Headers],[Customer العميل]]=""),"",MAX($B$1:B68)+1) -> 
A70: =IF(ISNUMBER(SEARCH(STATEMENT!$F$9,Table4[Customer العميل])),MAX($A$1:A69)+1,0) -> 0 | B70: =IF(OR(C70="",Table4[[#Headers],[Customer العميل]]=""),"",MAX($B$1:B69)+1) -> 
A71: =IF(ISNUMBER(SEARCH(STATEMENT!$F$9,Table4[Customer العميل])),MAX($A$1:A70)+1,0) -> 0 | C71: =MAX(Table4['#])& " invoices" -> 41 invoices | E71: =SUBTOTAL(109,Table4[Invoice Amount مبلغ الفاتورة]) -> 64656.84
A72: =IF(ISNUMBER(SEARCH(STATEMENT!$F$9,Table4[Customer العميل])),MAX($A$1:A71)+1,0) -> 0
A73: =IF(ISNUMBER(SEARCH(STATEMENT!$F$9,Table4[Customer العميل])),MAX($A$1:A72)+1,0) -> 0
A74: =IF(ISNUMBER(SEARCH(STATEMENT!$F$9,Table4[Customer العميل])),MAX($A$1:A73)+1,0) -> 0
A75: =IF(ISNUMBER(SEARCH(STATEMENT!$F$9,Table4[Customer العميل])),MAX($A$1:A74)+1,0) -> 0
A76: =IF(ISNUMBER(SEARCH(STATEMENT!$F$9,Table4[Customer العميل])),MAX($A$1:A75)+1,0) -> 0
A77: =IF(ISNUMBER(SEARCH(STATEMENT!$F$9,Table4[Customer العميل])),MAX($A$1:A76)+1,0) -> 0
A78: =IF(ISNUMBER(SEARCH(STATEMENT!$F$9,Table4[Customer العميل])),MAX($A$1:A77)+1,0) -> 0
A79: =IF(ISNUMBER(SEARCH(STATEMENT!$F$9,Table4[Customer العميل])),MAX($A$1:A78)+1,0) -> 0
A80: =IF(ISNUMBER(SEARCH(STATEMENT!$F$9,Table4[Customer العميل])),MAX($A$1:A79)+1,0) -> 0
A81: =IF(ISNUMBER(SEARCH(STATEMENT!$F$9,Table4[Customer العميل])),MAX($A$1:A80)+1,0) -> 0
A82: =IF(ISNUMBER(SEARCH(STATEMENT!$F$9,Table4[Customer العميل])),MAX($A$1:A81)+1,0) -> 0
A83: =IF(ISNUMBER(SEARCH(STATEMENT!$F$9,Table4[Customer العميل])),MAX($A$1:A82)+1,0) -> 0
A84: =IF(ISNUMBER(SEARCH(STATEMENT!$F$9,Table4[Customer العميل])),MAX($A$1:A83)+1,0) -> 0
A85: =IF(ISNUMBER(SEARCH(STATEMENT!$F$9,Table4[Customer العميل])),MAX($A$1:A84)+1,0) -> 0
A86: =IF(ISNUMBER(SEARCH(STATEMENT!$F$9,Table4[Customer العميل])),MAX($A$1:A85)+1,0) -> 0
A87: =IF(ISNUMBER(SEARCH(STATEMENT!$F$9,Table4[Customer العميل])),MAX($A$1:A86)+1,0) -> 0
A88: =IF(ISNUMBER(SEARCH(STATEMENT!$F$9,Table4[Customer العميل])),MAX($A$1:A87)+1,0) -> 0
A89: =IF(ISNUMBER(SEARCH(STATEMENT!$F$9,Table4[Customer العميل])),MAX($A$1:A88)+1,0) -> 0
A90: =IF(ISNUMBER(SEARCH(STATEMENT!$F$9,Table4[Customer العميل])),MAX($A$1:A89)+1,0) -> 0
A91: =IF(ISNUMBER(SEARCH(STATEMENT!$F$9,Table4[Customer العميل])),MAX($A$1:A90)+1,0) -> 0
A92: =IF(ISNUMBER(SEARCH(STATEMENT!$F$9,Table4[Customer العميل])),MAX($A$1:A91)+1,0) -> 0
A93: =IF(ISNUMBER(SEARCH(STATEMENT!$F$9,Table4[Customer العميل])),MAX($A$1:A92)+1,0) -> 0
A94: =IF(ISNUMBER(SEARCH(STATEMENT!$F$9,Table4[Customer العميل])),MAX($A$1:A93)+1,0) -> 0
A95: =IF(ISNUMBER(SEARCH(STATEMENT!$F$9,Table4[Customer العميل])),MAX($A$1:A94)+1,0) -> 0
A96: =IF(ISNUMBER(SEARCH(STATEMENT!$F$9,Table4[Customer العميل])),MAX($A$1:A95)+1,0) -> 0
A97: =IF(ISNUMBER(SEARCH(STATEMENT!$F$9,Table4[Customer العميل])),MAX($A$1:A96)+1,0) -> 0
A98: =IF(ISNUMBER(SEARCH(STATEMENT!$F$9,Table4[Customer العميل])),MAX($A$1:A97)+1,0) -> 0
A99: =IF(ISNUMBER(SEARCH(STATEMENT!$F$9,Table4[Customer العميل])),MAX($A$1:A98)+1,0) -> 0
A100: =IF(ISNUMBER(SEARCH(STATEMENT!$F$9,Table4[Customer العميل])),MAX($A$1:A99)+1,0) -> 0
A101: =IF(ISNUMBER(SEARCH(STATEMENT!$F$9,Table4[Customer العميل])),MAX($A$1:A100)+1,0) -> 0
A102: =IF(ISNUMBER(SEARCH(STATEMENT!$F$9,Table4[Customer العميل])),MAX($A$1:A101)+1,0) -> 0
A103: =IF(ISNUMBER(SEARCH(STATEMENT!$F$9,Table4[Customer العميل])),MAX($A$1:A102)+1,0) -> 0
A104: =IF(ISNUMBER(SEARCH(STATEMENT!$F$9,Table4[Customer العميل])),MAX($A$1:A103)+1,0) -> 0
A105: =IF(ISNUMBER(SEARCH(STATEMENT!$F$9,Table4[Customer العميل])),MAX($A$1:A104)+1,0) -> 0
A106: =IF(ISNUMBER(SEARCH(STATEMENT!$F$9,Table4[Customer العميل])),MAX($A$1:A105)+1,0) -> 0
A107: =IF(ISNUMBER(SEARCH(STATEMENT!$F$9,Table4[Customer العميل])),MAX($A$1:A106)+1,0) -> 0
A108: =IF(ISNUMBER(SEARCH(STATEMENT!$F$9,Table4[Customer العميل])),MAX($A$1:A107)+1,0) -> 0
A109: =IF(ISNUMBER(SEARCH(STATEMENT!$F$9,Table4[Customer العميل])),MAX($A$1:A108)+1,0) -> 0
A110: =IF(ISNUMBER(SEARCH(STATEMENT!$F$9,Table4[Customer العميل])),MAX($A$1:A109)+1,0) -> 0
A111: =IF(ISNUMBER(SEARCH(STATEMENT!$F$9,Table4[Customer العميل])),MAX($A$1:A110)+1,0) -> 0
A112: =IF(ISNUMBER(SEARCH(STATEMENT!$F$9,Table4[Customer العميل])),MAX($A$1:A111)+1,0) -> 0
A113: =IF(ISNUMBER(SEARCH(STATEMENT!$F$9,Table4[Customer العميل])),MAX($A$1:A112)+1,0) -> 0
A114: =IF(ISNUMBER(SEARCH(STATEMENT!$F$9,Table4[Customer العميل])),MAX($A$1:A113)+1,0) -> 0
A115: =IF(ISNUMBER(SEARCH(STATEMENT!$F$9,Table4[Customer العميل])),MAX($A$1:A114)+1,0) -> 0
A116: =IF(ISNUMBER(SEARCH(STATEMENT!$F$9,Table4[Customer العميل])),MAX($A$1:A115)+1,0) -> 0
A117: =IF(ISNUMBER(SEARCH(STATEMENT!$F$9,Table4[Customer العميل])),MAX($A$1:A116)+1,0) -> 0
A118: =IF(ISNUMBER(SEARCH(STATEMENT!$F$9,Table4[Customer العميل])),MAX($A$1:A117)+1,0) -> 0
A119: =IF(ISNUMBER(SEARCH(STATEMENT!$F$9,Table4[Customer العميل])),MAX($A$1:A118)+1,0) -> 0
A120: =IF(ISNUMBER(SEARCH(STATEMENT!$F$9,Table4[Customer العميل])),MAX($A$1:A119)+1,0) -> 0
A121: =IF(ISNUMBER(SEARCH(STATEMENT!$F$9,Table4[Customer العميل])),MAX($A$1:A120)+1,0) -> 0
A122: =IF(ISNUMBER(SEARCH(STATEMENT!$F$9,Table4[Customer العميل])),MAX($A$1:A121)+1,0) -> 0
A123: =IF(ISNUMBER(SEARCH(STATEMENT!$F$9,Table4[Customer العميل])),MAX($A$1:A122)+1,0) -> 0
A124: =IF(ISNUMBER(SEARCH(STATEMENT!$F$9,Table4[Customer العميل])),MAX($A$1:A123)+1,0) -> 0
A125: =IF(ISNUMBER(SEARCH(STATEMENT!$F$9,Table4[Customer العميل])),MAX($A$1:A124)+1,0) -> 0
A126: =IF(ISNUMBER(SEARCH(STATEMENT!$F$9,Table4[Customer العميل])),MAX($A$1:A125)+1,0) -> 0
A127: =IF(ISNUMBER(SEARCH(STATEMENT!$F$9,Table4[Customer العميل])),MAX($A$1:A126)+1,0) -> 0
A128: =IF(ISNUMBER(SEARCH(STATEMENT!$F$9,Table4[Customer العميل])),MAX($A$1:A127)+1,0) -> 0
A129: =IF(ISNUMBER(SEARCH(STATEMENT!$F$9,Table4[Customer العميل])),MAX($A$1:A128)+1,0) -> 0
A130: =IF(ISNUMBER(SEARCH(STATEMENT!$F$9,Table4[Customer العميل])),MAX($A$1:A129)+1,0) -> 0
A131: =IF(ISNUMBER(SEARCH(STATEMENT!$F$9,Table4[Customer العميل])),MAX($A$1:A130)+1,0) -> 0
A132: =IF(ISNUMBER(SEARCH(STATEMENT!$F$9,Table4[Customer العميل])),MAX($A$1:A131)+1,0) -> 0
A133: =IF(ISNUMBER(SEARCH(STATEMENT!$F$9,Table4[Customer العميل])),MAX($A$1:A132)+1,0) -> 0
A134: =IF(ISNUMBER(SEARCH(STATEMENT!$F$9,Table4[Customer العميل])),MAX($A$1:A133)+1,0) -> 0
A135: =IF(ISNUMBER(SEARCH(STATEMENT!$F$9,Table4[Customer العميل])),MAX($A$1:A134)+1,0) -> 0
A136: =IF(ISNUMBER(SEARCH(STATEMENT!$F$9,Table4[Customer العميل])),MAX($A$1:A135)+1,0) -> 0
A137: =IF(ISNUMBER(SEARCH(STATEMENT!$F$9,Table4[Customer العميل])),MAX($A$1:A136)+1,0) -> 0
A138: =IF(ISNUMBER(SEARCH(STATEMENT!$F$9,Table4[Customer العميل])),MAX($A$1:A137)+1,0) -> 0
A139: =IF(ISNUMBER(SEARCH(STATEMENT!$F$9,Table4[Customer العميل])),MAX($A$1:A138)+1,0) -> 0
A140: =IF(ISNUMBER(SEARCH(STATEMENT!$F$9,Table4[Customer العميل])),MAX($A$1:A139)+1,0) -> 0
A141: =IF(ISNUMBER(SEARCH(STATEMENT!$F$9,Table4[Customer العميل])),MAX($A$1:A140)+1,0) -> 0
A142: =IF(ISNUMBER(SEARCH(STATEMENT!$F$9,Table4[Customer العميل])),MAX($A$1:A141)+1,0) -> 0
A143: =IF(ISNUMBER(SEARCH(STATEMENT!$F$9,Table4[Customer العميل])),MAX($A$1:A142)+1,0) -> 0
A144: =IF(ISNUMBER(SEARCH(STATEMENT!$F$9,Table4[Customer العميل])),MAX($A$1:A143)+1,0) -> 0
A145: =IF(ISNUMBER(SEARCH(STATEMENT!$F$9,Table4[Customer العميل])),MAX($A$1:A144)+1,0) -> 0
A146: =IF(ISNUMBER(SEARCH(STATEMENT!$F$9,Table4[Customer العميل])),MAX($A$1:A145)+1,0) -> 0
A147: =IF(ISNUMBER(SEARCH(STATEMENT!$F$9,Table4[Customer العميل])),MAX($A$1:A146)+1,0) -> 0
A148: =IF(ISNUMBER(SEARCH(STATEMENT!$F$9,Table4[Customer العميل])),MAX($A$1:A147)+1,0) -> 0
A149: =IF(ISNUMBER(SEARCH(STATEMENT!$F$9,Table4[Customer العميل])),MAX($A$1:A148)+1,0) -> 0
A150: =IF(ISNUMBER(SEARCH(STATEMENT!$F$9,Table4[Customer العميل])),MAX($A$1:A149)+1,0) -> 0
A151: =IF(ISNUMBER(SEARCH(STATEMENT!$F$9,Table4[Customer العميل])),MAX($A$1:A150)+1,0) -> 0
A152: =IF(ISNUMBER(SEARCH(STATEMENT!$F$9,Table4[Customer العميل])),MAX($A$1:A151)+1,0) -> 0
A153: =IF(ISNUMBER(SEARCH(STATEMENT!$F$9,Table4[Customer العميل])),MAX($A$1:A152)+1,0) -> 0
A154: =IF(ISNUMBER(SEARCH(STATEMENT!$F$9,Table4[Customer العميل])),MAX($A$1:A153)+1,0) -> 0
A155: =IF(ISNUMBER(SEARCH(STATEMENT!$F$9,Table4[Customer العميل])),MAX($A$1:A154)+1,0) -> 0
A156: =IF(ISNUMBER(SEARCH(STATEMENT!$F$9,Table4[Customer العميل])),MAX($A$1:A155)+1,0) -> 0
A157: =IF(ISNUMBER(SEARCH(STATEMENT!$F$9,Table4[Customer العميل])),MAX($A$1:A156)+1,0) -> 0
A158: =IF(ISNUMBER(SEARCH(STATEMENT!$F$9,Table4[Customer العميل])),MAX($A$1:A157)+1,0) -> 0
A159: =IF(ISNUMBER(SEARCH(STATEMENT!$F$9,Table4[Customer العميل])),MAX($A$1:A158)+1,0) -> 0
A160: =IF(ISNUMBER(SEARCH(STATEMENT!$F$9,Table4[Customer العميل])),MAX($A$1:A159)+1,0) -> 0
A161: =IF(ISNUMBER(SEARCH(STATEMENT!$F$9,Table4[Customer العميل])),MAX($A$1:A160)+1,0) -> 0
A162: =IF(ISNUMBER(SEARCH(STATEMENT!$F$9,Table4[Customer العميل])),MAX($A$1:A161)+1,0) -> 0
A163: =IF(ISNUMBER(SEARCH(STATEMENT!$F$9,Table4[Customer العميل])),MAX($A$1:A162)+1,0) -> 0
A164: =IF(ISNUMBER(SEARCH(STATEMENT!$F$9,Table4[Customer العميل])),MAX($A$1:A163)+1,0) -> 0
A165: =IF(ISNUMBER(SEARCH(STATEMENT!$F$9,Table4[Customer العميل])),MAX($A$1:A164)+1,0) -> 0
A166: =IF(ISNUMBER(SEARCH(STATEMENT!$F$9,Table4[Customer العميل])),MAX($A$1:A165)+1,0) -> 0
A167: =IF(ISNUMBER(SEARCH(STATEMENT!$F$9,Table4[Customer العميل])),MAX($A$1:A166)+1,0) -> 0
A168: =IF(ISNUMBER(SEARCH(STATEMENT!$F$9,Table4[Customer العميل])),MAX($A$1:A167)+1,0) -> 0
A169: =IF(ISNUMBER(SEARCH(STATEMENT!$F$9,Table4[Customer العميل])),MAX($A$1:A168)+1,0) -> 0
A170: =IF(ISNUMBER(SEARCH(STATEMENT!$F$9,Table4[Customer العميل])),MAX($A$1:A169)+1,0) -> 0
A171: =IF(ISNUMBER(SEARCH(STATEMENT!$F$9,Table4[Customer العميل])),MAX($A$1:A170)+1,0) -> 0
A172: =IF(ISNUMBER(SEARCH(STATEMENT!$F$9,Table4[Customer العميل])),MAX($A$1:A171)+1,0) -> 0
A173: =IF(ISNUMBER(SEARCH(STATEMENT!$F$9,Table4[Customer العميل])),MAX($A$1:A172)+1,0) -> 0
A174: =IF(ISNUMBER(SEARCH(STATEMENT!$F$9,Table4[Customer العميل])),MAX($A$1:A173)+1,0) -> 0
A175: =IF(ISNUMBER(SEARCH(STATEMENT!$F$9,Table4[Customer العميل])),MAX($A$1:A174)+1,0) -> 0
A176: =IF(ISNUMBER(SEARCH(STATEMENT!$F$9,Table4[Customer العميل])),MAX($A$1:A175)+1,0) -> 0
A177: =IF(ISNUMBER(SEARCH(STATEMENT!$F$9,Table4[Customer العميل])),MAX($A$1:A176)+1,0) -> 0
A178: =IF(ISNUMBER(SEARCH(STATEMENT!$F$9,Table4[Customer العميل])),MAX($A$1:A177)+1,0) -> 0
A179: =IF(ISNUMBER(SEARCH(STATEMENT!$F$9,Table4[Customer العميل])),MAX($A$1:A178)+1,0) -> 0
A180: =IF(ISNUMBER(SEARCH(STATEMENT!$F$9,Table4[Customer العميل])),MAX($A$1:A179)+1,0) -> 0
A181: =IF(ISNUMBER(SEARCH(STATEMENT!$F$9,Table4[Customer العميل])),MAX($A$1:A180)+1,0) -> 0
A182: =IF(ISNUMBER(SEARCH(STATEMENT!$F$9,Table4[Customer العميل])),MAX($A$1:A181)+1,0) -> 0
A183: =IF(ISNUMBER(SEARCH(STATEMENT!$F$9,Table4[Customer العميل])),MAX($A$1:A182)+1,0) -> 0
A184: =IF(ISNUMBER(SEARCH(STATEMENT!$F$9,Table4[Customer العميل])),MAX($A$1:A183)+1,0) -> 0
A185: =IF(ISNUMBER(SEARCH(STATEMENT!$F$9,Table4[Customer العميل])),MAX($A$1:A184)+1,0) -> 0
A186: =IF(ISNUMBER(SEARCH(STATEMENT!$F$9,Table4[Customer العميل])),MAX($A$1:A185)+1,0) -> 0
A187: =IF(ISNUMBER(SEARCH(STATEMENT!$F$9,Table4[Customer العميل])),MAX($A$1:A186)+1,0) -> 0
A188: =IF(ISNUMBER(SEARCH(STATEMENT!$F$9,Table4[Customer العميل])),MAX($A$1:A187)+1,0) -> 0
A189: =IF(ISNUMBER(SEARCH(STATEMENT!$F$9,Table4[Customer العميل])),MAX($A$1:A188)+1,0) -> 0
A190: =IF(ISNUMBER(SEARCH(STATEMENT!$F$9,Table4[Customer العميل])),MAX($A$1:A189)+1,0) -> 0
A191: =IF(ISNUMBER(SEARCH(STATEMENT!$F$9,Table4[Customer العميل])),MAX($A$1:A190)+1,0) -> 0
A192: =IF(ISNUMBER(SEARCH(STATEMENT!$F$9,Table4[Customer العميل])),MAX($A$1:A191)+1,0) -> 0
A193: =IF(ISNUMBER(SEARCH(STATEMENT!$F$9,Table4[Customer العميل])),MAX($A$1:A192)+1,0) -> 0
A194: =IF(ISNUMBER(SEARCH(STATEMENT!$F$9,Table4[Customer العميل])),MAX($A$1:A193)+1,0) -> 0
A195: =IF(ISNUMBER(SEARCH(STATEMENT!$F$9,Table4[Customer العميل])),MAX($A$1:A194)+1,0) -> 0
A196: =IF(ISNUMBER(SEARCH(STATEMENT!$F$9,Table4[Customer العميل])),MAX($A$1:A195)+1,0) -> 0
A197: =IF(ISNUMBER(SEARCH(STATEMENT!$F$9,Table4[Customer العميل])),MAX($A$1:A196)+1,0) -> 0
A198: =IF(ISNUMBER(SEARCH(STATEMENT!$F$9,Table4[Customer العميل])),MAX($A$1:A197)+1,0) -> 0
A199: =IF(ISNUMBER(SEARCH(STATEMENT!$F$9,Table4[Customer العميل])),MAX($A$1:A198)+1,0) -> 0
A200: =IF(ISNUMBER(SEARCH(STATEMENT!$F$9,Table4[Customer العميل])),MAX($A$1:A199)+1,0) -> 0
... 1269 more rows

Sheet Payments
A1: PAYMENTS | B1: # | C1: Customer العميل | D1: Payment Date تاريخ الدفع | E1: Paid Amount المبلغ المدفوع | F1: Notes ملاحظات
A2: =IF(ISNUMBER(SEARCH(STATEMENT!$F$9,Table5[Customer العميل])),MAX($A$1:A1)+1,0) -> 0 | B2: =ROW()-1 -> 1 | C2: Mohamed Jazouli | D2: 2017-03-04 | E2: 1000 | F2: INV 22803
A3: =IF(ISNUMBER(SEARCH(STATEMENT!$F$9,Table5[Customer العميل])),MAX($A$1:A2)+1,0) -> 1 | B3: 2 | C3: Dallah Healthcare Co. / Dallah Hospital | D3: 2017-10-26 | E3: 3540.23 | F3: INV 28
A4: =IF(ISNUMBER(SEARCH(STATEMENT!$F$9,Table5[Customer العميل])),MAX($A$1:A3)+1,0) -> 2 | B4: 3 | C4: Dallah Healthcare Co. / Dallah Hospital | D4: 2017-10-26 | E4: 1523.63 | F4: INV 27
A5: =IF(ISNUMBER(SEARCH(STATEMENT!$F$9,Table5[Customer العميل])),MAX($A$1:A4)+1,0) -> 0 | B5: 4 | C5: AlKhair Pharmacy | D5: 2017-12-03 | E5: 500
A6: =IF(ISNUMBER(SEARCH(STATEMENT!$F$9,Table5[Customer العميل])),MAX($A$1:A5)+1,0) -> 3 | B6: 5 | C6: Dallah Healthcare Co. / Dallah Hospital | D6: 2018-01-17 | E6: 2344.96 | F6: INV 65
A7: =IF(ISNUMBER(SEARCH(STATEMENT!$F$9,Table5[Customer العميل])),MAX($A$1:A6)+1,0) -> 4 | B7: 6 | C7: Dallah Healthcare Co. / Dallah Hospital | D7: 2018-01-17 | E7: 2008 | F7: INV 41
A8: =IF(ISNUMBER(SEARCH(STATEMENT!$F$9,Table5[Customer العميل])),MAX($A$1:A7)+1,0) -> 5 | B8: 7 | C8: Dallah Healthcare Co. / Dallah Hospital | D8: 2018-01-17 | E8: 998.26 | F8: INV 23268
A9: =IF(ISNUMBER(SEARCH(STATEMENT!$F$9,Table5[Customer العميل])),MAX($A$1:A8)+1,0) -> 6 | B9: 8 | C9: Dallah Healthcare Co. / Dallah Hospital | D9: 2018-01-17 | E9: 637 | F9: INV 18
A10: =IF(ISNUMBER(SEARCH(STATEMENT!$F$9,Table5[Customer العميل])),MAX($A$1:A9)+1,0) -> 0 | B10: 9 | C10: Attar Alhakeem | D10: 2018-01-25 | E10: 1049.11 | F10: INV 126 16-4-2018 paid 849.11, earlier 200
A11: =IF(ISNUMBER(SEARCH(STATEMENT!$F$9,Table5[Customer العميل])),MAX($A$1:A10)+1,0) -> 7 | B11: 10 | C11: Dallah Healthcare Co. / Dallah Hospital | D11: 2018-03-10 | E11: 3782.76 | F11: INV 12
A12: =IF(ISNUMBER(SEARCH(STATEMENT!$F$9,Table5[Customer العميل])),MAX($A$1:A11)+1,0) -> 0 | B12: 11 | C12: AlKhair Pharmacy | D12: 2018-04-12 | E12: 108.6
A13: =IF(ISNUMBER(SEARCH(STATEMENT!$F$9,Table5[Customer العميل])),MAX($A$1:A12)+1,0) -> 0 | B13: 12 | C13: Mohamed Jazouli | D13: 2018-04-20 | E13: 628 | F13: INV 5000
A14: =IF(ISNUMBER(SEARCH(STATEMENT!$F$9,Table5[Customer العميل])),MAX($A$1:A13)+1,0) -> 0 | B14: 13 | C14: AlKhair Pharmacy | D14: 2018-04-24 | E14: 500
A15: =IF(ISNUMBER(SEARCH(STATEMENT!$F$9,Table5[Customer العميل])),MAX($A$1:A14)+1,0) -> 8 | B15: 14 | C15: Dallah Healthcare Co. / Dallah Hospital | D15: 2018-04-28 | E15: 2354.63 | F15: INV 102
A16: =IF(ISNUMBER(SEARCH(STATEMENT!$F$9,Table5[Customer العميل])),MAX($A$1:A15)+1,0) -> 9 | B16: 15 | C16: Dallah Healthcare Co. / Dallah Hospital | D16: 2018-04-28 | E16: 2006.55 | F16: INV 101
A17: =IF(ISNUMBER(SEARCH(STATEMENT!$F$9,Table5[Customer العميل])),MAX($A$1:A16)+1,0) -> 10 | B17: 16 | C17: Dallah Healthcare Co. / Dallah Hospital | D17: 2018-04-28 | E17: 1250.34 | F17: INV 35
A18: =IF(ISNUMBER(SEARCH(STATEMENT!$F$9,Table5[Customer العميل])),MAX($A$1:A17)+1,0) -> 11 | B18: 17 | C18: Dallah Healthcare Co. / Dallah Hospital | D18: 2018-05-31 | E18: 2956.08 | F18: INV 4991
A19: =IF(ISNUMBER(SEARCH(STATEMENT!$F$9,Table5[Customer العميل])),MAX($A$1:A18)+1,0) -> 0 | B19: 18 | C19: Attar AlKuwait | D19: 2018-06-08 | E19: 1600
A20: =IF(ISNUMBER(SEARCH(STATEMENT!$F$9,Table5[Customer العميل])),MAX($A$1:A19)+1,0) -> 12 | B20: 19 | C20: Dallah Healthcare Co. / Dallah Hospital | D20: 2018-06-26 | E20: 1576.58 | F20: INV 4600
A21: =IF(ISNUMBER(SEARCH(STATEMENT!$F$9,Table5[Customer العميل])),MAX($A$1:A20)+1,0) -> 13 | B21: 20 | C21: Dallah Healthcare Co. / Dallah Hospital | D21: 2018-08-09 | E21: 2813.61 | F21: INV 4810
A22: =IF(ISNUMBER(SEARCH(STATEMENT!$F$9,Table5[Customer العميل])),MAX($A$1:A21)+1,0) -> 14 | B22: 21 | C22: Dallah Healthcare Co. / Dallah Hospital | D22: 2018-10-10 | E22: 7169.66 | F22: INV 4999
A23: =IF(ISNUMBER(SEARCH(STATEMENT!$F$9,Table5[Customer العميل])),MAX($A$1:A22)+1,0) -> 15 | B23: 22 | C23: Dallah Healthcare Co. / Dallah Hospital | D23: 2018-10-10 | E23: 2204.48 | F23: INV 5001
A24: =IF(ISNUMBER(SEARCH(STATEMENT!$F$9,Table5[Customer العميل])),MAX($A$1:A23)+1,0) -> 0 | B24: 23 | C24: AlKhair Pharmacy | D24: 2018-10-20 | E24: 300
A25: =IF(ISNUMBER(SEARCH(STATEMENT!$F$9,Table5[Customer العميل])),MAX($A$1:A24)+1,0) -> 0 | B25: 24
A26: =IF(ISNUMBER(SEARCH(STATEMENT!$F$9,Table5[Customer العميل])),MAX($A$1:A25)+1,0) -> 0 | B26: 25
A27: =IF(ISNUMBER(SEARCH(STATEMENT!$F$9,Table5[Customer العميل])),MAX($A$1:A26)+1,0) -> 0 | B27: 26
A28: =IF(ISNUMBER(SEARCH(STATEMENT!$F$9,Table5[Customer العميل])),MAX($A$1:A27)+1,0) -> 0 | B28: 27
A29: =IF(ISNUMBER(SEARCH(STATEMENT!$F$9,Table5[Customer العميل])),MAX($A$1:A28)+1,0) -> 0 | B29: 28
A30: =IF(ISNUMBER(SEARCH(STATEMENT!$F$9,Table5[Customer العميل])),MAX($A$1:A29)+1,0) -> 0 | B30: 29
A31: =IF(ISNUMBER(SEARCH(STATEMENT!$F$9,Table5[Customer العميل])),MAX($A$1:A30)+1,0) -> 0 | B31: 30
A32: =IF(ISNUMBER(SEARCH(STATEMENT!$F$9,Table5[Customer العميل])),MAX($A$1:A31)+1,0) -> 0 | B32: 31
A33: =IF(ISNUMBER(SEARCH(STATEMENT!$F$9,Table5[Customer العميل])),MAX($A$1:A32)+1,0) -> 0 | B33: 32
A34: =IF(ISNUMBER(SEARCH(STATEMENT!$F$9,Table5[Customer العميل])),MAX($A$1:A33)+1,0) -> 0 | B34: =ROW()-1 -> 33
A35: =IF(ISNUMBER(SEARCH(STATEMENT!$F$9,Table5[Customer العميل])),MAX($A$1:A34)+1,0) -> 0 | B35: 34
A36: =IF(ISNUMBER(SEARCH(STATEMENT!$F$9,Table5[Customer العميل])),MAX($A$1:A35)+1,0) -> 0 | B36: 35
A37: =IF(ISNUMBER(SEARCH(STATEMENT!$F$9,Table5[Customer العميل])),MAX($A$1:A36)+1,0) -> 0 | B37: 36
A38: =IF(ISNUMBER(SEARCH(STATEMENT!$F$9,Table5[Customer العميل])),MAX($A$1:A37)+1,0) -> 0 | B38: 37
A39: =IF(ISNUMBER(SEARCH(STATEMENT!$F$9,Table5[Customer العميل])),MAX($A$1:A38)+1,0) -> 0 | B39: 38
A40: =IF(ISNUMBER(SEARCH(STATEMENT!$F$9,Table5[Customer العميل])),MAX($A$1:A39)+1,0) -> 0 | B40: 39
A41: =IF(ISNUMBER(SEARCH(STATEMENT!$F$9,Table5[Customer العميل])),MAX($A$1:A40)+1,0) -> 0 | B41: 40
A42: =IF(ISNUMBER(SEARCH(STATEMENT!$F$9,Table5[Customer العميل])),MAX($A$1:A41)+1,0) -> 0 | B42: 41
A43: =IF(ISNUMBER(SEARCH(STATEMENT!$F$9,Table5[Customer العميل])),MAX($A$1:A42)+1,0) -> 0 | B43: 42
A44: =IF(ISNUMBER(SEARCH(STATEMENT!$F$9,Table5[Customer العميل])),MAX($A$1:A43)+1,0) -> 0 | B44: 43
A45: =IF(ISNUMBER(SEARCH(STATEMENT!$F$9,Table5[Customer العميل])),MAX($A$1:A44)+1,0) -> 0 | B45: 44
A46: =IF(ISNUMBER(SEARCH(STATEMENT!$F$9,Table5[Customer العميل])),MAX($A$1:A45)+1,0) -> 0 | B46: 45
A47: =IF(ISNUMBER(SEARCH(STATEMENT!$F$9,Table5[Customer العميل])),MAX($A$1:A46)+1,0) -> 0 | B47: 46
A48: =IF(ISNUMBER(SEARCH(STATEMENT!$F$9,Table5[Customer العميل])),MAX($A$1:A47)+1,0) -> 0 | B48: 47
A49: =IF(ISNUMBER(SEARCH(STATEMENT!$F$9,Table5[Customer العميل])),MAX($A$1:A48)+1,0) -> 0 | B49: 48
A50: =IF(ISNUMBER(SEARCH(STATEMENT!$F$9,Table5[Customer العميل])),MAX($A$1:A49)+1,0) -> 0 | B50: 49
A51: =IF(ISNUMBER(SEARCH(STATEMENT!$F$9,Table5[Customer العميل])),MAX($A$1:A50)+1,0) -> 0 | B51: 50
A52: =IF(ISNUMBER(SEARCH(STATEMENT!$F$9,Table5[Customer العميل])),MAX($A$1:A51)+1,0) -> 0 | B52: =ROW()-1 -> 51
A53: =IF(ISNUMBER(SEARCH(STATEMENT!$F$9,Table5[Customer العميل])),MAX($A$1:A52)+1,0) -> 0 | B53: =ROW()-1 -> 52
A54: =IF(ISNUMBER(SEARCH(STATEMENT!$F$9,Table5[Customer العميل])),MAX($A$1:A53)+1,0) -> 0 | C54: =SUBTOTAL(103,Table5[Customer العميل])&" Payments" -> 23 Payments | E54: =SUBTOTAL(109,Table5[Paid Amount المبلغ المدفوع]) -> 42852.48
A55: =IF(ISNUMBER(SEARCH(STATEMENT!$F$9,Table5[Customer العميل])),MAX($A$1:A54)+1,0) -> 0
A56: =IF(ISNUMBER(SEARCH(STATEMENT!$F$9,Table5[Customer العميل])),MAX($A$1:A55)+1,0) -> 0
A57: =IF(ISNUMBER(SEARCH(STATEMENT!$F$9,Table5[Customer العميل])),MAX($A$1:A56)+1,0) -> 0
A58: =IF(ISNUMBER(SEARCH(STATEMENT!$F$9,Table5[Customer العميل])),MAX($A$1:A57)+1,0) -> 0
A59: =IF(ISNUMBER(SEARCH(STATEMENT!$F$9,Table5[Customer العميل])),MAX($A$1:A58)+1,0) -> 0
A60: =IF(ISNUMBER(SEARCH(STATEMENT!$F$9,Table5[Customer العميل])),MAX($A$1:A59)+1,0) -> 0 | B60: Balances
A61: =IF(ISNUMBER(SEARCH(STATEMENT!$F$9,Table5[Customer العميل])),MAX($A$1:A60)+1,0) -> 0 | C61: Customer | D61: Balance
A62: =IF(ISNUMBER(SEARCH(STATEMENT!$F$9,Table5[Customer العميل])),MAX($A$1:A61)+1,0) -> 0 | C62: AlGaili Omar Bakheet | D62: =VLOOKUP(C62,Customers!$C$2:$G$13,5,0) -> 958.38
A63: =IF(ISNUMBER(SEARCH(STATEMENT!$F$9,Table5[Customer العميل])),MAX($A$1:A62)+1,0) -> 0 | C63: AlKhair Pharmacy | D63: =VLOOKUP(C63,Customers!$C$2:$G$13,5,0) -> 1245.03
A64: =IF(ISNUMBER(SEARCH(STATEMENT!$F$9,Table5[Customer العميل])),MAX($A$1:A63)+1,0) -> 0 | C64: Attar Alhakeem | D64: =VLOOKUP(C64,Customers!$C$2:$G$13,5,0) -> 4288.5
A65: =IF(ISNUMBER(SEARCH(STATEMENT!$F$9,Table5[Customer العميل])),MAX($A$1:A64)+1,0) -> 0 | C65: Attar AlKuwait | D65: =VLOOKUP(C65,Customers!$C$2:$G$13,5,0) -> -1600
A66: =IF(ISNUMBER(SEARCH(STATEMENT!$F$9,Table5[Customer العميل])),MAX($A$1:A65)+1,0) -> 0 | C66: Dallah Healthcare Co. / Dallah Hospital | D66: =VLOOKUP(C66,Customers!$C$2:$G$13,5,0) -> 1870.05
A67: =IF(ISNUMBER(SEARCH(STATEMENT!$F$9,Table5[Customer العميل])),MAX($A$1:A66)+1,0) -> 0 | C67: Hala Mohamed Alomdeh | D67: =VLOOKUP(C67,Customers!$C$2:$G$13,5,0) -> 1831.54
A68: =IF(ISNUMBER(SEARCH(STATEMENT!$F$9,Table5[Customer العميل])),MAX($A$1:A67)+1,0) -> 0 | C68: Ibrahim Bakhit | D68: =VLOOKUP(C68,Customers!$C$2:$G$13,5,0) -> 79.66
A69: =IF(ISNUMBER(SEARCH(STATEMENT!$F$9,Table5[Customer العميل])),MAX($A$1:A68)+1,0) -> 0 | C69: Moath Abdul Raqib | D69: =VLOOKUP(C69,Customers!$C$2:$G$13,5,0) -> 673.7
A70: =IF(ISNUMBER(SEARCH(STATEMENT!$F$9,Table5[Customer العميل])),MAX($A$1:A69)+1,0) -> 0 | C70: Mohamed Abduldayem Ahmad | D70: =VLOOKUP(C70,Customers!$C$2:$G$13,5,0) -> 1761.87
A71: =IF(ISNUMBER(SEARCH(STATEMENT!$F$9,Table5[Customer العميل])),MAX($A$1:A70)+1,0) -> 0 | C71: Mohamed Jazouli | D71: =VLOOKUP(C71,Customers!$C$2:$G$13,5,0) -> 2331.59
A72: =IF(ISNUMBER(SEARCH(STATEMENT!$F$9,Table5[Customer العميل])),MAX($A$1:A71)+1,0) -> 0 | C72: Yousri Mousa Othman | D72: =VLOOKUP(C72,Customers!$C$2:$G$13,5,0) -> 860.83
A73: =IF(ISNUMBER(SEARCH(STATEMENT!$F$9,Table5[Customer العميل])),MAX($A$1:A72)+1,0) -> 0 | C73: Zawaq Alasal | D73: =VLOOKUP(C73,Customers!$C$2:$G$13,5,0) -> 2770
A74: =IF(ISNUMBER(SEARCH(STATEMENT!$F$9,Table5[Customer العميل])),MAX($A$1:A73)+1,0) -> 0 | D74: =SUM(D62:D73) -> 17071.15
A75: =IF(ISNUMBER(SEARCH(STATEMENT!$F$9,Table5[Customer العميل])),MAX($A$1:A74)+1,0) -> 0
A76: =IF(ISNUMBER(SEARCH(STATEMENT!$F$9,Table5[Customer العميل])),MAX($A$1:A75)+1,0) -> 0
A77: =IF(ISNUMBER(SEARCH(STATEMENT!$F$9,Table5[Customer العميل])),MAX($A$1:A76)+1,0) -> 0
A78: =IF(ISNUMBER(SEARCH(STATEMENT!$F$9,Table5[Customer العميل])),MAX($A$1:A77)+1,0) -> 0
A79: =IF(ISNUMBER(SEARCH(STATEMENT!$F$9,Table5[Customer العميل])),MAX($A$1:A78)+1,0) -> 0
A80: =IF(ISNUMBER(SEARCH(STATEMENT!$F$9,Table5[Customer العميل])),MAX($A$1:A79)+1,0) -> 0
A81: =IF(ISNUMBER(SEARCH(STATEMENT!$F$9,Table5[Customer العميل])),MAX($A$1:A80)+1,0) -> 0
A82: =IF(ISNUMBER(SEARCH(STATEMENT!$F$9,Table5[Customer العميل])),MAX($A$1:A81)+1,0) -> 0
A83: =IF(ISNUMBER(SEARCH(STATEMENT!$F$9,Table5[Customer العميل])),MAX($A$1:A82)+1,0) -> 0
A84: =IF(ISNUMBER(SEARCH(STATEMENT!$F$9,Table5[Customer العميل])),MAX($A$1:A83)+1,0) -> 0
A85: =IF(ISNUMBER(SEARCH(STATEMENT!$F$9,Table5[Customer العميل])),MAX($A$1:A84)+1,0) -> 0
A86: =IF(ISNUMBER(SEARCH(STATEMENT!$F$9,Table5[Customer العميل])),MAX($A$1:A85)+1,0) -> 0
A87: =IF(ISNUMBER(SEARCH(STATEMENT!$F$9,Table5[Customer العميل])),MAX($A$1:A86)+1,0) -> 0
A88: =IF(ISNUMBER(SEARCH(STATEMENT!$F$9,Table5[Customer العميل])),MAX($A$1:A87)+1,0) -> 0
A89: =IF(ISNUMBER(SEARCH(STATEMENT!$F$9,Table5[Customer العميل])),MAX($A$1:A88)+1,0) -> 0
A90: =IF(ISNUMBER(SEARCH(STATEMENT!$F$9,Table5[Customer العميل])),MAX($A$1:A89)+1,0) -> 0
A91: =IF(ISNUMBER(SEARCH(STATEMENT!$F$9,Table5[Customer العميل])),MAX($A$1:A90)+1,0) -> 0
A92: =IF(ISNUMBER(SEARCH(STATEMENT!$F$9,Table5[Customer العميل])),MAX($A$1:A91)+1,0) -> 0
A93: =IF(ISNUMBER(SEARCH(STATEMENT!$F$9,Table5[Customer العميل])),MAX($A$1:A92)+1,0) -> 0
A94: =IF(ISNUMBER(SEARCH(STATEMENT!$F$9,Table5[Customer العميل])),MAX($A$1:A93)+1,0) -> 0
A95: =IF(ISNUMBER(SEARCH(STATEMENT!$F$9,Table5[Customer العميل])),MAX($A$1:A94)+1,0) -> 0
A96: =IF(ISNUMBER(SEARCH(STATEMENT!$F$9,Table5[Customer العميل])),MAX($A$1:A95)+1,0) -> 0
A97: =IF(ISNUMBER(SEARCH(STATEMENT!$F$9,Table5[Customer العميل])),MAX($A$1:A96)+1,0) -> 0
A98: =IF(ISNUMBER(SEARCH(STATEMENT!$F$9,Table5[Customer العميل])),MAX($A$1:A97)+1,0) -> 0
A99: =IF(ISNUMBER(SEARCH(STATEMENT!$F$9,Table5[Customer العميل])),MAX($A$1:A98)+1,0) -> 0
A100: =IF(ISNUMBER(SEARCH(STATEMENT!$F$9,Table5[Customer العميل])),MAX($A$1:A99)+1,0) -> 0
A101: =IF(ISNUMBER(SEARCH(STATEMENT!$F$9,Table5[Customer العميل])),MAX($A$1:A100)+1,0) -> 0
A102: =IF(ISNUMBER(SEARCH(STATEMENT!$F$9,Table5[Customer العميل])),MAX($A$1:A101)+1,0) -> 0
A103: =IF(ISNUMBER(SEARCH(STATEMENT!$F$9,Table5[Customer العميل])),MAX($A$1:A102)+1,0) -> 0
A104: =IF(ISNUMBER(SEARCH(STATEMENT!$F$9,Table5[Customer العميل])),MAX($A$1:A103)+1,0) -> 0
A105: =IF(ISNUMBER(SEARCH(STATEMENT!$F$9,Table5[Customer العميل])),MAX($A$1:A104)+1,0) -> 0
A106: =IF(ISNUMBER(SEARCH(STATEMENT!$F$9,Table5[Customer العميل])),MAX($A$1:A105)+1,0) -> 0
A107: =IF(ISNUMBER(SEARCH(STATEMENT!$F$9,Table5[Customer العميل])),MAX($A$1:A106)+1,0) -> 0
A108: =IF(ISNUMBER(SEARCH(STATEMENT!$F$9,Table5[Customer العميل])),MAX($A$1:A107)+1,0) -> 0
A109: =IF(ISNUMBER(SEARCH(STATEMENT!$F$9,Table5[Customer العميل])),MAX($A$1:A108)+1,0) -> 0
A110: =IF(ISNUMBER(SEARCH(STATEMENT!$F$9,Table5[Customer العميل])),MAX($A$1:A109)+1,0) -> 0
A111: =IF(ISNUMBER(SEARCH(STATEMENT!$F$9,Table5[Customer العميل])),MAX($A$1:A110)+1,0) -> 0
A112: =IF(ISNUMBER(SEARCH(STATEMENT!$F$9,Table5[Customer العميل])),MAX($A$1:A111)+1,0) -> 0
A113: =IF(ISNUMBER(SEARCH(STATEMENT!$F$9,Table5[Customer العميل])),MAX($A$1:A112)+1,0) -> 0
A114: =IF(ISNUMBER(SEARCH(STATEMENT!$F$9,Table5[Customer العميل])),MAX($A$1:A113)+1,0) -> 0
A115: =IF(ISNUMBER(SEARCH(STATEMENT!$F$9,Table5[Customer العميل])),MAX($A$1:A114)+1,0) -> 0
A116: =IF(ISNUMBER(SEARCH(STATEMENT!$F$9,Table5[Customer العميل])),MAX($A$1:A115)+1,0) -> 0
A117: =IF(ISNUMBER(SEARCH(STATEMENT!$F$9,Table5[Customer العميل])),MAX($A$1:A116)+1,0) -> 0
A118: =IF(ISNUMBER(SEARCH(STATEMENT!$F$9,Table5[Customer العميل])),MAX($A$1:A117)+1,0) -> 0
A119: =IF(ISNUMBER(SEARCH(STATEMENT!$F$9,Table5[Customer العميل])),MAX($A$1:A118)+1,0) -> 0
A120: =IF(ISNUMBER(SEARCH(STATEMENT!$F$9,Table5[Customer العميل])),MAX($A$1:A119)+1,0) -> 0
A121: =IF(ISNUMBER(SEARCH(STATEMENT!$F$9,Table5[Customer العميل])),MAX($A$1:A120)+1,0) -> 0
A122: =IF(ISNUMBER(SEARCH(STATEMENT!$F$9,Table5[Customer العميل])),MAX($A$1:A121)+1,0) -> 0
A123: =IF(ISNUMBER(SEARCH(STATEMENT!$F$9,Table5[Customer العميل])),MAX($A$1:A122)+1,0) -> 0
A124: =IF(ISNUMBER(SEARCH(STATEMENT!$F$9,Table5[Customer العميل])),MAX($A$1:A123)+1,0) -> 0
A125: =IF(ISNUMBER(SEARCH(STATEMENT!$F$9,Table5[Customer العميل])),MAX($A$1:A124)+1,0) -> 0
A126: =IF(ISNUMBER(SEARCH(STATEMENT!$F$9,Table5[Customer العميل])),MAX($A$1:A125)+1,0) -> 0
A127: =IF(ISNUMBER(SEARCH(STATEMENT!$F$9,Table5[Customer العميل])),MAX($A$1:A126)+1,0) -> 0
A128: =IF(ISNUMBER(SEARCH(STATEMENT!$F$9,Table5[Customer العميل])),MAX($A$1:A127)+1,0) -> 0
A129: =IF(ISNUMBER(SEARCH(STATEMENT!$F$9,Table5[Customer العميل])),MAX($A$1:A128)+1,0) -> 0
A130: =IF(ISNUMBER(SEARCH(STATEMENT!$F$9,Table5[Customer العميل])),MAX($A$1:A129)+1,0) -> 0
A131: =IF(ISNUMBER(SEARCH(STATEMENT!$F$9,Table5[Customer العميل])),MAX($A$1:A130)+1,0) -> 0
A132: =IF(ISNUMBER(SEARCH(STATEMENT!$F$9,Table5[Customer العميل])),MAX($A$1:A131)+1,0) -> 0
A133: =IF(ISNUMBER(SEARCH(STATEMENT!$F$9,Table5[Customer العميل])),MAX($A$1:A132)+1,0) -> 0
A134: =IF(ISNUMBER(SEARCH(STATEMENT!$F$9,Table5[Customer العميل])),MAX($A$1:A133)+1,0) -> 0
A135: =IF(ISNUMBER(SEARCH(STATEMENT!$F$9,Table5[Customer العميل])),MAX($A$1:A134)+1,0) -> 0
A136: =IF(ISNUMBER(SEARCH(STATEMENT!$F$9,Table5[Customer العميل])),MAX($A$1:A135)+1,0) -> 0
A137: =IF(ISNUMBER(SEARCH(STATEMENT!$F$9,Table5[Customer العميل])),MAX($A$1:A136)+1,0) -> 0
A138: =IF(ISNUMBER(SEARCH(STATEMENT!$F$9,Table5[Customer العميل])),MAX($A$1:A137)+1,0) -> 0
A139: =IF(ISNUMBER(SEARCH(STATEMENT!$F$9,Table5[Customer العميل])),MAX($A$1:A138)+1,0) -> 0
A140: =IF(ISNUMBER(SEARCH(STATEMENT!$F$9,Table5[Customer العميل])),MAX($A$1:A139)+1,0) -> 0
A141: =IF(ISNUMBER(SEARCH(STATEMENT!$F$9,Table5[Customer العميل])),MAX($A$1:A140)+1,0) -> 0
A142: =IF(ISNUMBER(SEARCH(STATEMENT!$F$9,Table5[Customer العميل])),MAX($A$1:A141)+1,0) -> 0
A143: =IF(ISNUMBER(SEARCH(STATEMENT!$F$9,Table5[Customer العميل])),MAX($A$1:A142)+1,0) -> 0
A144: =IF(ISNUMBER(SEARCH(STATEMENT!$F$9,Table5[Customer العميل])),MAX($A$1:A143)+1,0) -> 0
A145: =IF(ISNUMBER(SEARCH(STATEMENT!$F$9,Table5[Customer العميل])),MAX($A$1:A144)+1,0) -> 0
A146: =IF(ISNUMBER(SEARCH(STATEMENT!$F$9,Table5[Customer العميل])),MAX($A$1:A145)+1,0) -> 0
A147: =IF(ISNUMBER(SEARCH(STATEMENT!$F$9,Table5[Customer العميل])),MAX($A$1:A146)+1,0) -> 0
A148: =IF(ISNUMBER(SEARCH(STATEMENT!$F$9,Table5[Customer العميل])),MAX($A$1:A147)+1,0) -> 0
A149: =IF(ISNUMBER(SEARCH(STATEMENT!$F$9,Table5[Customer العميل])),MAX($A$1:A148)+1,0) -> 0
A150: =IF(ISNUMBER(SEARCH(STATEMENT!$F$9,Table5[Customer العميل])),MAX($A$1:A149)+1,0) -> 0
A151: =IF(ISNUMBER(SEARCH(STATEMENT!$F$9,Table5[Customer العميل])),MAX($A$1:A150)+1,0) -> 0
A152: =IF(ISNUMBER(SEARCH(STATEMENT!$F$9,Table5[Customer العميل])),MAX($A$1:A151)+1,0) -> 0
A153: =IF(ISNUMBER(SEARCH(STATEMENT!$F$9,Table5[Customer العميل])),MAX($A$1:A152)+1,0) -> 0
A154: =IF(ISNUMBER(SEARCH(STATEMENT!$F$9,Table5[Customer العميل])),MAX($A$1:A153)+1,0) -> 0
A155: =IF(ISNUMBER(SEARCH(STATEMENT!$F$9,Table5[Customer العميل])),MAX($A$1:A154)+1,0) -> 0
A156: =IF(ISNUMBER(SEARCH(STATEMENT!$F$9,Table5[Customer العميل])),MAX($A$1:A155)+1,0) -> 0
A157: =IF(ISNUMBER(SEARCH(STATEMENT!$F$9,Table5[Customer العميل])),MAX($A$1:A156)+1,0) -> 0
A158: =IF(ISNUMBER(SEARCH(STATEMENT!$F$9,Table5[Customer العميل])),MAX($A$1:A157)+1,0) -> 0
A159: =IF(ISNUMBER(SEARCH(STATEMENT!$F$9,Table5[Customer العميل])),MAX($A$1:A158)+1,0) -> 0
A160: =IF(ISNUMBER(SEARCH(STATEMENT!$F$9,Table5[Customer العميل])),MAX($A$1:A159)+1,0) -> 0
A161: =IF(ISNUMBER(SEARCH(STATEMENT!$F$9,Table5[Customer العميل])),MAX($A$1:A160)+1,0) -> 0
A162: =IF(ISNUMBER(SEARCH(STATEMENT!$F$9,Table5[Customer العميل])),MAX($A$1:A161)+1,0) -> 0
A163: =IF(ISNUMBER(SEARCH(STATEMENT!$F$9,Table5[Customer العميل])),MAX($A$1:A162)+1,0) -> 0
A164: =IF(ISNUMBER(SEARCH(STATEMENT!$F$9,Table5[Customer العميل])),MAX($A$1:A163)+1,0) -> 0
A165: =IF(ISNUMBER(SEARCH(STATEMENT!$F$9,Table5[Customer العميل])),MAX($A$1:A164)+1,0) -> 0
A166: =IF(ISNUMBER(SEARCH(STATEMENT!$F$9,Table5[Customer العميل])),MAX($A$1:A165)+1,0) -> 0
A167: =IF(ISNUMBER(SEARCH(STATEMENT!$F$9,Table5[Customer العميل])),MAX($A$1:A166)+1,0) -> 0
A168: =IF(ISNUMBER(SEARCH(STATEMENT!$F$9,Table5[Customer العميل])),MAX($A$1:A167)+1,0) -> 0
A169: =IF(ISNUMBER(SEARCH(STATEMENT!$F$9,Table5[Customer العميل])),MAX($A$1:A168)+1,0) -> 0
A170: =IF(ISNUMBER(SEARCH(STATEMENT!$F$9,Table5[Customer العميل])),MAX($A$1:A169)+1,0) -> 0
A171: =IF(ISNUMBER(SEARCH(STATEMENT!$F$9,Table5[Customer العميل])),MAX($A$1:A170)+1,0) -> 0
A172: =IF(ISNUMBER(SEARCH(STATEMENT!$F$9,Table5[Customer العميل])),MAX($A$1:A171)+1,0) -> 0
A173: =IF(ISNUMBER(SEARCH(STATEMENT!$F$9,Table5[Customer العميل])),MAX($A$1:A172)+1,0) -> 0
A174: =IF(ISNUMBER(SEARCH(STATEMENT!$F$9,Table5[Customer العميل])),MAX($A$1:A173)+1,0) -> 0
A175: =IF(ISNUMBER(SEARCH(STATEMENT!$F$9,Table5[Customer العميل])),MAX($A$1:A174)+1,0) -> 0
A176: =IF(ISNUMBER(SEARCH(STATEMENT!$F$9,Table5[Customer العميل])),MAX($A$1:A175)+1,0) -> 0
A177: =IF(ISNUMBER(SEARCH(STATEMENT!$F$9,Table5[Customer العميل])),MAX($A$1:A176)+1,0) -> 0
A178: =IF(ISNUMBER(SEARCH(STATEMENT!$F$9,Table5[Customer العميل])),MAX($A$1:A177)+1,0) -> 0
A179: =IF(ISNUMBER(SEARCH(STATEMENT!$F$9,Table5[Customer العميل])),MAX($A$1:A178)+1,0) -> 0
A180: =IF(ISNUMBER(SEARCH(STATEMENT!$F$9,Table5[Customer العميل])),MAX($A$1:A179)+1,0) -> 0
A181: =IF(ISNUMBER(SEARCH(STATEMENT!$F$9,Table5[Customer العميل])),MAX($A$1:A180)+1,0) -> 0
A182: =IF(ISNUMBER(SEARCH(STATEMENT!$F$9,Table5[Customer العميل])),MAX($A$1:A181)+1,0) -> 0
A183: =IF(ISNUMBER(SEARCH(STATEMENT!$F$9,Table5[Customer العميل])),MAX($A$1:A182)+1,0) -> 0
A184: =IF(ISNUMBER(SEARCH(STATEMENT!$F$9,Table5[Customer العميل])),MAX($A$1:A183)+1,0) -> 0
A185: =IF(ISNUMBER(SEARCH(STATEMENT!$F$9,Table5[Customer العميل])),MAX($A$1:A184)+1,0) -> 0
A186: =IF(ISNUMBER(SEARCH(STATEMENT!$F$9,Table5[Customer العميل])),MAX($A$1:A185)+1,0) -> 0
A187: =IF(ISNUMBER(SEARCH(STATEMENT!$F$9,Table5[Customer العميل])),MAX($A$1:A186)+1,0) -> 0
A188: =IF(ISNUMBER(SEARCH(STATEMENT!$F$9,Table5[Customer العميل])),MAX($A$1:A187)+1,0) -> 0
A189: =IF(ISNUMBER(SEARCH(STATEMENT!$F$9,Table5[Customer العميل])),MAX($A$1:A188)+1,0) -> 0
A190: =IF(ISNUMBER(SEARCH(STATEMENT!$F$9,Table5[Customer العميل])),MAX($A$1:A189)+1,0) -> 0
A191: =IF(ISNUMBER(SEARCH(STATEMENT!$F$9,Table5[Customer العميل])),MAX($A$1:A190)+1,0) -> 0
A192: =IF(ISNUMBER(SEARCH(STATEMENT!$F$9,Table5[Customer العميل])),MAX($A$1:A191)+1,0) -> 0
A193: =IF(ISNUMBER(SEARCH(STATEMENT!$F$9,Table5[Customer العميل])),MAX($A$1:A192)+1,0) -> 0
A194: =IF(ISNUMBER(SEARCH(STATEMENT!$F$9,Table5[Customer العميل])),MAX($A$1:A193)+1,0) -> 0
A195: =IF(ISNUMBER(SEARCH(STATEMENT!$F$9,Table5[Customer العميل])),MAX($A$1:A194)+1,0) -> 0
A196: =IF(ISNUMBER(SEARCH(STATEMENT!$F$9,Table5[Customer العميل])),MAX($A$1:A195)+1,0) -> 0
A197: =IF(ISNUMBER(SEARCH(STATEMENT!$F$9,Table5[Customer العميل])),MAX($A$1:A196)+1,0) -> 0
A198: =IF(ISNUMBER(SEARCH(STATEMENT!$F$9,Table5[Customer العميل])),MAX($A$1:A197)+1,0) -> 0
A199: =IF(ISNUMBER(SEARCH(STATEMENT!$F$9,Table5[Customer العميل])),MAX($A$1:A198)+1,0) -> 0
A200: =IF(ISNUMBER(SEARCH(STATEMENT!$F$9,Table5[Customer العميل])),MAX($A$1:A199)+1,0) -> 0
... 853 more rows

Sheet Customers
A1: CUSTOMERS | B1: # | C1: Customer | D1: FOB ID | E1: To Pay | F1: Paid | G1: Balance | H1: qty | I1: VAT Registration | J1: Mobile1 | K1: Office1 | L1: Address | M1: Notes
B2: =IF(Table3[[#This Row],[Customer]]="","",ROW()-1) -> 1 | C2: AlGaili Omar Bakheet | D2: 822682 | E2: =SUMIF(Table4[Customer العميل],Table3[[#This Row],[Customer]],Table4[Invoice Amount مبلغ الفاتورة]) -> 958.38 | F2: =SUMIF(Table5[Customer العميل],Table3[[#This Row],[Customer]],Table5[Paid Amount المبلغ المدفوع]) -> 0 | G2: =Table3[[#This Row],[To Pay]]-Table3[[#This Row],[Paid]] -> 958.38 | H2: =COUNTIF(Table4[Customer العميل],Table3[[#This Row],[Customer]]) -> 1
B3: =IF(Table3[[#This Row],[Customer]]="","",ROW()-1) -> 2 | C3: AlKhair Pharmacy | D3: 800037 | E3: =SUMIF(Table4[Customer العميل],Table3[[#This Row],[Customer]],Table4[Invoice Amount مبلغ الفاتورة]) -> 2653.63 | F3: =SUMIF(Table5[Customer العميل],Table3[[#This Row],[Customer]],Table5[Paid Amount المبلغ المدفوع]) -> 1408.6 | G3: =Table3[[#This Row],[To Pay]]-Table3[[#This Row],[Paid]] -> 1245.03 | H3: =COUNTIF(Table4[Customer العميل],Table3[[#This Row],[Customer]]) -> 5
B4: =IF(Table3[[#This Row],[Customer]]="","",ROW()-1) -> 3 | C4: Attar Alhakeem | D4: 798004 | E4: =SUMIF(Table4[Customer العميل],Table3[[#This Row],[Customer]],Table4[Invoice Amount مبلغ الفاتورة]) -> 5337.61 | F4: =SUMIF(Table5[Customer العميل],Table3[[#This Row],[Customer]],Table5[Paid Amount المبلغ المدفوع]) -> 1049.11 | G4: =Table3[[#This Row],[To Pay]]-Table3[[#This Row],[Paid]] -> 4288.5 | H4: =COUNTIF(Table4[Customer العميل],Table3[[#This Row],[Customer]]) -> 4
B5: =IF(Table3[[#This Row],[Customer]]="","",ROW()-1) -> 4 | C5: Attar AlKuwait | D5: 800042 | E5: =SUMIF(Table4[Customer العميل],Table3[[#This Row],[Customer]],Table4[Invoice Amount مبلغ الفاتورة]) -> 0 | F5: =SUMIF(Table5[Customer العميل],Table3[[#This Row],[Customer]],Table5[Paid Amount المبلغ المدفوع]) -> 1600 | G5: =Table3[[#This Row],[To Pay]]-Table3[[#This Row],[Paid]] -> -1600 | H5: =COUNTIF(Table4[Customer العميل],Table3[[#This Row],[Customer]]) -> 0
B6: =IF(Table3[[#This Row],[Customer]]="","",ROW()-1) -> 5 | C6: Dallah Healthcare Co. / Dallah Hospital | D6: 775962 | E6: =SUMIF(Table4[Customer العميل],Table3[[#This Row],[Customer]],Table4[Invoice Amount مبلغ الفاتورة]) -> 39036.82 | F6: =SUMIF(Table5[Customer العميل],Table3[[#This Row],[Customer]],Table5[Paid Amount المبلغ المدفوع]) -> 37166.77 | G6: =Table3[[#This Row],[To Pay]]-Table3[[#This Row],[Paid]] -> 1870.05 | H6: =COUNTIF(Table4[Customer العميل],Table3[[#This Row],[Customer]]) -> 16 | I6: 300049358500003 | L6: King Fahd Road, Alnakheel Street , Riyadh, KSA
B7: =IF(Table3[[#This Row],[Customer]]="","",ROW()-1) -> 6 | C7: Hala Mohamed Alomdeh | D7: 725343 | E7: =SUMIF(Table4[Customer العميل],Table3[[#This Row],[Customer]],Table4[Invoice Amount مبلغ الفاتورة]) -> 1831.54 | F7: =SUMIF(Table5[Customer العميل],Table3[[#This Row],[Customer]],Table5[Paid Amount المبلغ المدفوع]) -> 0 | G7: =Table3[[#This Row],[To Pay]]-Table3[[#This Row],[Paid]] -> 1831.54 | H7: =COUNTIF(Table4[Customer العميل],Table3[[#This Row],[Customer]]) -> 1
B8: =IF(Table3[[#This Row],[Customer]]="","",ROW()-1) -> 7 | C8: Ibrahim Bakhit | D8: 825009 | E8: =SUMIF(Table4[Customer العميل],Table3[[#This Row],[Customer]],Table4[Invoice Amount مبلغ الفاتورة]) -> 79.66 | F8: =SUMIF(Table5[Customer العميل],Table3[[#This Row],[Customer]],Table5[Paid Amount المبلغ المدفوع]) -> 0 | G8: =Table3[[#This Row],[To Pay]]-Table3[[#This Row],[Paid]] -> 79.66 | H8: =COUNTIF(Table4[Customer العميل],Table3[[#This Row],[Customer]]) -> 1
B9: =IF(Table3[[#This Row],[Customer]]="","",ROW()-1) -> 8 | C9: Moath Abdul Raqib | D9: 784382 | E9: =SUMIF(Table4[Customer العميل],Table3[[#This Row],[Customer]],Table4[Invoice Amount مبلغ الفاتورة]) -> 673.7 | F9: =SUMIF(Table5[Customer العميل],Table3[[#This Row],[Customer]],Table5[Paid Amount المبلغ المدفوع]) -> 0 | G9: =Table3[[#This Row],[To Pay]]-Table3[[#This Row],[Paid]] -> 673.7 | H9: =COUNTIF(Table4[Customer العميل],Table3[[#This Row],[Customer]]) -> 1
B10: =IF(Table3[[#This Row],[Customer]]="","",ROW()-1) -> 9 | C10: Mohamed Abduldayem Ahmad | D10: 807366 | E10: =SUMIF(Table4[Customer العميل],Table3[[#This Row],[Customer]],Table4[Invoice Amount مبلغ الفاتورة]) -> 1761.87 | F10: =SUMIF(Table5[Customer العميل],Table3[[#This Row],[Customer]],Table5[Paid Amount المبلغ المدفوع]) -> 0 | G10: =Table3[[#This Row],[To Pay]]-Table3[[#This Row],[Paid]] -> 1761.87 | H10: =COUNTIF(Table4[Customer العميل],Table3[[#This Row],[Customer]]) -> 1
B11: =IF(Table3[[#This Row],[Customer]]="","",ROW()-1) -> 10 | C11: Mohamed Jazouli | D11: 726477 | E11: =SUMIF(Table4[Customer العميل],Table3[[#This Row],[Customer]],Table4[Invoice Amount مبلغ الفاتورة]) -> 3959.59 | F11: =SUMIF(Table5[Customer العميل],Table3[[#This Row],[Customer]],Table5[Paid Amount المبلغ المدفوع]) -> 1628 | G11: =Table3[[#This Row],[To Pay]]-Table3[[#This Row],[Paid]] -> 2331.59 | H11: =COUNTIF(Table4[Customer العميل],Table3[[#This Row],[Customer]]) -> 3
B12: =IF(Table3[[#This Row],[Customer]]="","",ROW()-1) -> 11 | C12: Yousri Mousa Othman | D12: 769448 | E12: =SUMIF(Table4[Customer العميل],Table3[[#This Row],[Customer]],Table4[Invoice Amount مبلغ الفاتورة]) -> 860.83 | F12: =SUMIF(Table5[Customer العميل],Table3[[#This Row],[Customer]],Table5[Paid Amount المبلغ المدفوع]) -> 0 | G12: =Table3[[#This Row],[To Pay]]-Table3[[#This Row],[Paid]] -> 860.83 | H12: =COUNTIF(Table4[Customer العميل],Table3[[#This Row],[Customer]]) -> 2
B13: =IF(Table3[[#This Row],[Customer]]="","",ROW()-1) -> 12 | C13: Zawaq Alasal | D13: 787477 | E13: =SUMIF(Table4[Customer العميل],Table3[[#This Row],[Customer]],Table4[Invoice Amount مبلغ الفاتورة]) -> 2770 | F13: =SUMIF(Table5[Customer العميل],Table3[[#This Row],[Customer]],Table5[Paid Amount المبلغ المدفوع]) -> 0 | G13: =Table3[[#This Row],[To Pay]]-Table3[[#This Row],[Paid]] -> 2770 | H13: =COUNTIF(Table4[Customer العميل],Table3[[#This Row],[Customer]]) -> 2
B14: =IF(Table3[[#This Row],[Customer]]="","",ROW()-1) ->  | E14: =SUMIF(Table4[Customer العميل],Table3[[#This Row],[Customer]],Table4[Invoice Amount مبلغ الفاتورة]) -> 0 | F14: =SUMIF(Table5[Customer العميل],Table3[[#This Row],[Customer]],Table5[Paid Amount المبلغ المدفوع]) -> 0 | G14: =Table3[[#This Row],[To Pay]]-Table3[[#This Row],[Paid]] -> 0 | H14: =COUNTIF(Table4[Customer العميل],Table3[[#This Row],[Customer]]) -> 0
B15: =IF(Table3[[#This Row],[Customer]]="","",ROW()-1) ->  | E15: =SUMIF(Table4[Customer العميل],Table3[[#This Row],[Customer]],Table4[Invoice Amount مبلغ الفاتورة]) -> 0 | F15: =SUMIF(Table5[Customer العميل],Table3[[#This Row],[Customer]],Table5[Paid Amount المبلغ المدفوع]) -> 0 | G15: =Table3[[#This Row],[To Pay]]-Table3[[#This Row],[Paid]] -> 0 | H15: =COUNTIF(Table4[Customer العميل],Table3[[#This Row],[Customer]]) -> 0
B16: =IF(Table3[[#This Row],[Customer]]="","",ROW()-1) ->  | E16: =SUMIF(Table4[Customer العميل],Table3[[#This Row],[Customer]],Table4[Invoice Amount مبلغ الفاتورة]) -> 0 | F16: =SUMIF(Table5[Customer العميل],Table3[[#This Row],[Customer]],Table5[Paid Amount المبلغ المدفوع]) -> 0 | G16: =Table3[[#This Row],[To Pay]]-Table3[[#This Row],[Paid]] -> 0 | H16: =COUNTIF(Table4[Customer العميل],Table3[[#This Row],[Customer]]) -> 0
B17: =IF(Table3[[#This Row],[Customer]]="","",ROW()-1) ->  | E17: =SUMIF(Table4[Customer العميل],Table3[[#This Row],[Customer]],Table4[Invoice Amount مبلغ الفاتورة]) -> 0 | F17: =SUMIF(Table5[Customer العميل],Table3[[#This Row],[Customer]],Table5[Paid Amount المبلغ المدفوع]) -> 0 | G17: =Table3[[#This Row],[To Pay]]-Table3[[#This Row],[Paid]] -> 0 | H17: =COUNTIF(Table4[Customer العميل],Table3[[#This Row],[Customer]]) -> 0
B18: =IF(Table3[[#This Row],[Customer]]="","",ROW()-1) ->  | E18: =SUMIF(Table4[Customer العميل],Table3[[#This Row],[Customer]],Table4[Invoice Amount مبلغ الفاتورة]) -> 0 | F18: =SUMIF(Table5[Customer العميل],Table3[[#This Row],[Customer]],Table5[Paid Amount المبلغ المدفوع]) -> 0 | G18: =Table3[[#This Row],[To Pay]]-Table3[[#This Row],[Paid]] -> 0 | H18: =COUNTIF(Table4[Customer العميل],Table3[[#This Row],[Customer]]) -> 0
B19: =IF(Table3[[#This Row],[Customer]]="","",ROW()-1) ->  | E19: =SUMIF(Table4[Customer العميل],Table3[[#This Row],[Customer]],Table4[Invoice Amount مبلغ الفاتورة]) -> 0 | F19: =SUMIF(Table5[Customer العميل],Table3[[#This Row],[Customer]],Table5[Paid Amount المبلغ المدفوع]) -> 0 | G19: =Table3[[#This Row],[To Pay]]-Table3[[#This Row],[Paid]] -> 0 | H19: =COUNTIF(Table4[Customer العميل],Table3[[#This Row],[Customer]]) -> 0
B20: =IF(Table3[[#This Row],[Customer]]="","",ROW()-1) ->  | E20: =SUMIF(Table4[Customer العميل],Table3[[#This Row],[Customer]],Table4[Invoice Amount مبلغ الفاتورة]) -> 0 | F20: =SUMIF(Table5[Customer العميل],Table3[[#This Row],[Customer]],Table5[Paid Amount المبلغ المدفوع]) -> 0 | G20: =Table3[[#This Row],[To Pay]]-Table3[[#This Row],[Paid]] -> 0 | H20: =COUNTIF(Table4[Customer العميل],Table3[[#This Row],[Customer]]) -> 0
B21: =IF(Table3[[#This Row],[Customer]]="","",ROW()-1) ->  | E21: =SUMIF(Table4[Customer العميل],Table3[[#This Row],[Customer]],Table4[Invoice Amount مبلغ الفاتورة]) -> 0 | F21: =SUMIF(Table5[Customer العميل],Table3[[#This Row],[Customer]],Table5[Paid Amount المبلغ المدفوع]) -> 0 | G21: =Table3[[#This Row],[To Pay]]-Table3[[#This Row],[Paid]] -> 0 | H21: =COUNTIF(Table4[Customer العميل],Table3[[#This Row],[Customer]]) -> 0
B22: =IF(Table3[[#This Row],[Customer]]="","",ROW()-1) ->  | E22: =SUMIF(Table4[Customer العميل],Table3[[#This Row],[Customer]],Table4[Invoice Amount مبلغ الفاتورة]) -> 0 | F22: =SUMIF(Table5[Customer العميل],Table3[[#This Row],[Customer]],Table5[Paid Amount المبلغ المدفوع]) -> 0 | G22: =Table3[[#This Row],[To Pay]]-Table3[[#This Row],[Paid]] -> 0 | H22: =COUNTIF(Table4[Customer العميل],Table3[[#This Row],[Customer]]) -> 0
B23: =IF(Table3[[#This Row],[Customer]]="","",ROW()-1) ->  | E23: =SUMIF(Table4[Customer العميل],Table3[[#This Row],[Customer]],Table4[Invoice Amount مبلغ الفاتورة]) -> 0 | F23: =SUMIF(Table5[Customer العميل],Table3[[#This Row],[Customer]],Table5[Paid Amount المبلغ المدفوع]) -> 0 | G23: =Table3[[#This Row],[To Pay]]-Table3[[#This Row],[Paid]] -> 0 | H23: =COUNTIF(Table4[Customer العميل],Table3[[#This Row],[Customer]]) -> 0
B24: =IF(Table3[[#This Row],[Customer]]="","",ROW()-1) ->  | E24: =SUMIF(Table4[Customer العميل],Table3[[#This Row],[Customer]],Table4[Invoice Amount مبلغ الفاتورة]) -> 0 | F24: =SUMIF(Table5[Customer العميل],Table3[[#This Row],[Customer]],Table5[Paid Amount المبلغ المدفوع]) -> 0 | G24: =Table3[[#This Row],[To Pay]]-Table3[[#This Row],[Paid]] -> 0 | H24: =COUNTIF(Table4[Customer العميل],Table3[[#This Row],[Customer]]) -> 0
B25: =IF(Table3[[#This Row],[Customer]]="","",ROW()-1) ->  | E25: =SUMIF(Table4[Customer العميل],Table3[[#This Row],[Customer]],Table4[Invoice Amount مبلغ الفاتورة]) -> 0 | F25: =SUMIF(Table5[Customer العميل],Table3[[#This Row],[Customer]],Table5[Paid Amount المبلغ المدفوع]) -> 0 | G25: =Table3[[#This Row],[To Pay]]-Table3[[#This Row],[Paid]] -> 0 | H25: =COUNTIF(Table4[Customer العميل],Table3[[#This Row],[Customer]]) -> 0
B26: =IF(Table3[[#This Row],[Customer]]="","",ROW()-1) ->  | E26: =SUMIF(Table4[Customer العميل],Table3[[#This Row],[Customer]],Table4[Invoice Amount مبلغ الفاتورة]) -> 0 | F26: =SUMIF(Table5[Customer العميل],Table3[[#This Row],[Customer]],Table5[Paid Amount المبلغ المدفوع]) -> 0 | G26: =Table3[[#This Row],[To Pay]]-Table3[[#This Row],[Paid]] -> 0 | H26: =COUNTIF(Table4[Customer العميل],Table3[[#This Row],[Customer]]) -> 0
B27: =IF(Table3[[#This Row],[Customer]]="","",ROW()-1) ->  | E27: =SUMIF(Table4[Customer العميل],Table3[[#This Row],[Customer]],Table4[Invoice Amount مبلغ الفاتورة]) -> 0 | F27: =SUMIF(Table5[Customer العميل],Table3[[#This Row],[Customer]],Table5[Paid Amount المبلغ المدفوع]) -> 0 | G27: =Table3[[#This Row],[To Pay]]-Table3[[#This Row],[Paid]] -> 0 | H27: =COUNTIF(Table4[Customer العميل],Table3[[#This Row],[Customer]]) -> 0
B28: =IF(Table3[[#This Row],[Customer]]="","",ROW()-1) ->  | E28: =SUMIF(Table4[Customer العميل],Table3[[#This Row],[Customer]],Table4[Invoice Amount مبلغ الفاتورة]) -> 0 | F28: =SUMIF(Table5[Customer العميل],Table3[[#This Row],[Customer]],Table5[Paid Amount المبلغ المدفوع]) -> 0 | G28: =Table3[[#This Row],[To Pay]]-Table3[[#This Row],[Paid]] -> 0 | H28: =COUNTIF(Table4[Customer العميل],Table3[[#This Row],[Customer]]) -> 0
B29: =IF(Table3[[#This Row],[Customer]]="","",ROW()-1) ->  | E29: =SUMIF(Table4[Customer العميل],Table3[[#This Row],[Customer]],Table4[Invoice Amount مبلغ الفاتورة]) -> 0 | F29: =SUMIF(Table5[Customer العميل],Table3[[#This Row],[Customer]],Table5[Paid Amount المبلغ المدفوع]) -> 0 | G29: =Table3[[#This Row],[To Pay]]-Table3[[#This Row],[Paid]] -> 0 | H29: =COUNTIF(Table4[Customer العميل],Table3[[#This Row],[Customer]]) -> 0
B30: =IF(Table3[[#This Row],[Customer]]="","",ROW()-1) ->  | E30: =SUMIF(Table4[Customer العميل],Table3[[#This Row],[Customer]],Table4[Invoice Amount مبلغ الفاتورة]) -> 0 | F30: =SUMIF(Table5[Customer العميل],Table3[[#This Row],[Customer]],Table5[Paid Amount المبلغ المدفوع]) -> 0 | G30: =Table3[[#This Row],[To Pay]]-Table3[[#This Row],[Paid]] -> 0 | H30: =COUNTIF(Table4[Customer العميل],Table3[[#This Row],[Customer]]) -> 0
B31: =IF(Table3[[#This Row],[Customer]]="","",ROW()-1) ->  | E31: =SUMIF(Table4[Customer العميل],Table3[[#This Row],[Customer]],Table4[Invoice Amount مبلغ الفاتورة]) -> 0 | F31: =SUMIF(Table5[Customer العميل],Table3[[#This Row],[Customer]],Table5[Paid Amount المبلغ المدفوع]) -> 0 | G31: =Table3[[#This Row],[To Pay]]-Table3[[#This Row],[Paid]] -> 0 | H31: =COUNTIF(Table4[Customer العميل],Table3[[#This Row],[Customer]]) -> 0
B32: =IF(Table3[[#This Row],[Customer]]="","",ROW()-1) ->  | E32: =SUMIF(Table4[Customer العميل],Table3[[#This Row],[Customer]],Table4[Invoice Amount مبلغ الفاتورة]) -> 0 | F32: =SUMIF(Table5[Customer العميل],Table3[[#This Row],[Customer]],Table5[Paid Amount المبلغ المدفوع]) -> 0 | G32: =Table3[[#This Row],[To Pay]]-Table3[[#This Row],[Paid]] -> 0 | H32: =COUNTIF(Table4[Customer العميل],Table3[[#This Row],[Customer]]) -> 0
B33: =IF(Table3[[#This Row],[Customer]]="","",ROW()-1) ->  | E33: =SUMIF(Table4[Customer العميل],Table3[[#This Row],[Customer]],Table4[Invoice Amount مبلغ الفاتورة]) -> 0 | F33: =SUMIF(Table5[Customer العميل],Table3[[#This Row],[Customer]],Table5[Paid Amount المبلغ المدفوع]) -> 0 | G33: =Table3[[#This Row],[To Pay]]-Table3[[#This Row],[Paid]] -> 0 | H33: =COUNTIF(Table4[Customer العميل],Table3[[#This Row],[Customer]]) -> 0
B34: =IF(Table3[[#This Row],[Customer]]="","",ROW()-1) ->  | E34: =SUMIF(Table4[Customer العميل],Table3[[#This Row],[Customer]],Table4[Invoice Amount مبلغ الفاتورة]) -> 0 | F34: =SUMIF(Table5[Customer العميل],Table3[[#This Row],[Customer]],Table5[Paid Amount المبلغ المدفوع]) -> 0 | G34: =Table3[[#This Row],[To Pay]]-Table3[[#This Row],[Paid]] -> 0 | H34: =COUNTIF(Table4[Customer العميل],Table3[[#This Row],[Customer]]) -> 0
B35: =IF(Table3[[#This Row],[Customer]]="","",ROW()-1) ->  | E35: =SUMIF(Table4[Customer العميل],Table3[[#This Row],[Customer]],Table4[Invoice Amount مبلغ الفاتورة]) -> 0 | F35: =SUMIF(Table5[Customer العميل],Table3[[#This Row],[Customer]],Table5[Paid Amount المبلغ المدفوع]) -> 0 | G35: =Table3[[#This Row],[To Pay]]-Table3[[#This Row],[Paid]] -> 0 | H35: =COUNTIF(Table4[Customer العميل],Table3[[#This Row],[Customer]]) -> 0
B36: =IF(Table3[[#This Row],[Customer]]="","",ROW()-1) ->  | E36: =SUMIF(Table4[Customer العميل],Table3[[#This Row],[Customer]],Table4[Invoice Amount مبلغ الفاتورة]) -> 0 | F36: =SUMIF(Table5[Customer العميل],Table3[[#This Row],[Customer]],Table5[Paid Amount المبلغ المدفوع]) -> 0 | G36: =Table3[[#This Row],[To Pay]]-Table3[[#This Row],[Paid]] -> 0 | H36: =COUNTIF(Table4[Customer العميل],Table3[[#This Row],[Customer]]) -> 0
B37: =IF(Table3[[#This Row],[Customer]]="","",ROW()-1) ->  | E37: =SUMIF(Table4[Customer العميل],Table3[[#This Row],[Customer]],Table4[Invoice Amount مبلغ الفاتورة]) -> 0 | F37: =SUMIF(Table5[Customer العميل],Table3[[#This Row],[Customer]],Table5[Paid Amount المبلغ المدفوع]) -> 0 | G37: =Table3[[#This Row],[To Pay]]-Table3[[#This Row],[Paid]] -> 0 | H37: =COUNTIF(Table4[Customer العميل],Table3[[#This Row],[Customer]]) -> 0
C38: =MAX($B$2:B37) & " Customer/s" -> 12 Customer/s | E38: =SUBTOTAL(109,Table3[To Pay]) -> 59923.63 | F38: =SUBTOTAL(109,Table3[Paid]) -> 42852.48 | G38: =SUBTOTAL(109,Table3[Balance]) -> 17071.15 | H38: =SUBTOTAL(109,Table3[[ qty]]) -> 37
